{"text_format":"1","workbook":"xlsx","n_sheets":18,"sheets":["How to Use this Document","InformationSheet","Compliance Documents Checklist","Envelope - Prescriptive","Envelope - Simple Trade Off","Envelope - Detailed TOP","Lighting - Prescriptive","Lighting Trade-off Path","HVAC - Prescriptive","HVAC - TOP","SWH - Prescriptive","SWH - TOP","EP & Motors - Prescriptive","Performance Compliance","Envelope Summary","Tables","Sheet16","Sheet1"],"not_rendered":{"charts":0,"images":864,"macros":1,"external_links":1,"defined_names":20,"comments":2,"pivot_tables":0},"unopened":[],"bounds":{"document_bytes":16777216,"sheet_cells":100000,"rows_first":2000,"rows_last":500,"rows_between":2000,"halvings":0,"cell_chars":16384,"cell_head_chars":4096},"cells_cut":0,"cells_raw":0,"read":"whole","date_system":"1900"}

{"sheet":"How to Use this Document","index":0,"n_rows":50,"n_cols":3,"rows_kept":50,"cut":false,"hidden":false,"merged":[[0,0,2,8],[3,0,4,8],[5,0,5,8],[6,0,11,8],[12,0,12,8],[12,18,12,26],[12,135,12,143],[12,144,12,152],[12,153,12,161],[12,162,12,170],[12,171,12,179],[12,180,12,188],[12,81,12,89],[12,90,12,98],[12,99,12,107],[12,108,12,116],[12,117,12,125],[12,126,12,134],[12,27,12,35],[12,36,12,44],[12,45,12,53],[12,54,12,62],[12,63,12,71],[12,72,12,80],[12,297,12,305],[12,306,12,314],[12,315,12,323],[12,324,12,332],[12,333,12,341],[12,342,12,350],[12,243,12,251],[12,252,12,260],[12,261,12,269],[12,270,12,278],[12,279,12,287],[12,288,12,296],[12,189,12,197],[12,198,12,206],[12,207,12,215],[12,216,12,224],[12,225,12,233],[12,234,12,242],[12,459,12,467],[12,468,12,476],[12,477,12,485],[12,486,12,494],[12,495,12,503],[12,504,12,512],[12,405,12,413],[12,414,12,422],[12,423,12,431],[12,432,12,440],[12,441,12,449],[12,450,12,458],[12,351,12,359],[12,360,12,368],[12,369,12,377],[12,378,12,386],[12,387,12,395],[12,396,12,404],[12,621,12,629],[12,630,12,638],[12,639,12,647],[12,648,12,656],[12,657,12,665],[12,666,12,674],[12,567,12,575],[12,576,12,584],[12,585,12,593],[12,594,12,602],[12,603,12,611],[12,612,12,620],[12,513,12,521],[12,522,12,530],[12,531,12,539],[12,540,12,548],[12,549,12,557],[12,558,12,566],[12,783,12,791],[12,792,12,800],[12,801,12,809],[12,810,12,818],[12,819,12,827],[12,828,12,836],[12,729,12,737],[12,738,12,746],[12,747,12,755],[12,756,12,764],[12,765,12,773],[12,774,12,782],[12,675,12,683],[12,684,12,692],[12,693,12,701],[12,702,12,710],[12,711,12,719],[12,720,12,728],[12,945,12,953],[12,954,12,962],[12,963,12,971],[12,972,12,980],[12,981,12,989],[12,990,12,998],[12,891,12,899],[12,900,12,908],[12,909,12,917],[12,918,12,926],[12,927,12,935],[12,936,12,944],[12,837,12,845],[12,846,12,854],[12,855,12,863],[12,864,12,872],[12,873,12,881],[12,882,12,890],[12,1107,12,1115],[12,1116,12,1124],[12,1125,12,1133],[12,1134,12,1142],[12,1143,12,1151],[12,1152,12,1160],[12,1053,12,1061],[12,1062,12,1070],[12,1071,12,1079],[12,1080,12,1088],[12,1089,12,1097],[12,1098,12,1106],[12,999,12,1007],[12,1008,12,1016],[12,1017,12,1025],[12,1026,12,1034],[12,1035,12,1043],[12,1044,12,1052],[12,1269,12,1277],[12,1278,12,1286],[12,1287,12,1295],[12,1296,12,1304],[12,1305,12,1313],[12,1314,12,1322],[12,1215,12,1223],[12,1224,12,1232],[12,1233,12,1241],[12,1242,12,1250],[12,1251,12,1259],[12,1260,12,1268],[12,1161,12,1169],[12,1170,12,1178],[12,1179,12,1187],[12,1188,12,1196],[12,1197,12,1205],[12,1206,12,1214],[12,1431,12,1439],[12,1440,12,1448],[12,1449,12,1457],[12,1458,12,1466],[12,1467,12,1475],[12,1476,12,1484],[12,1377,12,1385],[12,1386,12,1394],[12,1395,12,1403],[12,1404,12,1412],[12,1413,12,1421],[12,1422,12,1430],[12,1323,12,1331],[12,1332,12,1340],[12,1341,12,1349],[12,1350,12,1358],[12,1359,12,1367],[12,1368,12,1376],[12,1593,12,1601],[12,1602,12,1610],[12,1611,12,1619],[12,1620,12,1628],[12,1629,12,1637],[12,1638,12,1646],[12,1539,12,1547],[12,1548,12,1556],[12,1557,12,1565],[12,1566,12,1574],[12,1575,12,1583],[12,1584,12,1592],[12,1485,12,1493],[12,1494,12,1502],[12,1503,12,1511],[12,1512,12,1520],[12,1521,12,1529],[12,1530,12,1538],[12,1755,12,1763],[12,1764,12,1772],[12,1773,12,1781],[12,1782,12,1790],[12,1791,12,1799],[12,1800,12,1808],[12,1701,12,1709],[12,1710,12,1718],[12,1719,12,1727],[12,1728,12,1736],[12,1737,12,1745],[12,1746,12,1754],[12,1647,12,1655],[12,1656,12,1664],[12,1665,12,1673],[12,1674,12,1682],[12,1683,12,1691],[12,1692,12,1700],[12,1917,12,1925],[12,1926,12,1934],[12,1935,12,1943],[12,1944,12,1952],[12,1953,12,1961],[12,1962,12,1970],[12,1863,12,1871],[12,1872,12,1880],[12,1881,12,1889],[12,1890,12,1898],[12,1899,12,1907],[12,1908,12,1916],[12,1809,12,1817],[12,1818,12,1826],[12,1827,12,1835],[12,1836,12,1844],[12,1845,12,1853],[12,1854,12,1862],[12,2079,12,2087],[12,2088,12,2096],[12,2097,12,2105],[12,2106,12,2114],[12,2115,12,2123],[12,2124,12,2132],[12,2025,12,2033],[12,2034,12,2042],[12,2043,12,2051],[12,2052,12,2060],[12,2061,12,2069],[12,2070,12,2078],[12,1971,12,1979],[12,1980,12,1988],[12,1989,12,1997],[12,1998,12,2006],[12,2007,12,2015],[12,2016,12,2024],[12,2241,12,2249],[12,2250,12,2258],[12,2259,12,2267],[12,2268,12,2276],[12,2277,12,2285],[12,2286,12,2294],[12,2187,12,2195],[12,2196,12,2204],[12,2205,12,2213],[12,2214,12,2222],[12,2223,12,2231],[12,2232,12,2240],[12,2133,12,2141],[12,2142,12,2150],[12,2151,12,2159],[12,2160,12,2168],[12,2169,12,2177],[12,2178,12,2186],[12,2403,12,2411],[12,2412,12,2420],[12,2421,12,2429],[12,2430,12,2438],[12,2439,12,2447],[12,2448,12,2456],[12,2349,12,2357],[12,2358,12,2366],[12,2367,12,2375],[12,2376,12,2384],[12,2385,12,2393],[12,2394,12,2402],[12,2295,12,2303],[12,2304,12,2312],[12,2313,12,2321],[12,2322,12,2330],[12,2331,12,2339],[12,2340,12,2348],[12,2565,12,2573],[12,2574,12,2582],[12,2583,12,2591],[12,2592,12,2600],[12,2601,12,2609],[12,2610,12,2618],[12,2511,12,2519],[12,2520,12,2528],[12,2529,12,2537],[12,2538,12,2546],[12,2547,12,2555],[12,2556,12,2564],[12,2457,12,2465],[12,2466,12,2474],[12,2475,12,2483],[12,2484,12,2492],[12,2493,12,2501],[12,2502,12,2510],[12,2727,12,2735],[12,2736,12,2744],[12,2745,12,2753],[12,2754,12,2762],[12,2763,12,2771],[12,2772,12,2780],[12,2673,12,2681],[12,2682,12,2690],[12,2691,12,2699],[12,2700,12,2708],[12,2709,12,2717],[12,2718,12,2726],[12,2619,12,2627],[12,2628,12,2636],[12,2637,12,2645],[12,2646,12,2654],[12,2655,12,2663],[12,2664,12,2672],[12,2889,12,2897],[12,2898,12,2906],[12,2907,12,2915],[12,2916,12,2924],[12,2925,12,2933],[12,2934,12,2942],[12,2835,12,2843],[12,2844,12,2852],[12,2853,12,2861],[12,2862,12,2870],[12,2871,12,2879],[12,2880,12,2888],[12,2781,12,2789],[12,2790,12,2798],[12,2799,12,2807],[12,2808,12,2816],[12,2817,12,2825],[12,2826,12,2834],[12,3051,12,3059],[12,3060,12,3068],[12,3069,12,3077],[12,3078,12,3086],[12,3087,12,3095],[12,3096,12,3104],[12,2997,12,3005],[12,3006,12,3014],[12,3015,12,3023],[12,3024,12,3032],[12,3033,12,3041],[12,3042,12,3050],[12,2943,12,2951],[12,2952,12,2960],[12,2961,12,2969],[12,2970,12,2978],[12,2979,12,2987],[12,2988,12,2996],[12,3213,12,3221],[12,3222,12,3230],[12,3231,12,3239],[12,3240,12,3248],[12,3249,12,3257],[12,3258,12,3266],[12,3159,12,3167],[12,3168,12,3176],[12,3177,12,3185],[12,3186,12,3194],[12,3195,12,3203],[12,3204,12,3212],[12,3105,12,3113],[12,3114,12,3122],[12,3123,12,3131],[12,3132,12,3140],[12,3141,12,3149],[12,3150,12,3158],[12,3375,12,3383],[12,3384,12,3392],[12,3393,12,3401],[12,3402,12,3410],[12,3411,12,3419],[12,3420,12,3428],[12,3321,12,3329],[12,3330,12,3338],[12,3339,12,3347],[12,3348,12,3356],[12,3357,12,3365],[12,3366,12,3374],[12,3267,12,3275],[12,3276,12,3284],[12,3285,12,3293],[12,3294,12,3302],[12,3303,12,3311],[12,3312,12,3320],[12,3537,12,3545],[12,3546,12,3554],[12,3555,12,3563],[12,3564,12,3572],[12,3573,12,3581],[12,3582,12,3590],[12,3483,12,3491],[12,3492,12,3500],[12,3501,12,3509],[12,3510,12,3518],[12,3519,12,3527],[12,3528,12,3536],[12,3429,12,3437],[12,3438,12,3446],[12,3447,12,3455],[12,3456,12,3464],[12,3465,12,3473],[12,3474,12,3482],[12,3699,12,3707],[12,3708,12,3716],[12,3717,12,3725],[12,3726,12,3734],[12,3735,12,3743],[12,3744,12,3752],[12,3645,12,3653],[12,3654,12,3662],[12,3663,12,3671],[12,3672,12,3680],[12,3681,12,3689],[12,3690,12,3698],[12,3591,12,3599],[12,3600,12,3608],[12,3609,12,3617],[12,3618,12,3626],[12,3627,12,3635],[12,3636,12,3644],[12,3861,12,3869],[12,3870,12,3878],[12,3879,12,3887],[12,3888,12,3896],[12,3897,12,3905],[12,3906,12,3914],[12,3807,12,3815],[12,3816,12,3824],[12,3825,12,3833],[12,3834,12,3842],[12,3843,12,3851],[12,3852,12,3860],[12,3753,12,3761],[12,3762,12,3770],[12,3771,12,3779],[12,3780,12,3788],[12,3789,12,3797],[12,3798,12,3806],[12,4023,12,4031],[12,4032,12,4040],[12,4041,12,4049],[12,4050,12,4058],[12,4059,12,4067],[12,4068,12,4076],[12,3969,12,3977],[12,3978,12,3986],[12,3987,12,3995],[12,3996,12,4004],[12,4005,12,4013],[12,4014,12,4022],[12,3915,12,3923],[12,3924,12,3932],[12,3933,12,3941],[12,3942,12,3950],[12,3951,12,3959],[12,3960,12,3968],[12,4185,12,4193],[12,4194,12,4202],[12,4203,12,4211],[12,4212,12,4220],[12,4221,12,4229],[12,4230,12,4238],[12,4131,12,4139],[12,4140,12,4148],[12,4149,12,4157],[12,4158,12,4166],[12,4167,12,4175],[12,4176,12,4184],[12,4077,12,4085],[12,4086,12,4094],[12,4095,12,4103],[12,4104,12,4112],[12,4113,12,4121],[12,4122,12,4130],[12,4347,12,4355],[12,4356,12,4364],[12,4365,12,4373],[12,4374,12,4382],[12,4383,12,4391],[12,4392,12,4400],[12,4293,12,4301],[12,4302,12,4310],[12,4311,12,4319],[12,4320,12,4328],[12,4329,12,4337],[12,4338,12,4346],[12,4239,12,4247],[12,4248,12,4256],[12,4257,12,4265],[12,4266,12,4274],[12,4275,12,4283],[12,4284,12,4292],[12,4509,12,4517],[12,4518,12,4526],[12,4527,12,4535],[12,4536,12,4544],[12,4545,12,4553],[12,4554,12,4562],[12,4455,12,4463],[12,4464,12,4472],[12,4473,12,4481],[12,4482,12,4490],[12,4491,12,4499],[12,4500,12,4508],[12,4401,12,4409],[12,4410,12,4418],[12,4419,12,4427],[12,4428,12,4436],[12,4437,12,4445],[12,4446,12,4454],[12,4671,12,4679],[12,4680,12,4688],[12,4689,12,4697],[12,4698,12,4706],[12,4707,12,4715],[12,4716,12,4724],[12,4617,12,4625],[12,4626,12,4634],[12,4635,12,4643],[12,4644,12,4652],[12,4653,12,4661],[12,4662,12,4670],[12,4563,12,4571],[12,4572,12,4580],[12,4581,12,4589],[12,4590,12,4598],[12,4599,12,4607],[12,4608,12,4616],[12,4833,12,4841],[12,4842,12,4850],[12,4851,12,4859],[12,4860,12,4868],[12,4869,12,4877],[12,4878,12,4886],[12,4779,12,4787],[12,4788,12,4796],[12,4797,12,4805],[12,4806,12,4814],[12,4815,12,4823],[12,4824,12,4832],[12,4725,12,4733],[12,4734,12,4742],[12,4743,12,4751],[12,4752,12,4760],[12,4761,12,4769],[12,4770,12,4778],[12,4995,12,5003],[12,5004,12,5012],[12,5013,12,5021],[12,5022,12,5030],[12,5031,12,5039],[12,5040,12,5048],[12,4941,12,4949],[12,4950,12,4958],[12,4959,12,4967],[12,4968,12,4976],[12,4977,12,4985],[12,4986,12,4994],[12,4887,12,4895],[12,4896,12,4904],[12,4905,12,4913],[12,4914,12,4922],[12,4923,12,4931],[12,4932,12,4940],[12,5157,12,5165],[12,5166,12,5174],[12,5175,12,5183],[12,5184,12,5192],[12,5193,12,5201],[12,5202,12,5210],[12,5103,12,5111],[12,5112,12,5120],[12,5121,12,5129],[12,5130,12,5138],[12,5139,12,5147],[12,5148,12,5156],[12,5049,12,5057],[12,5058,12,5066],[12,5067,12,5075],[12,5076,12,5084],[12,5085,12,5093],[12,5094,12,5102],[12,5319,12,5327],[12,5328,12,5336],[12,5337,12,5345],[12,5346,12,5354],[12,5355,12,5363],[12,5364,12,5372],[12,5265,12,5273],[12,5274,12,5282],[12,5283,12,5291],[12,5292,12,5300],[12,5301,12,5309],[12,5310,12,5318],[12,5211,12,5219],[12,5220,12,5228],[12,5229,12,5237],[12,5238,12,5246],[12,5247,12,5255],[12,5256,12,5264],[12,5481,12,5489],[12,5490,12,5498],[12,5499,12,5507],[12,5508,12,5516],[12,5517,12,5525],[12,5526,12,5534],[12,5427,12,5435],[12,5436,12,5444],[12,5445,12,5453],[12,5454,12,5462],[12,5463,12,5471],[12,5472,12,5480],[12,5373,12,5381],[12,5382,12,5390],[12,5391,12,5399],[12,5400,12,5408],[12,5409,12,5417],[12,5418,12,5426],[12,5643,12,5651],[12,5652,12,5660],[12,5661,12,5669],[12,5670,12,5678],[12,5679,12,5687],[12,5688,12,5696],[12,5589,12,5597],[12,5598,12,5606],[12,5607,12,5615],[12,5616,12,5624],[12,5625,12,5633],[12,5634,12,5642],[12,5535,12,5543],[12,5544,12,5552],[12,5553,12,5561],[12,5562,12,5570],[12,5571,12,5579],[12,5580,12,5588],[12,5805,12,5813],[12,5814,12,5822],[12,5823,12,5831],[12,5832,12,5840],[12,5841,12,5849],[12,5850,12,5858],[12,5751,12,5759],[12,5760,12,5768],[12,5769,12,5777],[12,5778,12,5786],[12,5787,12,5795],[12,5796,12,5804],[12,5697,12,5705],[12,5706,12,5714],[12,5715,12,5723],[12,5724,12,5732],[12,5733,12,5741],[12,5742,12,5750],[12,5967,12,5975],[12,5976,12,5984],[12,5985,12,5993],[12,5994,12,6002],[12,6003,12,6011],[12,6012,12,6020],[12,5913,12,5921],[12,5922,12,5930],[12,5931,12,5939],[12,5940,12,5948],[12,5949,12,5957],[12,5958,12,5966],[12,5859,12,5867],[12,5868,12,5876],[12,5877,12,5885],[12,5886,12,5894],[12,5895,12,5903],[12,5904,12,5912],[12,6129,12,6137],[12,6138,12,6146],[12,6147,12,6155],[12,6156,12,6164],[12,6165,12,6173],[12,6174,12,6182],[12,6075,12,6083],[12,6084,12,6092],[12,6093,12,6101],[12,6102,12,6110],[12,6111,12,6119],[12,6120,12,6128],[12,6021,12,6029],[12,6030,12,6038],[12,6039,12,6047],[12,6048,12,6056],[12,6057,12,6065],[12,6066,12,6074],[12,6291,12,6299],[12,6300,12,6308],[12,6309,12,6317],[12,6318,12,6326],[12,6327,12,6335],[12,6336,12,6344],[12,6237,12,6245],[12,6246,12,6254],[12,6255,12,6263],[12,6264,12,6272],[12,6273,12,6281],[12,6282,12,6290],[12,6183,12,6191],[12,6192,12,6200],[12,6201,12,6209],[12,6210,12,6218],[12,6219,12,6227],[12,6228,12,6236],[12,6453,12,6461],[12,6462,12,6470],[12,6471,12,6479],[12,6480,12,6488],[12,6489,12,6497],[12,6498,12,6506],[12,6399,12,6407],[12,6408,12,6416],[12,6417,12,6425],[12,6426,12,6434],[12,6435,12,6443],[12,6444,12,6452],[12,6345,12,6353],[12,6354,12,6362],[12,6363,12,6371],[12,6372,12,6380],[12,6381,12,6389],[12,6390,12,6398],[12,6615,12,6623],[12,6624,12,6632],[12,6633,12,6641],[12,6642,12,6650],[12,6651,12,6659],[12,6660,12,6668],[12,6561,12,6569],[12,6570,12,6578],[12,6579,12,6587],[12,6588,12,6596],[12,6597,12,6605],[12,6606,12,6614],[12,6507,12,6515],[12,6516,12,6524],[12,6525,12,6533],[12,6534,12,6542],[12,6543,12,6551],[12,6552,12,6560],[12,6777,12,6785],[12,6786,12,6794],[12,6795,12,6803],[12,6804,12,6812],[12,6813,12,6821],[12,6822,12,6830],[12,6723,12,6731],[12,6732,12,6740],[12,6741,12,6749],[12,6750,12,6758],[12,6759,12,6767],[12,6768,12,6776],[12,6669,12,6677],[12,6678,12,6686],[12,6687,12,6695],[12,6696,12,6704],[12,6705,12,6713],[12,6714,12,6722],[12,6939,12,6947],[12,6948,12,6956],[12,6957,12,6965],[12,6966,12,6974],[12,6975,12,6983],[12,6984,12,6992],[12,6885,12,6893],[12,6894,12,6902],[12,6903,12,6911],[12,6912,12,6920],[12,6921,12,6929],[12,6930,12,6938],[12,6831,12,6839],[12,6840,12,6848],[12,6849,12,6857],[12,6858,12,6866],[12,6867,12,6875],[12,6876,12,6884],[12,7101,12,7109],[12,7110,12,7118],[12,7119,12,7127],[12,7128,12,7136],[12,7137,12,7145],[12,7146,12,7154],[12,7047,12,7055],[12,7056,12,7064],[12,7065,12,7073],[12,7074,12,7082],[12,7083,12,7091],[12,7092,12,7100],[12,6993,12,7001],[12,7002,12,7010],[12,7011,12,7019],[12,7020,12,7028],[12,7029,12,7037],[12,7038,12,7046],[12,7263,12,7271],[12,7272,12,7280],[12,7281,12,7289],[12,7290,12,7298],[12,7299,12,7307],[12,7308,12,7316],[12,7209,12,7217],[12,7218,12,7226],[12,7227,12,7235],[12,7236,12,7244],[12,7245,12,7253],[12,7254,12,7262],[12,7155,12,7163],[12,7164,12,7172],[12,7173,12,7181],[12,7182,12,7190],[12,7191,12,7199],[12,7200,12,7208],[12,7425,12,7433],[12,7434,12,7442],[12,7443,12,7451],[12,7452,12,7460],[12,7461,12,7469],[12,7470,12,7478],[12,7371,12,7379],[12,7380,12,7388],[12,7389,12,7397],[12,7398,12,7406],[12,7407,12,7415],[12,7416,12,7424],[12,7317,12,7325],[12,7326,12,7334],[12,7335,12,7343],[12,7344,12,7352],[12,7353,12,7361],[12,7362,12,7370],[12,7587,12,7595],[12,7596,12,7604],[12,7605,12,7613],[12,7614,12,7622],[12,7623,12,7631],[12,7632,12,7640],[12,7533,12,7541],[12,7542,12,7550],[12,7551,12,7559],[12,7560,12,7568],[12,7569,12,7577],[12,7578,12,7586],[12,7479,12,7487],[12,7488,12,7496],[12,7497,12,7505],[12,7506,12,7514],[12,7515,12,7523],[12,7524,12,7532],[12,7749,12,7757],[12,7758,12,7766],[12,7767,12,7775],[12,7776,12,7784],[12,7785,12,7793],[12,7794,12,7802],[12,7695,12,7703],[12,7704,12,7712],[12,7713,12,7721],[12,7722,12,7730],[12,7731,12,7739],[12,7740,12,7748],[12,7641,12,7649],[12,7650,12,7658],[12,7659,12,7667],[12,7668,12,7676],[12,7677,12,7685],[12,7686,12,7694],[12,7911,12,7919],[12,7920,12,7928],[12,7929,12,7937],[12,7938,12,7946],[12,7947,12,7955],[12,7956,12,7964],[12,7857,12,7865],[12,7866,12,7874],[12,7875,12,7883],[12,7884,12,7892],[12,7893,12,7901],[12,7902,12,7910],[12,7803,12,7811],[12,7812,12,7820],[12,7821,12,7829],[12,7830,12,7838],[12,7839,12,7847],[12,7848,12,7856],[12,8073,12,8081],[12,8082,12,8090],[12,8091,12,8099],[12,8100,12,8108],[12,8109,12,8117],[12,8118,12,8126],[12,8019,12,8027],[12,8028,12,8036],[12,8037,12,8045],[12,8046,12,8054],[12,8055,12,8063],[12,8064,12,8072],[12,7965,12,7973],[12,7974,12,7982],[12,7983,12,7991],[12,7992,12,8000],[12,8001,12,8009],[12,8010,12,8018],[12,8235,12,8243],[12,8244,12,8252],[12,8253,12,8261],[12,8262,12,8270],[12,8271,12,8279],[12,8280,12,8288],[12,8181,12,8189],[12,8190,12,8198],[12,8199,12,8207],[12,8208,12,8216],[12,8217,12,8225],[12,8226,12,8234],[12,8127,12,8135],[12,8136,12,8144],[12,8145,12,8153],[12,8154,12,8162],[12,8163,12,8171],[12,8172,12,8180],[12,8397,12,8405],[12,8406,12,8414],[12,8415,12,8423],[12,8424,12,8432],[12,8433,12,8441],[12,8442,12,8450],[12,8343,12,8351],[12,8352,12,8360],[12,8361,12,8369],[12,8370,12,8378],[12,8379,12,8387],[12,8388,12,8396],[12,8289,12,8297],[12,8298,12,8306],[12,8307,12,8315],[12,8316,12,8324],[12,8325,12,8333],[12,8334,12,8342],[12,8559,12,8567],[12,8568,12,8576],[12,8577,12,8585],[12,8586,12,8594],[12,8595,12,8603],[12,8604,12,8612],[12,8505,12,8513],[12,8514,12,8522],[12,8523,12,8531],[12,8532,12,8540],[12,8541,12,8549],[12,8550,12,8558],[12,8451,12,8459],[12,8460,12,8468],[12,8469,12,8477],[12,8478,12,8486],[12,8487,12,8495],[12,8496,12,8504],[12,8721,12,8729],[12,8730,12,8738],[12,8739,12,8747],[12,8748,12,8756],[12,8757,12,8765],[12,8766,12,8774],[12,8667,12,8675],[12,8676,12,8684],[12,8685,12,8693],[12,8694,12,8702],[12,8703,12,8711],[12,8712,12,8720],[12,8613,12,8621],[12,8622,12,8630],[12,8631,12,8639],[12,8640,12,8648],[12,8649,12,8657],[12,8658,12,8666],[12,8883,12,8891],[12,8892,12,8900],[12,8901,12,8909],[12,8910,12,8918],[12,8919,12,8927],[12,8928,12,8936],[12,8829,12,8837],[12,8838,12,8846],[12,8847,12,8855],[12,8856,12,8864],[12,8865,12,8873],[12,8874,12,8882],[12,8775,12,8783],[12,8784,12,8792],[12,8793,12,8801],[12,8802,12,8810],[12,8811,12,8819],[12,8820,12,8828],[12,9045,12,9053],[12,9054,12,9062],[12,9063,12,9071],[12,9072,12,9080]],"merged_total":1857,"flags":["merged_cut"]}
[]
[]
[]
["How to Use this Document"]
[]
[]
["THIS CHECKLIST IS A CONVENIENCE DOCUMENT ONLY. IT IS BASED ON THE ENERGY EFFICIENCY REQUIREMENTS DESCRIBED IN THE NECB-2015 AND  THE ONTARIO BUILDING CODE SUPPLEMENTARY STANDARD SB-10 DIVISION 3. THIS CHECKLIST IS NOT A SUBSTITUTE FOR COMPLYING WITH THE REQUIREMENTS OF THE ONTARIO BUILDING CODE.  WHILE CARE HAS BEEN TAKEN TO ENSURE ACCURACY OF THIS CHECKLIST, DESIGNERS AND BUILDING OFFICIALS MUST REFER TO THE ACTUAL WORDING AND REQUIREMENTS OF THE NECB-2015 AND THE ONTARIO BUILDING CODE (O.REG. 332/12 AND AMENDMENTS UP TO DECEMBER 23, 2013). THIS CHECKLIST IS COURTESY OF NATURAL RESOURCES CANADA (NRCAN) AND IS MADE AVAILABLE FOR CODE USERS BY THE MINISTRY OF MUNICIPAL AFFAIRS AND HOUSING. USERS SHOULD ALWAYS CONSULT WITH THE AUTHORITY HAVING JURISDICTION, IF THE CHECKLIST IS GOING TO BE SUBMITTED TO THAT AUTHORITY.   THE MINISTRY OF MUNICIPAL AFFAIRS AND HOUSING AND NRCAN DO NOT ASSUME RESPONSIBILITY FOR ERRORS OR OVERSIGHTS RESULTING FROM THE INFORMATION CONTAINED HEREIN.  "]
[]
[]
[]
[]
[]
[]
["1) Please identify a project name and contact for this project on the “How to Use this Document” tab. All questions about the energy compliance of this project will be directed to this contact. "]
[]
["Project Name",null,"Enter project name on 'How to Use this Document' tab"]
["Contact Person",null,"Enter contact person name on 'How to Use this Document' tab"]
["Position",null,"-"]
["Email",null,"-"]
["Phone Number",null,"-"]
[]
["2) Please complete all spreadsheet tabs in full. "]
[]
[]
[]
["3) In the “Compliance Documents Checklist” tab, please identify for the project which paths are being followed for prescriptive and trade off for Parts 3, 4, 5 and 6, and performance path for Part 8 of NECB 2015."]
[]
["a. Select the compliance path(s) you have undertaken by checking the appropriate box on this tab."]
["b. For each path selected a new tab related to that path will appear at the bottom of the spreadsheet."]
[]
["4) Completing Compliance Tabs"]
["a. Complete every compliance tab listed in the spreadsheet. Each will be clearly named identifying the compliance path you have identified for each part for this project. For example “Envelope – Simple TOP” is the tab for Part 3 – Building Envelope - Simple trade off path (TOP)."]
[]
["b. Each tab starts with a Section called “General”\no This section provides space for up to 500 words for you to identify key remarks related to this part –  elements that were pre-existing that could not be controlled for, for example, and decisions that you have taken that you believe your building inspection officials need to know\n"]
["o This section provides space for up to 500 words for you to identify key remarks related to this part –  elements that were pre-existing that could not be controlled for, for example, and decisions that you have taken that you believe your building inspection officials need to know."]
[]
[]
[]
[]
["c. Provide a response to every item listed on the appropriate tab for each of the compliance path(s) selected. "]
["o In some cases you have the option to select “N/A” – Not Applicable."]
["o In such cases there will be an area (called “Explanation”) for you to provide an explanation of why the item does not apply. Provide a written explanation."]
[]
["o In such cases you may have a choice of exemptions/permissions for the N/A. If so, select by checking the “Compliant” box of the exemption/permission that is appropriate for this project."]
[]
["d. Continue through each item on the tab. If the item is compliant, check the “Compliant” box."]
["o As each “Compliant” box is checked the red bars to the right of the sheet will turn green. This will help you identify any items you have inadvertently missed."]
[]
[]
["Notes:"]

{"sheet":"InformationSheet","index":1,"n_rows":31,"n_cols":9,"rows_kept":31,"cut":false,"hidden":false,"merged":[[0,0,0,8],[1,0,1,8],[3,1,3,3],[3,5,3,8],[4,1,4,3],[4,5,4,8],[6,0,6,2],[6,3,6,5],[6,6,6,8],[7,0,7,2],[7,3,7,5],[7,6,7,8],[8,0,8,2],[8,3,8,5],[8,6,8,8],[9,0,9,2],[9,3,9,5],[9,6,9,8],[10,0,10,2],[10,3,10,5],[10,6,10,8],[11,0,11,1],[11,3,11,4],[11,6,11,7],[17,0,17,8],[12,0,12,1],[12,3,12,4],[12,6,12,7],[13,0,13,1],[13,3,13,4],[13,6,13,7],[14,0,14,1],[14,3,14,4],[14,6,14,7],[15,0,15,8],[16,0,16,8],[30,0,30,6],[18,0,18,8],[19,0,19,8],[21,0,21,8],[22,0,23,8],[24,0,25,6],[24,8,25,8],[26,8,27,8],[28,8,29,8],[26,0,26,6],[27,0,27,6],[28,0,28,6],[29,0,29,6]]}
["ONTARIO BUILDING CODE AND SUPPLEMENTARY STANDARD SB-10"]
["PROJECT INFORMATION "]
[]
["Project:",{"$f":"'How to Use this Document'!$C$16","v":"Enter project name on 'How to Use this Document' tab"},null,null," Location:"]
["Building Permit Application No.: ",null,null,null,"Date: "]
[]
["Architectural Designer Information* ",null,null,"Mechanical Designer Information*",null,null,"Electrical Designer Information*"]
[]
["Name                                                                                  ",null,null,"Name                                                                                  ",null,null,"Name                                                                                  "]
[]
["Address",null,null,"Address",null,null,"Address"]
[]
["City                                    ",null,"Province","City ",null,"Province","City ",null,"Province"]
[]
["Signature                    ",null,"Date\n(YY/MM/DD)","Signature",null,"Date\n(YY/MM/DD)","Signature",null,"Date\n(YY/MM/DD)"]
["*IF MORE DESIGNERS ARE INVOLVED, PROVIDE ADDITIONAL COPIES OF THIS FORM."]
["THIS CHECKLIST IS A CONVENIENCE DOCUMENT ONLY AND IS BASED ON THE ENERGY EFFICIENCY REQUIREMENTS DESCRIBED IN THE ONTARIO BUILDING CODE SUPPLEMENTARY STANDARD SB-10 DIVISION 3. THIS CHECKLIST IS NOT A SUBSTITUTE FOR COMPLYING WITH THE REQUIREMENTS OF THE ONTARIO BUILDING CODE.  WHILE CARE HAS BEEN TAKEN TO ENSURE ACCURACY OF THIS CHECKLIST, DESIGNERS AND BUILDING OFFICIALS MUST REFER TO THE ACTUAL WORDING AND REQUIREMENTS OF THE ONTARIO BUILDING CODE  (O.REG. 332/12 AND AMENDMENTS UP TO DECEMBER 23, 2013)."]
["THIS CHECKLIST IS COURTESY OF NATURAL RESOURCES CANADA (NRCAN) AND IS MADE AVAILABLE FOR CODE USERS BY THE MINISTRY OF MUNICIPAL AFFAIRS AND HOUSING. USERS SHOULD ALWAYS CONSULT WITH THE AUTHORITY HAVING JURISDICTION, IF THE CHECKLIST IS GOING TO BE SUBMITTED TO THAT AUTHORITY.   THE MINISTRY OF MUNICIPAL AFFAIRS AND HOUSING AND NRCAN DO NOT ASSUME RESPONSIBILITY FOR ERRORS OR OVERSIGHTS RESULTING FROM THE INFORMATION CONTAINED HEREIN.  "]
["PLEASE FILL IN THE ACTUAL VALUES INSTALLED AND CHECK BOXES AS THEY APPLY."]
["OBC SB-10 COMPLIANCE SUMMARY                                                     "]
[]
["Energy Efficiency Design:"]
["There are three energy compliance options to meet the requirements of OBC SB-10 Division 3.  Please select the conformance option selected for this project. The energy efficiency of all buildings must be designed to:"]
[]
["Compliance Path",null,null,null,null,null,null,null,"Forms to Complete"]
[]
["(A) Achieve the energy efficiency levels attained by conforming to the ASHRAE 90.1-2013, “Energy Standard for Buildings Except Low-Rise Residential Buildings” and Chapter 2 of SB-10 (Division 3).",null,null,null,null,null,null,null,"FORM A"]
["This compliance path includes both prescriptive and performance path options.  Please proceed to Form A."]
["(B) Achieve the energy efficiency levels attained by conforming to the National Energy Code of Canada for Buildings 2015 and Chapter 3 of SB-10 (Division 3).",null,null,null,null,null,null,null,"COMPLETE NECB COMPLIANCE WORKBOOK"]
["This compliance path includes both prescriptive and performance path options.  Please proceed to Compliance Documents Checklist tab within the NECB Compliance Workbook."]
["(C) Section 7 “Energy Efficiency” of 2014 ANSI/ASHRAE/USGBC/IES 189.1, excluding Sections 7.2.b, 7.4.7.3, 7.4.8 and 7.5"]

{"sheet":"Compliance Documents Checklist","index":2,"n_rows":32,"n_cols":3,"rows_kept":32,"cut":false,"hidden":false,"merged":[[1,2,1,8],[0,0,0,1],[0,2,0,8],[1,0,1,1],[16,0,16,4],[11,0,11,4],[6,0,6,4],[7,0,10,8],[12,0,15,8],[31,0,31,4],[31,5,31,8],[32,0,33,8],[2,0,3,8],[29,0,30,8],[22,0,25,8],[27,0,28,8],[4,0,5,8]]}
["Project Name",null,{"$f":"'How to Use this Document'!$C$16","v":"Enter project name on 'How to Use this Document' tab"}]
["Contact Person",null,{"$f":"'How to Use this Document'!$C$17","v":"Enter contact person name on 'How to Use this Document' tab"}]
["Compliance Documents Checklist"]
[]
["Check the box beside the compliance path you will use for each Part of the NECB."]
[]
["Building Envelope (NECB Part 3):"]
[]
[]
[]
[]
["Lighting (NECB Part 4):"]
[]
[]
[]
[]
["HVAC (NECB Part 5):"]
[]
[]
[]
[]
["Service Water Heating (NECB Part 6):"]
[]
[]
[]
[]
["Electrical Power Systems and Motors (NECB Part 7):"]
[]
[]
["or"]
[]
["Building Energy Performance Compliance Path (NECB Part 8)"]

{"sheet":"Envelope - Prescriptive","index":3,"n_rows":270,"n_cols":11,"rows_kept":270,"cut":false,"hidden":false,"merged":[[19,9,27,9],[49,9,66,9],[85,9,93,9],[94,9,102,9],[76,9,78,9],[79,9,81,9],[34,9,36,9],[107,0,109,8],[67,0,67,8],[68,0,70,8],[85,0,87,8],[94,0,96,8],[103,0,103,8],[104,0,106,8],[79,0,81,8],[82,0,82,8],[83,0,83,8],[84,0,84,8],[91,0,93,8],[49,0,51,8],[52,0,54,8],[28,9,30,9],[31,9,33,9],[55,0,57,8],[0,0,0,1],[0,2,0,8],[1,0,1,1],[48,0,48,8],[19,0,21,8],[28,0,30,8],[31,0,33,8],[34,0,36,8],[37,0,38,8],[39,0,39,8],[40,0,40,8],[41,0,41,8],[42,0,44,8],[45,0,47,8],[1,2,1,8],[25,0,27,8],[4,0,5,8],[14,0,15,8],[16,0,17,2],[16,3,17,8],[22,0,24,8],[6,0,13,8],[262,0,264,8],[223,0,223,8],[224,0,226,8],[227,0,227,8],[228,0,230,8],[179,0,181,8],[185,0,185,8],[196,0,198,8],[161,0,161,8],[162,0,162,8],[163,0,163,8],[192,0,192,8],[164,0,166,8],[170,0,172,8],[173,0,175,8],[234,0,236,8],[240,0,242,8],[246,0,246,8],[247,0,249,8],[253,0,255,8],[202,0,204,8],[186,0,188,8],[208,0,210,8],[58,0,60,8],[61,0,63,8],[64,0,66,8],[71,0,73,8],[88,0,90,8],[97,0,99,8],[104,9,109,9],[116,9,121,9],[119,0,121,8],[75,0,75,8],[76,0,78,8],[143,9,154,9],[218,0,218,8],[100,0,102,8],[116,0,118,8],[199,0,201,8],[122,9,125,9],[122,0,125,8],[126,0,126,8],[127,0,129,8],[182,0,184,8],[167,0,169,8],[176,0,178,8],[110,0,112,8],[110,9,115,9],[113,0,115,8],[139,0,141,8],[139,9,141,9],[234,9,239,9],[130,0,132,8],[224,9,226,9],[155,9,160,9],[164,9,172,9],[173,9,178,9],[179,9,184,9],[186,9,191,9],[193,9,201,9],[220,9,222,9],[202,9,207,9],[208,9,216,9],[155,0,157,8],[133,0,135,8],[142,0,142,8],[143,0,145,8],[136,0,138,8],[146,0,148,8],[158,0,160,8],[189,0,191,8],[228,9,233,9],[217,0,217,8],[220,0,222,8],[219,0,219,8],[240,9,245,9],[247,9,258,9],[259,9,264,9],[266,9,271,9],[127,9,138,9],[42,9,47,9],[18,0,18,8],[149,0,151,8],[152,0,154,8],[193,0,195,8],[205,0,207,8],[214,0,216,8],[211,0,213,8],[231,0,233,8],[237,0,239,8],[243,0,245,8],[250,0,252,8],[269,0,271,8],[256,0,258,8],[259,0,261,8],[265,0,265,8],[266,0,268,8],[68,9,70,9],[71,9,73,9]]}
["Project Name",null,{"$f":"'How to Use this Document'!C16","v":"Enter project name on 'How to Use this Document' tab"}]
["Contact Person",null,{"$f":"'How to Use this Document'!C17","v":"Enter contact person name on 'How to Use this Document' tab"}]
[]
[]
["Section 3.1. General"]
[]
["Please enter here any building specific explanation with reference to the item number."]
[]
[]
[]
[]
[]
[]
[]
[]
[]
["Incomplete Items",null,null,{"$f":"SUM(COUNTIF(K20:K130,0),COUNTIF(K144:K269,0))-2","v":29}]
[]
[null,null,null,null,null,null,null,null,null,null,1]
["1 - This Section is to be completed for the building envelope in buildings with spaces covered by Article 3.1.1.2.",null,null,null,null,null,null,null,null,null,0]
[]
[]
["Explanation:"]
[]
[]
["Exemption 1: Those buildings whose heating and cooling system output capacity is less than that specified in Clause 3.1.1.2.(1).(b).",null,null,null,null,null,null,null,null,null,0]
[]
[]
["2 - The thermal characteristics of the buildings envelope are determined through calculations and tests as described in Article 3.1.1.5.",null,null,null,null,null,null,null,null,null,0]
[]
[]
["3 - The fenestration and door areas of the building envelope are calculated as described in Article 3.1.1.6.",null,null,null,null,null,null,null,null,null,0]
[]
[]
["4 - The overall thermal transmittance of each building envelope assembly is calculated as described in Article 3.1.1.7.",null,null,null,null,null,null,null,null,null,0]
[]
[]
["Section 3.2. Prescriptive Path"]
[]
[]
["3.2.1. General"]
["3.2.1.1. Protection of Insulation Material"]
["5 - The building envelope is designed to avoid increasing the overall thermal transmittance of the insulation material due to the factors described in Sentence 3.2.1.1.(1).",null,null,null,null,null,null,null,null,null,0]
[]
[]
["Exemption 1: Where any of the conditions described in Sentence 3.2.1.1.(1) occurs as a result of the designed building envelope system, the effect of these factors on the overall thermal transmittance of the insulation material is calculated in accordance with Article 3.1.1.5."]
[]
[]
["3.2.1.2. Continuity of Insulation"]
["6 - Intersections and partial penetrations of the building envelope, as required by Sentence 3.2.1.2.(1) do not break the continuity of insulation and do not increase the overall thermal transmittance at their projected area to more than permitted in the prescriptive path, Section 3.2.",null,null,null,null,null,null,null,null,null,0]
[null,null,null,null,null,null,null,null,null,null,0]
[]
["Exemption 1: Where an interior wall breaks the continuity of insulation, as described in 3.2.1.2., it is insulated on both sides and with an overall thermal transmittance no more than that required for the exterior wall, as required by Sentence 3.2.1.2.(2).."]
[]
[]
["Exemption 2: Where an ornamentation or appendage other than a balcony slab breaks the continuity of the building envelope according to Sentence 3.2.1.2.(3)., it is insulated on both sides and to an overall thermal transmittance, as required by Sentence 3.2.1.2.(3).."]
[]
[]
["Exemption 3: Where the building envelope assemblies in the same plane intersects but their respective expanses of insulation do not, expanses of insulation are extended, according to 3.2.1.2.(4).."]
[]
[]
["Exemption 4: Where mechanical ducts and chases or electrical system components, described in 3.2.1.2.(5)., are placed within and parallel to the building envelope, the overall thermal transmittance of the building envelope at the projected area of the mechanical or electrical system is not increased, according to 3.2.1.2.(5).."]
[]
[]
["Exemption 5: Joints between components of the building envelope are insulated to provide continuity across such joints, according to Sentence 3.2.1.2.(6).."]
[]
[]
["3.2.1.3. Spaces Heated to Different Temperatures"]
["7 - The overall thermal transmittance, U1, of the building assemblies separating conditioned spaces that are intended to be heated to temperatures that differ by more than 10°C is not greater than that obtained with the equation in Sentence 3.2.1.3.(1)..",null,null,null,null,null,null,null,null,null,0]
[]
[]
["Explanation:"]
[]
[]
[]
["3.2.1.4. Allowable Fenestration and Door Area"]
["8 - The maximum allowable total vertical fenestration and door area to gross wall area ratio (FDWR) of the building, determined according to Article 3.1.1.6., meets the requirements of Sentence 3.2.1.4.(1)..                                                                                                                                                                                                                                       The FDWR of the building is                                 .",null,null,null,null,null,null,null,null,null,0]
[]
[]
["9 - The total skylight area is less than 5% of gross roof area as specified in Sentence 3.1.2.4.(2)..                                                                 ",null,null,null,null,null,null,null,null,null,0]
[]
[]
[]
["3.2.2. Above-ground Components of the Building Envelope"]
["3.2.2.1. Vestibules"]
["10 - Applicable doors that separate conditioned spaces from the exterior are protected with an enclosed vestibule that meet the requirements of Sentence 3.2.2.1.(1)..",null,null,null,null,null,null,null,null,null,0]
[]
[]
["Explanation:"]
[]
[]
["Exemption 1: Vestibules are not required for the scenarios and locations described in Sentence 3.2.2.1.(3).."]
[]
[]
["11 - Vestibules are designed so the opening of the interior and exterior doors are not required to be open at the same time such that they meet the requirements of Sentence 3.2.2.1.(2)..",null,null,null,null,null,null,null,null,null,1]
[]
[]
["Explanation:"]
[]
[]
["Exemption 1: Certain barrier-free entrances are exempt according to the requirements of Sentence 3.2.2.1.(2).."]
[]
[]
["3.2.2.2. Thermal Characteristics of Above-ground Opaque Building Assemblies"]
["12 a) - Applicable above ground opaque building assemblies or portions thereof have overall thermal transmittances, for the heating-degree day value where the building is located, that are no greater than those specified in Table 3.2.2.2. and SB-10 Chapter 3 - 1.1.1.6 as described in 3.2.2.2.(1).",null,null,null,null,null,null,null,null,null,0]
[]
[]
["Explanation:"]
[]
[]
["12 b) - Applicable above ground opaque building assemblies or portions thereof in semi-heated buildings have overall thermal transmittances, for the heating-degree day value where the building is located, that are no greater than those specified in Table 3.2.2.2. and SB-10 Chapter 3 - 1.1.1.6 as described in 3.2.2.2(2)."]
[]
[]
["Explanation:"]
[]
[]
["12 c) - Surfaces with embedded radiant heating or cooling elements have a thermal transmittance no greater than that required by Sentence 3.2.2.2.(4). and SB-10."]
[]
[]
["Explanation:"]
[]
[]
["13 - The overall thermal transmittance of portions of a foundation wall that are above ground, is not more than that shown in Tables 3.2.2.2. and SB-10 Chapter 3 - 1.1.1.6, if they meet the conditions of Sentence 3.2.2.2.(3).",null,null,null,null,null,null,null,null,null,0]
[]
[]
[]
["3.2.2.3. Thermal Characteristics of Fenestration"]
["14a - The overall thermal transmittance of fenestration is not more than that specified in Table 3.2.2.3. for the applicable heating-degree-day category and SB-10, as determined in accordance with Article 3.1.1.5., according to Sentence 3.2.2.3.(2) and SB-10.",null,null,null,null,null,null,null,null,null,0]
[]
[]
["Explanation:",null,null,null,null,null,null,null,null,null,0]
[]
[]
["Permission 1: Skylights with overall thermal transmittances exceeding the values specified in Table 3.2.2.3. and SB-10, meet the requirements of maximum area and overall thermal transmittance of Sentence 3.2.2.3.(3).",null,null,null,null,null,null,null,null,null,0]
[]
[]
["Explanation:"]
[]
[]
["14b - The solar heat gain coefficient of fenestration complies with Table 3.2.2.3.A as seen in SB-10 Chapter 3.",null,null,null,null,null,null,null,null,null,0]
[]
[]
["3.2.2.4. Thermal Characteristics of Doors and Access Hatches"]
["15a - The overall thermal transmittance of applicable doors are not more than the requirements listed in Table 3.2.2.4. and SB-10 Chapter 3 as described by Sentence 3.2.2.4(1). Similarly, for semi-heated buildings refer to Table 3.2.2.4 as per NECB Clause 3.2.2.4.(2).",null,null,null,null,null,null,null,null,null,1]
[]
[]
["Explanation:"]
[]
[]
["Exemption 1: Doors need not comply with Sentence 3.2.2.4.(1)., if the area and overall thermal tranmittance requirements of Sentence 3.2.2.4.(3). apply.\n"]
[]
[]
["Exemption 2: The door types listed in Sentence 3.2.2.4.(5). need not comply with Sentence 3.2.2.4.(1).."]
[]
[]
["16 - Access hatches that are part of a building envelope are insulated to a nominal thermal transmittance not more than indicated in Sentence 3.2.2.4.(4).",null,null,null,null,null,null,null,null,null,0]
[]
[]
["Explanation:"]
[]
[]
[]
["3.2.3. Building Assemblies in Contact with the Ground"]
["3.2.3.1. Thermal Characteristics of Walls in Contact with the Ground"]
["17 - The overall thermal transmittance of applicable walls or portions thereof that are below the exterior ground level and are part of the building envelope not covered by Sentence 3.2.3.1.(4)., is not greater than specified in Table 3.2.3.1. and SB-10 Chapter 3. Similarly, for semi-heated buildings refer to NECB Clause 3.2.3.1.(2) and Table 3.2.3.1.",null,null,null,null,null,null,null,null,null,0]
[]
[]
["Explanation:"]
[]
[]
["Exemption 1: Surfaces of a wall or portion thereof that are below the exterior ground level with embedded radiant heating or cooling elements have a thermal transmittance no greater than that required in Sentence 3.2.3.1.(4)."]
[]
[]
["18 - Insulation on walls or portions thereof that are in contact with the ground extend 2.4 m down according to the requirements of Sentence 3.2.3.1.(3).",null,null,null,null,null,null,null,null,null,0]
[]
[]
["Explanation:"]
[]
[]
["19 - Where the top of the footing is less than 0.6 m below the exterior of the ground level, the floor is insulated for 1.2 m from the perimeter as specified in Sentence 3.2.3.1.(5).",null,null,null,null,null,null,null,null,null,0]
[]
[]
["Explanation:"]
[]
[]
["3.2.3.2. Thermal Characteristic of Roofs in Contact with the ground"]
["20 - The overall thermal transmittance of below-ground roofs, as described in 3.2.3.2., are not greater than the requirements of Sentence 3.2.3.2.(1) and 3.2.3.2.(2). and SB-10, for the applicable heating degree-day category.",null,null,null,null,null,null,null,null,null,0]
[]
[]
["Explanation:"]
[]
[]
["3.2.3.3. Thermal Characteristics of Floors in Contact with the Ground"]
["21 - The overall thermal transmittance of floors separating conditioned space as described in Sentence 3.2.3.3.(1)., or for semi-heated buildings as described in Sentence 3.2.3.3.(2)., are not greater than indicated in Table 3.2.3.1. and SB-10, for the applicable heating degree-day category.",null,null,null,null,null,null,null,null,null,0]
[]
[]
["Explanation:"]
[]
[]
["Exemption 1:  Floors-on-ground with embedded heating and cooling pipes, as described in 3.2.3.3.(4) meet the overall transmittance requirements for building assemblies in contact with the ground according to Table 3.2.3.1., for the applicable heating degree-day category, insulated under their full area."]
[]
[]
["22 - Floors-on-ground with no embedded heating or cooling that require insulation, have insulation installed per the requirements of Sentence 3.2.3.3.(3) and Table 3.2.3.1., for the applicable heating degree-day category.",null,null,null,null,null,null,null,null,null,0]
[]
[]
["Explanation:"]
[]
[]
["23 - Applicable floors-on-ground are insulated vertically around the perimeter of the floor in accordance with Sentence 3.2.3.3.(5).. ",null,null,null,null,null,null,null,null,null,0]
[]
[]
["Explanation:"]
[]
[]
["Exemption 1: Exterior insulation is installed according to the requirements of Sentence 3.2.3.3.(5).."]
[]
[]
[]
["3.2.4. Air Leakage"]
["3.2.4.1. General"]
["24 - The building envelope is designed and constructed with a continuous air barrier system comprised of air barrier assemblies to control air leakage into and out of the conditioned space, in accordance with Sentence 3.2.4.1..",null,null,null,null,null,null,null,null,null,0]
[]
[]
["3.2.4.2. Opaque Building Assemblies"]
["25 - All opaque building assemblies that act as environmental separators include an air barrier assembly conforming with Sentence 3.2.4.2.(2) or 3.2.4.2.(3)..",null,null,null,null,null,null,null,null,null,0]
[]
[]
["3.2.4.3. Fenestration"]
["26 - Metal and glass curtain walls that act as environmental separators have an air leakage not greater than specified in Sentence in 3.2.4.3.(2)..",null,null,null,null,null,null,null,null,null,0]
[]
[]
["Explanation:"]
[]
[]
["27 - Fixed windows and skylights that act as environmental separators have an air leakage rate not greater than specified in Sentence 3.2.4.3.(3)..",null,null,null,null,null,null,null,null,null,0]
[]
[]
["Explanation:"]
[]
[]
["28 - Operable windows and skylights that act as environmental separators have an air leakage rate not greater than specified in Sentence 3.2.4.3.(4)..",null,null,null,null,null,null,null,null,null,0]
[]
[]
["Explanation:"]
[]
[]
["3.2.4.4. Doors"]
["29 - Doors that act as environmental separators have an air an leakage rate not greater than specified in Sentence 3.2.4.4.(1)..",null,null,null,null,null,null,null,null,null,0]
[]
[]
["Explanation:"]
[]
[]
["Exemption 1: Revolving doors, automatic commercial sliding doors, and overhead doors described in Sentence 3.2.4.4.(2). that acts as environmental separators have an air leakage rate not greater than specified in Sentence 3.2.4.4.(2)., when tested according to the requirements of Sentence 3.2.4.4.(2).."]
[]
[]
["Exemption 2: Main entry exterior doors that act as environmental separators meet the requirements of Sentence 3.2.4.4.(3).."]
[]
[]
["30 - Loading docks that interface with truck boxes have weather seals, to meet the requirements of 3.2.4.4.(4)..",null,null,null,null,null,null,null,null,null,0]
[]
[]
["Explanation:"]
[]
[]
["3.2.4.5. Fireplace Doors"]
["31 - Fireplaces are equipped with doors or enclosures meeting the requirements of 3.2.4.4.(4)., to restrict air movement through the chimney.",null,null,null,null,null,null,null,null,null,0]
[]
[]
["Explanation:"]

{"sheet":"Envelope - Simple Trade Off","index":4,"n_rows":130,"n_cols":11,"rows_kept":130,"cut":false,"hidden":false,"merged":[[117,0,117,2],[117,3,117,5],[117,6,117,7],[39,0,39,8],[19,0,21,8],[22,0,24,8],[25,0,27,8],[28,0,30,8],[31,0,33,8],[102,3,102,7],[90,0,91,8],[95,3,95,5],[96,3,96,5],[107,0,108,2],[107,3,108,5],[107,6,108,7],[95,6,95,7],[96,6,96,7],[101,6,101,7],[94,0,94,2],[94,3,94,5],[111,6,111,7],[88,0,89,8],[75,0,77,8],[78,0,78,8],[79,0,81,8],[82,0,84,8],[85,0,87,8],[69,9,71,9],[116,3,116,5],[116,6,116,7],[19,9,27,9],[28,9,30,9],[16,0,17,2],[69,0,71,8],[72,0,74,8],[31,9,33,9],[34,9,36,9],[42,9,47,9],[48,9,59,9],[0,0,0,1],[0,2,0,8],[1,0,1,1],[1,2,1,8],[42,0,44,8],[41,0,41,8],[60,0,62,8],[66,0,68,8],[16,3,17,8],[45,0,47,8],[51,0,53,8],[57,0,59,8],[54,0,56,8],[34,0,36,8],[37,0,38,8],[63,0,65,8],[48,0,50,8],[6,0,13,8],[40,0,40,8],[14,0,15,8],[18,0,18,8],[4,0,5,8],[72,9,74,9],[60,9,62,9],[75,9,77,9],[79,9,81,9],[82,9,84,9],[85,9,87,9],[63,9,65,9],[66,9,68,9],[129,9,131,9],[126,0,128,8],[129,0,131,8],[120,0,121,7],[95,0,95,2],[96,0,96,2],[102,0,102,2],[123,9,125,9],[126,9,128,9],[119,3,119,7],[123,0,125,8],[119,0,119,2],[109,6,109,7],[118,0,118,2],[118,3,118,5],[118,6,118,7],[105,8,108,8],[103,0,104,7],[110,0,110,2],[110,3,110,5],[110,6,110,7],[109,3,109,5],[109,0,109,2],[111,0,111,2],[111,3,111,5],[116,0,116,2],[100,0,100,2],[100,3,100,5],[100,6,100,7],[115,0,115,2],[115,3,115,5],[115,6,115,7],[101,3,101,5],[101,0,101,2],[105,0,106,7],[114,0,114,2],[114,3,114,5],[114,6,114,7],[112,0,112,2],[112,3,112,5],[112,6,112,7],[113,0,113,2],[113,3,113,5],[113,6,113,7],[92,6,93,7],[92,0,93,2],[94,6,94,7],[92,3,93,5],[98,0,98,2],[98,3,98,5],[98,6,98,7],[99,0,99,2],[99,3,99,5],[99,6,99,7],[97,0,97,2],[97,3,97,5],[97,6,97,7]]}
["Project Name",null,{"$f":"'Compliance Documents Checklist'!C1:I1","v":"Enter project name on 'How to Use this Document' tab"}]
["Contact Person",null,{"$f":"'Compliance Documents Checklist'!C2:F2","v":"Enter contact person name on 'How to Use this Document' tab"}]
[]
[]
["Section 3.1. General"]
[]
["Please enter here any building specific explanation with reference to the item number."]
[]
[]
[]
[]
[]
[]
[]
[]
[]
["Incomplete Items ",null,null,{"$f":"SUM(COUNTIF(K41:K49,0),COUNTIF(K61:K132,0))","v":12}]
[]
[]
["1 - This Section is to be completed for the building envelope in buildings with spaces covered by Article 3.1.1.2..",null,null,null,null,null,null,null,null,null,0]
[]
[]
["Explanation: "]
[]
[]
["Exemption 1: Buildings whose heating and cooling system output capacity is less than that specified in Clause 3.1.1.2.(1).(b).."]
[]
[]
["2 - The thermal characteristics of the buildings envelope are determined through calculations and tests as described in Article 3.1.1.5..",null,null,null,null,null,null,null,null,null,0]
[]
[]
["3 - The fenestration and door areas of the building envelope are calculated as described in Article 3.1.1.6..",null,null,null,null,null,null,null,null,null,0]
[]
[]
["4 - The overall thermal transmittance of each building envelope assemblies is calculated as described in Article 3.1.1.7..",null,null,null,null,null,null,null,null,null,0]
[]
[]
["Section 3.3. Envelope Simple Trade-off Path"]
[]
[]
["3.3.1. General"]
["3.3.1.1. Application and Limitations"]
["5 - The overall thermal transmittance of the building envelope assemblies with embedded radiant heating or cooling is not increased to more than the overall thermal transmittance permitted by Sentence 3.2.2.2.(3)., as required by Sentence 3.3.1.1.(5).",null,null,null,null,null,null,null,null,null,0]
[]
[]
["Explanation:"]
[]
[]
["6 - If construction techniques are used, resulting in increased performance compared to those required to be used by Articles 3.2.1.1. and 3.2.2.1. and Subsection 3.2.4., that difference in performance is not used in trade-off calculations, as required in Sentence 3.3.1.1.(6).",null,null,null,null,null,null,null,null,null,0]
[]
[]
["Explanation:"]
[]
[]
["Permission 1: Building envelope components used are more energy-efficient than those prescribed in Section 3.2. as modified by SB-10, and the trade-off calculation is taking this increased performance level into account, for those that can be quantified and are not dependent on occupant interaction, as required by Sentence 3.3.1.1.(7).",null,null,null,null,null,null,null,null,null,0]
[]
[]
["Explanation:"]
[]
[]
["11 - The simple trade-off path varies only from the maximum overall thermal transmittance of above ground assemblies and to the allowable fenestration and door areas prescribed in Section 3.2., as demonstrated using the equations in Article 3.3.1.2..",null,null,null,null,null,null,null,null,null,0]
[]
[]
["12 - The building envelope will not transfer more energy than it would if all its components complied with that Section, as required by Sentence 3.3.3.1.(1)..",null,null,null,null,null,null,null,null,null,0]
[]
[]
["13 - The building set-point temperature is 18C or above, as required by Sentence 3.3.3.1.(2)..",null,null,null,null,null,null,null,null,null,0]
[]
[]
["14 - The building is not an addition or considered a semi-heated building, according to the definitions from Sentence 3.3.1.1.(2).",null,null,null,null,null,null,null,null,null,0]
[]
[]
["15 - Vertical above-ground portions of the building envelope are only traded off against other veritcal above-ground portions of the building envelope, as required by Sentence 3.3.1.1.(3).",null,null,null,null,null,null,null,null,null,0]
[]
[]
["16 - Horizontal above-ground portions of the building envelope are only traded off against other horizontal above-ground portions of the building envelope, as  required by Sentence 3.3.1.1.(4).",null,null,null,null,null,null,null,null,null,0]
[]
[]
["3.3.1.2. Simple Trade-off Calculations"]
["17 - The sum of the areas of all above-ground assemblies in the proposed building is equal to the sum of the areas of the corresponding  above-ground assemblies in the reference building, as required by Sentence 3.3.1.2.(1).",null,null,null,null,null,null,null,null,null,0]
[]
[]
["18 - Compliance is determined with the equation, as required by Sentence 3.3.1.2.(2), with modified requirements for determining reference building vertical fenestration and skylight areas per SB-10 Division 3 Chapter 3 Sentences 1.1.1.6.(6) and 1.1.1.6.(7).",null,null,null,null,null,null,null,null,null,0]
[]
[]
["19 - Complete the table below with the overall thermal transmittance for each above-ground assembly in the proposed and reference buildings.",null,null,null,null,null,null,null,null,null,0]
[]
[]
["Assembly Summary of the Proposed Building"]
[]
[]
[]
["Assembly Location",null,null,"Overall Thermal Transmittance of Assembly (W/m2K)",null,null,"Area of Assembly (m2)"]
[]
[null,null,null,null,null,null,null,null,{"$f":"G95*D95","v":0}]
[null,null,null,null,null,null,null,null,0]
[null,null,null,null,null,null,null,null,0]
[null,null,null,null,null,null,null,null,{"$f":"G98*D98","v":0}]
[null,null,null,null,null,null,null,null,{"$f":"G99*D99","v":0}]
[null,null,null,null,null,null,null,null,{"$f":"G100*D100","v":0}]
[null,null,null,null,null,null,null,null,{"$f":"G101*D101","v":0}]
[null,null,null,null,null,null,null,null,0]
["Total",null,null,{"$f":"I103","v":0},null,null,null,null,{"$f":"SUM(I95:I102)","v":0}]
["Assembly Summary of the Reference Building"]
[]
[]
[]
["Assembly Location",null,null,"Overall Thermal Transmittance of Assembly (W/m2K)",null,null,"Area of Assembly (m2)"]
[]
[null,null,null,null,null,null,null,null,{"$f":"G110*D110","v":0}]
[null,null,null,null,null,null,null,null,0]
[null,null,null,null,null,null,null,null,0]
[null,null,null,null,null,null,null,null,0]
[null,null,null,null,null,null,null,null,0]
[null,null,null,null,null,null,null,null,0]
[null,null,null,null,null,null,null,null,0]
[null,null,null,null,null,null,null,null,{"$f":"G117*D117","v":0}]
[null,null,null,null,null,null,null,null,0]
[null,null,null,null,null,null,null,null,0]
["Total",null,null,{"$f":"I120","v":0},null,null,null,null,{"$f":"SUM(I110:I119)","v":0}]
[]
[]
[]
["20 - The overall thermal transmittance of all above-ground assemblies of the envelope of the proposed building is as follows:",null,null,null,null,null,null,null,null,null,1]
[null,null,null,null,null,null,null,null,null,null,1]
[]
["21 - The overall thermal transmittance of all above-ground assemblies of the envelope of the reference building is as follows:",null,null,null,null,null,null,null,null,null,1]
[null,null,null,null,null,null,null,null,null,null,1]
[]
["22 - The overall thermal transmittance of the proposed building is less than or equal to that of the reference building, as required by Subsection 3.3.3. (This checkbox is automatically updated, see help).",null,null,null,null,null,null,null,null,null,0]

{"sheet":"Envelope - Detailed TOP","index":5,"n_rows":191,"n_cols":11,"rows_kept":191,"cut":false,"hidden":true,"merged":[[19,9,27,9],[22,0,24,8],[25,0,27,8],[28,0,30,8],[28,9,30,9],[31,0,33,8],[31,9,33,9],[34,0,36,8],[34,9,36,9],[193,7,193,8],[42,0,44,8],[48,0,50,8],[54,0,56,8],[60,0,60,8],[70,0,72,8],[76,0,78,8],[79,0,79,8],[45,0,47,8],[51,0,53,8],[57,0,59,8],[61,0,63,8],[64,0,66,8],[67,0,69,8],[73,0,75,8],[176,0,176,8],[102,0,104,8],[108,0,110,8],[114,0,116,8],[120,0,122,8],[161,0,163,8],[164,0,166,8],[173,0,175,8],[123,0,123,8],[41,0,41,8],[19,0,21,8],[0,0,0,1],[0,2,0,8],[1,0,1,1],[1,2,1,8],[2,0,3,8],[14,0,15,8],[37,0,38,8],[18,0,18,8],[39,0,39,8],[40,0,40,8],[16,0,17,2],[16,3,17,8],[4,0,5,8],[6,0,13,8],[170,0,172,8],[154,0,156,8],[157,0,157,8],[158,0,160,8],[133,0,135,8],[136,0,138,8],[146,0,148,8],[167,0,169,8],[153,0,153,8],[149,0,149,8],[150,0,152,8],[150,9,152,9],[190,0,192,8],[177,0,179,8],[180,0,182,8],[183,0,183,8],[184,0,186,8],[187,0,189,8],[130,9,132,9],[80,9,82,9],[95,9,97,9],[98,9,100,9],[102,9,104,9],[80,0,82,8],[177,9,179,9],[180,9,182,9],[184,9,186,9],[187,9,189,9],[190,9,192,9],[164,9,169,9],[170,9,175,9],[154,9,156,9],[158,9,160,9],[161,9,163,9],[111,0,113,8],[85,0,87,8],[88,0,90,8],[98,0,100,8],[83,0,83,8],[84,0,84,8],[130,0,132,8],[139,0,139,8],[140,0,142,8],[143,0,145,8],[91,0,93,8],[94,0,94,8],[95,0,97,8],[101,0,101,8],[105,0,107,8],[117,0,119,8],[124,0,126,8],[127,0,129,8],[42,9,47,9],[48,9,59,9],[64,9,69,9],[70,9,78,9],[105,9,110,9],[111,9,116,9],[117,9,122,9],[133,9,138,9],[140,9,148,9],[124,9,126,9],[127,9,129,9],[61,9,63,9]]}
["Project Name",null,{"$f":"'Compliance Documents Checklist'!C1:I1","v":"Enter project name on 'How to Use this Document' tab"},null,null,null,null,null,null,"M"]
["Contact Person",null,{"$f":"'Compliance Documents Checklist'!C2:F2","v":"Enter contact person name on 'How to Use this Document' tab"}]
[]
[]
["Section 3.1. General"]
[]
["Please enter here any building specific explanation with reference to the item number."]
[]
[]
[]
[]
[]
[]
[]
[0]
[]
["Incomplete Items",null,null,{"$f":"SUM(COUNTIF(K41:K53,0),COUNTIF(K62:K142,0),COUNTIF(K149:K193,0))+A15","v":27}]
[]
[]
["1 - This Section is to be completed for the building envelope in buildings with spaces covered by Article 3.1.1.2..",null,null,null,null,null,null,null,null,null,1]
[]
[]
["Explanation:"]
[]
[]
["Exemption 1: Buildings whose heating and cooling system output capacity is less than that specified in Clause 3.1.1.2.(1).(b).."]
[]
[]
["2 - The thermal characteristics of the buildings envelope are determined through calculations and tests as described in Article 3.1.1.5..",null,null,null,null,null,null,null,null,null,0]
[]
[]
["3 - The fenestration and door areas of the building envelope are calculated as described in Article 3.1.1.6..",null,null,null,null,null,null,null,null,null,0]
[]
[]
["4 - The overall thermal transmittance of each building envelope assemblies is calculated as described in Article 3.1.1.7..",null,null,null,null,null,null,null,null,null,0]
[]
[]
["Section 3.3. Envelope Detailed Trade-off Path"]
[]
[]
["3.3.1. General"]
["3.3.1.1. Limitations"]
["5 -  The overall thermal transmittance of the building envelope assemblies with embedded radiant heating or cooling is not increased to more than the overall thermal transmittance permitted by Sentence 3.2.2.2.(3)., as required by Sentence 3.3.1.1.(2)..",null,null,null,null,null,null,null,null,null,0]
[]
[]
["Explanation:"]
[]
[]
["6 - If construction techniques are used, resulting in increased performance compared to those required to be used by Articles 3.2.1.1. and 3.2.2.1. and Subsection 3.2.4., that difference in performance is not used in trade-off calculations, as required in Sentence 3.3.1.1.(3)..",null,null,null,null,null,null,null,null,null,0]
[]
[]
["Explanation:"]
[]
[]
["Permission 1: Building envelope components used are more energy-efficient than those prescribed in Section 3.2., and the trade-off calculation is taking this increased performance level into account, for those that can be quantified and are not dependent on occupant interaction, as required by Sentence 3.3.1.1.(4)..",null,null,null,null,null,null,null,null,null,0]
[]
[]
["Explanation:"]
[]
[]
["3.3.1.2. Application"]
["7 - This Section applies only to buildings whose occupancy is known and for which sufficient information is known, as required by Sentence 3.3.1.2.(1)..",null,null,null,null,null,null,null,null,null,0]
[]
[]
["8 - If during construction, conditions are found to be altered from those used in the original trade-off assessment, the building must be reassessed as required by Sentence 3.3.1.2.(2)..",null,null,null,null,null,null,null,null,null,0]
[]
[]
["Explanation:"]
[]
[]
["9 - The procedures are applied to a single building at a time, as required by Sentence 3.3.1.2.(3)..",null,null,null,null,null,null,null,null,null,0]
[]
[]
["Explanation:"]
[]
[]
["Permission 1: Where a structure is divided into multiple buildings, application as permitted by Sentence 3.3.1.2.(4). was used."]
[]
[]
["3.3.1.3. Calculation Procedures"]
["10 - Trade-off calculations were completed as required by Article 3.3.1.3..",null,null,null,null,null,null,null,null,null,0]
[]
[]
["3.3.4. Detailed Trade-off Path"]
["3.3.4.1. Scope"]
["8 - The thermal characteristics of one or more components of the building envelope of a single building are permitted to be less energy-efficient than otherwise prescribed by Section 3.2., provided it can be demonstrated that the building envelope will not transfer more energy than it would if all its components complied with that Section, according to Sentence 3.3.4.1.(1).."]
[]
[]
["9 - The allowable fenestration and door areas are permitted to be varied from those prescribed in Article 3.2.1.4., provided it can be demonstrated that the building envelope will not transfer more energy than it would if all its components complied with Section 3.2., according to Sentence 3.3.4.1.(2).. "]
[]
[]
["10 - A semi-heated building is permitted to meet less stringent building envelope requirements if it can be shown that the total energy transferred through the building envelope of the proposed semi-heated building is less than or equal to the total energy transferred through the building envelope of the reference building, subject to the limitations stated in Sentence 3.3.4.1.(3).."]
[]
[]
["3.3.4.2. Compliance"]
["11 - The reference building’s building envelope energy target calculations, account for building components, in accordance with the requirements of Section 3.2. for the climatic zone under consideration, as required by Sentence 3.3.4.2.(1)..",null,null,null,null,null,null,null,null,null,0]
[]
[]
["12 - The annual energy consumption of the proposed building’s building envelope does not exceed the reference building’s building envelope energy target, as required by Sentence 3.3.4.2.(2)..",null,null,null,null,null,null,null,null,null,0]
[]
[]
["3.3.4.3. Treatment of Additions"]
["13 - Does the building contain an addition?",null,null,null,null,null,null,null,null,null,0]
[]
[]
["14 - For the purpose of detailed trade-off compliance calculations, the additions are assessed in either fashion required by Sentence 3.3.4.3.(1).",null,null,null,null,null,null,null,null,null,0]
[]
[]
["Explanation:"]
[]
[]
["15 - If the addition is being considered together with the existing building, the existing building's envelope parameters, as listed in Sentence 3.3.4.3.(2). are permitted to be combined with the addition's areas in calculating the addition's FDWR to determine the building envelope energy target. ",null,null,null,null,null,null,null,null,null,0]
[]
[]
["Explanation:"]
[]
[]
["16 - If the addition is being considered together with the existing building, the existing building's envelope parameters, as listed in Sentence 3.3.4.3.(3). are permitted to be combined with the addition's areas in calculating the addition's total skylight area to gross roof area ratio to determine the building envelope energy target.",null,null,null,null,null,null,null,null,null,0]
[]
[]
["Explanation:"]
[]
[]
["3.3.4.4. Compliance Calculations"]
["17 - Compliance with Subsection 3.3.4. is assessed through energy modelling that conforms to the specifications detailed in Article 3.3.4.4. and in Articles 3.3.4.5. to 3.3.4.10..",null,null,null,null,null,null,null,null,null,0]
[]
[]
["18 - The energy model calculations are performed for a one-year period, using the time interval no greater than that required by Sentence 3.3.4.4.(2)..",null,null,null,null,null,null,null,null,null,0]
[]
[]
["19 - Schedules and climatic data input in the energy model are for a time interval no greater than that required by Sentence 3.3.4.4.(3)..",null,null,null,null,null,null,null,null,null,0]
[]
[]
["20 - The calculation methods employed in the energy model, when a software is used, conforms to the requirement of Sentence 3.3.4.4.(4)..",null,null,null,null,null,null,null,null,null,0]
[]
[]
["Explanation:"]
[]
[]
["3.3.4.5. Climatic Data"]
["21 - The energy model calculations is performed using values of at least 10 years of measured climatic data, as required by Sentence 3.3.4.5.(1)..",null,null,null,null,null,null,null,null,null,0]
[]
[]
["Permission 1: For urban regions with several climatic data sets and for locations where weather data are not available, the energy model calculations are be performed using available weather data that best represent the climate at the building site, according to Sentence 3.3.4.5.(1).",null,null,null,null,null,null,null,null,null,0]
[]
[]
["Explanation:"]
[]
[]
["3.3.4.6. Thermal Mass"]
["22 - The energy model accounts for the effect of thermal mass , as required by Sentence 3.3.4.6.(1).",null,null,null,null,null,null,null,null,null,0]
[]
[]
["3.3.4.7. Space Temperature"]
["23 - The energy model calculations include dynamic calculation of indoor space temperatures, as required by Sentence 3.3.4.7.(1).",null,null,null,null,null,null,null,null,null,0]
[]
[]
["3.3.4.8. Building Envelope Loads"]
["24 - The energy model calculates heat transfer through walls, roofs and floors, including the dynamic response due to thermal characteristics of the particular assembly, as required by Sentence 3.3.4.8.(1)..",null,null,null,null,null,null,null,null,null,0]
[]
[]
["25 - Calculations of heat transfer through walls and roofs account for the effect of solar radiation absorbed on their exterior surfaces, including orientation and absorptance as required by Sentence 3.3.4.8.(2)..",null,null,null,null,null,null,null,null,null,0]
[]
[]
["26 - The energy model calculations accounts for heat transfer through fenestration, including temperature difference and transmission of solar radiation as required by Sentence 3.3.4.8.(3)..",null,null,null,null,null,null,null,null,null,0]
[]
[]
["Explanation:"]
[]
[]
["27 - Calculations of cooling and heating loads due to the transmission of solar radiation through fenestration account for the factors as required by Sentence 3.3.4.8.(4)..",null,null,null,null,null,null,null,null,null,0]
[]
[]
["Explanation:"]
[]
[]
["3.3.4.9. Proposed Building Envelope Annual Energy Consumption Calculation"]
["28 - The envelope annual energy consumption of the proposed building is calculated according to Article 3.3.4.9..",null,null,null,null,null,null,null,null,null,0]
[]
[]
["29 - The envelope annual energy consumption of the proposed building is:                              ",null,null,null,null,null,null,null,null,null,0]
[]
[]
["3.3.4.10. Reference Building Envelope Energy Target Calculation"]
["30 - The envelope annual energy consumption of the reference building is calculated according to the requirements of Article 3.3.4.10..",null,null,null,null,null,null,null,null,null,0]
[]
[]
["31 - The envelope annual energy consumption of the reference building is",null,null,null,null,null,null,null,null,null,1]
[]
[]
["32 - The annual energy consumption of the proposed building envelope is less than that of the reference building envelope as required by 3.3.4.",null,null,null,null,null,null,null,null,null,0]

{"sheet":"Lighting - Prescriptive","index":6,"n_rows":417,"n_cols":11,"rows_kept":417,"cut":false,"hidden":false,"merged":[[159,0,161,8],[162,0,164,8],[296,0,298,8],[286,0,286,8],[104,0,106,8],[107,0,107,8],[287,0,289,8],[290,0,292,8],[293,0,295,8],[116,0,116,8],[120,0,122,8],[138,0,140,8],[141,0,143,8],[144,0,146,8],[132,0,134,8],[135,0,137,8],[147,0,149,8],[150,0,152,8],[153,0,155,8],[156,0,158,8],[114,0,114,8],[115,0,115,8],[117,0,119,8],[123,0,125,8],[0,0,0,1],[0,2,0,8],[1,0,1,1],[50,0,52,8],[56,0,56,8],[14,0,15,8],[2,0,3,8],[19,0,19,8],[20,0,22,8],[18,0,18,8],[34,0,34,8],[35,0,35,8],[36,0,36,8],[4,0,5,8],[29,0,31,8],[40,0,42,8],[47,0,49,8],[53,0,55,8],[1,2,1,8],[23,0,25,8],[26,0,28,8],[37,0,39,8],[44,0,46,8],[43,0,43,8],[32,0,33,8],[16,0,17,2],[16,3,17,8],[305,0,305,8],[306,0,308,8],[312,0,314,8],[347,0,349,8],[350,0,352,8],[341,0,343,8],[319,0,321,8],[309,0,311,8],[315,0,315,8],[57,0,59,8],[60,0,62,8],[64,0,66,8],[63,0,63,8],[108,0,110,8],[67,0,69,8],[76,0,78,8],[326,0,328,8],[344,0,346,8],[70,0,72,8],[79,0,81,8],[83,0,85,8],[416,0,418,8],[395,0,397,8],[398,0,400,8],[383,0,385,8],[386,0,386,8],[387,0,387,8],[388,0,388,8],[389,0,391,8],[359,0,359,8],[360,0,360,8],[374,0,376,8],[377,0,379,8],[361,0,361,8],[362,0,364,8],[365,0,367,8],[368,0,370,8],[413,0,415,8],[371,0,373,8],[380,0,382,8],[392,0,394,8],[407,0,409,8],[37,9,42,9],[44,9,49,9],[50,9,55,9],[57,9,62,9],[64,9,72,9],[32,9,33,9],[20,9,31,9],[353,9,355,9],[83,9,88,9],[92,9,97,9],[98,9,103,9],[108,9,113,9],[117,9,125,9],[126,9,131,9],[255,9,260,9],[132,9,140,9],[141,9,149,9],[150,9,155,9],[156,9,161,9],[126,0,128,8],[111,0,113,8],[76,9,81,9],[73,0,75,8],[101,0,103,8],[82,0,82,8],[89,0,91,8],[92,0,94,8],[98,0,100,8],[86,0,88,8],[95,0,97,8],[6,0,13,8],[362,9,364,9],[365,9,367,9],[368,9,376,9],[377,9,385,9],[395,9,400,9],[413,9,418,9],[287,9,289,9],[290,9,292,9],[293,9,295,9],[296,9,298,9],[389,9,394,9],[322,9,324,9],[312,9,314,9],[316,9,321,9],[306,9,311,9],[344,9,352,9],[338,9,343,9],[356,9,358,9],[326,9,328,9],[73,9,75,9],[89,9,91,9],[104,9,106,9],[129,0,131,8],[165,0,167,8],[168,0,170,8],[171,0,173,8],[174,0,176,8],[162,9,176,9],[177,0,179,8],[177,9,182,9],[180,0,182,8],[183,0,185,8],[183,9,197,9],[186,0,188,8],[189,0,191,8],[192,0,194,8],[195,0,197,8],[198,0,200,8],[198,9,203,9],[201,0,203,8],[204,0,206,8],[204,9,218,9],[207,0,209,8],[210,0,212,8],[213,0,215,8],[216,0,218,8],[219,0,221,8],[219,9,233,9],[222,0,224,8],[225,0,227,8],[228,0,230,8],[231,0,233,8],[234,0,236,8],[234,9,248,9],[237,0,239,8],[240,0,242,8],[243,0,245,8],[246,0,248,8],[249,0,251,8],[249,9,254,9],[252,0,254,8],[268,0,270,8],[268,9,273,9],[271,0,273,8],[274,0,276,8],[274,9,279,9],[277,0,279,8],[258,0,260,8],[255,0,257,8],[261,0,261,8],[262,0,264,8],[265,0,267,8],[262,9,267,9],[407,9,412,9],[410,0,412,8],[401,0,403,8],[401,9,406,9],[404,0,406,8],[356,0,358,8],[280,0,282,8],[280,9,285,9],[283,0,285,8],[353,0,355,8],[338,0,340,8],[299,0,301,8],[299,9,304,9],[302,0,304,8],[329,0,331,8],[329,9,337,9],[332,0,334,8],[335,0,337,8],[316,0,318,8],[322,0,324,8],[325,0,325,8]]}
["Project Name",null,{"$f":"'Compliance Documents Checklist'!C1:I1","v":"Enter project name on 'How to Use this Document' tab"}]
["Contact Person",null,{"$f":"'Compliance Documents Checklist'!C2:F2","v":"Enter contact person name on 'How to Use this Document' tab"}]
[]
[]
["Section 4.1. General"]
[]
["Please enter here any building specific explanation with reference to the item number."]
[]
[]
[]
[]
[]
[]
[]
[]
[]
["Incomplete Items",null,null,{"$f":"COUNTIF(K20:K416,0)","v":47}]
[]
[]
["4.1.1. General"]
["1 - This Section is complete for all applicable lighting components in the building, as required by 4.2.1.2.(1)..",null,null,null,null,null,null,null,null,null,0]
[]
[]
["Exemption 1: Emergency lighting meeting the requirements of 4.1.1.2.(2).(a).."]
[]
[]
["Exemption 2: Lighting within dwelling units, as per 4.1.1.2.(2).(b).."]
[]
[]
["Exemption 3: Lighting in buildings where it is impractical, according to 4.1.1.2.(2).(c).."]
[]
[]
["Section 4.2. Prescriptive Path"]
[]
[]
["4.2.1. Interior Lighting Power"]
["4.2.1.1. Exit Signs"]
["2 - Power requirements for lighting units for exit signs conform to the standard listed in Sentence 4.2.1.1.(1)..",null,null,null,null,null,null,null,null,null,0]
[]
[]
["Explanation:"]
[]
[]
["4.2.1.2. Fluorescent Lamp Ballast"]
["3 - Fluorescent lamp ballasts conform to the standard listed in Sentence 4.2.1.2.(1)..",null,null,null,null,null,null,null,null,null,0]
[]
[]
["Explanation:"]
[]
[]
["4 - Electronic fluorescent lamp ballasts not within the scope of the standard listed in Sentence 4.2.1.2., conform to the Sentence 4.2.1.2.(2)..",null,null,null,null,null,null,null,null,null,0]
[]
[]
["Explanation:"]
[]
[]
["4.2.1.3. Limits to Installed Interior Lighting Power"]
["5 - The installed interior lighting power described in Article 4.2.1.4. does not exceed the value of the interior lighting power allowance determined using either the building area method described in Article 4.2.1.5., or the space-by-space method described in Article 4.2.1.6., as modified by SB-10.",null,null,null,null,null,null,null,null,null,0]
[]
[]
["Permission 1: The individual power allowances in each space of the building do not have to be met, as permitted by Sentence 4.2.1.3(2).."]
[]
[]
["4.2.1.4. Determination of the Installed Interior Lighting Power"]
["6 - The installed interior lighting power includes all power used by luminaires, including lamps, ballasts, transformers and controls, as required by Sentence 4.2.1.4.(1)..",null,null,null,null,null,null,null,null,null,0]
[]
[]
["Exemption 1: Lighting for the special cases listed in Sentence 4.2.1.4.(4)., need not be included in the calculation of installed interior lighting power."]
[]
[]
["Exemption 2: Lighting need not be included in the calculation of installed interior lighting power where its inclusion would have adverse effect as permitted Sentence 4.2.1.4.(5).."]
[]
[]
["7 - The installed interior lighting power is determined as required by Sentence 4.2.1.4.(2)..",null,null,null,null,null,null,null,null,null,0]
[]
[]
["8 - Luminaire wattage to be included in installed interior lighting power is determined in accordance with Sentence 4.2.1.4.(3)..",null,null,null,null,null,null,null,null,null,0]
[]
[]
["Explanation:"]
[]
[]
["4.2.1.5. Calculation of Interior Lighting Power Allowance Using the Building Area Method - Modified by SB-10"]
["9 - Calculation of interior lighting power allowance using the building area method as provided in Article 4.2.1.5. may be applied only where the interior lighting power allowance is being determined for an entire building, and the building type or an equivalent building type is identified in Table SB 4.2.1.5.-2017. ",null,null,null,null,null,null,null,null,null,0]
[]
[]
["Explanation:"]
[]
[]
["10 - Interior lighting power allowance calculations are based on the primary use for which the building is intended, as required by Sentence 4.2.1.5.(2)..",null,null,null,null,null,null,null,null,null,0]
[]
[]
["11 - 10% or less of the gross lighted area of the building can be classified as being of a building type other than the principal type for the building, as required by sentence 4.2.1.5.(3).. ",null,null,null,null,null,null,null,null,null,0]
[]
[]
["Explanation:"]
[]
[]
["12 - The building is of a type other than those listed in Table SB 4.2.1.5.-2017 and no equivalent building type can be selected, the interior lighting power allowance is calculated using the space-by-space method described in Article 4.2.1.6., as modified by SB-10.",null,null,null,null,null,null,null,null,null,0]
[]
[]
["Explanation:"]
[]
[]
["13 - The interior lighting power allowance, using the building area method, is calculated by multiplying the lighting power density, by the gross lighted area, as required by 4.2.1.5.(5). and SB-10. ",null,null,null,null,null,null,null,null,null,0]
[]
[]
["4.2.1.6. Calculation of Interior Lighting Power Allowance Using the Space-by-Space Method - Modified by SB-10"]
["14 - The interior lighting power allowance using the space-by-space method is determined according to Sentence 4.2.1.6.(1). with modifications by SB-10.",null,null,null,null,null,null,null,null,null,0]
[]
[]
["Explanation:"]
[]
[]
[]
["4.2.2. Interior Lighting Controls "]
["4.2.2.1. Interior Lighting Controls"]
["15 - Interior lighting controls are installed in accordance with Article 4.2.2.1..",null,null,null,null,null,null,null,null,null,1]
[]
[]
["Explanation:"]
[]
[]
["Exemption 1: Where LPD requirements are determined in accordance with the space-by-space method described in Article 4.2.1.6 and SB-10, the same space types have been used to determine applicable lighting control requirements from Table 4.2.1.6.."]
[]
[]
["16 - At least one manual lighting control device shall be installed in conformance with Sentence 4.2.2.1.(4) in each space type listed in Table 4.2.1.6 and SB 4.2.1.6.-2017, as in described in 4.2.2.1.(3).",null,null,null,null,null,null,null,null,null,0]
[]
[]
["Explanation:"]
[]
[]
["17 - Manual lighting control devices are installed in a readily accessible locations, according to Sentence 4.2.2.1.(4).",null,null,null,null,null,null,null,null,null,1]
[]
[]
["Explanation:"]
[]
[]
["Exemption 1: Manual Lighting control devices are located remotely under conditions described in Sentence 4.2.2.1.(5)."]
[]
[]
["18 - Lighting in spaces requiring controls that are restricted to \"Manual ON\", in accordance with Table 4.2.1.6, do not turn on automatically.",null,null,null,null,null,null,null,null,null,1]
[]
[]
["Explanation:"]
[]
[]
["Exemption 1: Where \"Manual ON\" operation of the general lighting would endanger the safety or security of building occupants"]
[]
[]
["19 - No greater than 50% of the lighting power for the general lighting that is restricted to “Partial Automatic ON”, in accordance with Table 4.2.1.6., is permitted to turn on automatically.",null,null,null,null,null,null,null,null,null,0]
[]
[]
["Explanation:"]
[]
[]
["20 - General lighting in spaces requiring “Bi-Level” lighting control in accordance with Table 4.2.1.6. has controls as described in 4.2.2.1.(9).",null,null,null,null,null,null,null,null,null,0]
[]
[]
["Explanation:"]
[]
[]
["21 - General lighting in primary and secondary sidelighted areas in spaces requiring “Automatic Daylight Responsive Controls for Sidelighting”, in accordance with Table 4.2.1.6., are separately controlled as described in Article 4.2.2.1.(10).",null,null,null,null,null,null,null,null,null,1]
[]
[]
["Explanation:"]
[]
[]
["Exemption 1: Primary sidelighted areas where the vertical projected distance from the top of the windows to the top of any adjacent structure divided by the horizontal distance from the window to the adjacent structure is greater than or equal to 2."]
[]
[]
["Exemption 1: Sidelighted areas where the total glazing area is less than 2 m2."]
[]
[]
["Exemption 1: Retail Spaces."]
[]
[]
["22- Photocontrols required in Sentence (10) reduce electric lighting power in response to available daylight, control the general lighting in the secondary sidelighted area, and are readily accessible for calibration adjustments in accordance to Article 4.2.2.1.(11).",null,null,null,null,null,null,null,null,null,0]
[]
[]
["Explanation:"]
[]
[]
["23 - General lighting in daylighted areas under skylights and roof monitors in spaces requiring “Automatic Daylight Responsive Controls for Toplighting”, in accordance with Table 4.2.1.6., are controlled in accordance with Sentence 4.2.2.1.(13).",null,null,null,null,null,null,null,null,null,1]
[]
[]
["Explanation:"]
[]
[]
["Exemption 1: Daylighted areas under skylights and roof monitors where it can be demonstrated that existing adjacent structures or natural objects block direct sunlight for more than 1 500 hours per year between 8 a.m. and 4 p.m."]
[]
[]
["Exemption 1: Daylighted areas where the visual transmittance, VT, of the skylights and roof monitors is less than 0.4."]
[]
[]
["Exemption 1: Spaces in buildings located above the 55°N latitude where the input power of the general lighting within daylighted areas is less than 200 W."]
[]
[]
["24 - Photocontrols required in Sentence (13) reduce electric lighting power in response to available daylight, control the general lighting in overlapping toplighted and sidelighted areas, and are readily accessible for calibration adjustments.",null,null,null,null,null,null,null,null,null,0]
[]
[]
["Explanation:"]
[]
[]
["25 - The power for general lighting in spaces requiring controls that are “Automatic Partial OFF”, in accordance with Table 4.2.1.6., automatically reduce by 50% or more within 20 min of the space being unoccupied, as described in 4.2.2.1.(16).",null,null,null,null,null,null,null,null,null,1]
[]
[]
["Explanation:"]
[]
[]
["Exemption 1: Lighting power density for the space is not greater than 8.6 W/m2."]
[]
[]
["Exemption 1: Space is lit by high-intensity discharge (HID) lamps."]
[]
[]
["Exemption 1: Power for the general lighting in the space reduces automatically by 30% or more within 20 min of the space being unoccupied."]
[]
[]
["26 - Lighting in spaces requiring controls that are “Automatic Full OFF”, in accordance with Table 4.2.1.6., is controlled as described in 4.2.2.1.(18).",null,null,null,null,null,null,null,null,null,1]
[]
[]
["Explanation:"]
[]
[]
["Exemption 1: General lighting and task lighting in shop and laboratory classrooms."]
[]
[]
["Exemption 1: General lighting and task lighting in spaces where automatic shut-off would endanger the safety or security of the building occupants."]
[]
[]
["Exemption 1: Lighting required to operate continuously due to operational requirements."]
[]
[]
["27 - Lighting in spaces requiring controls that are “Scheduled Shut-off”, in accordance with Table 4.2.1.6., automatically shuts off when the spaces are scheduled to be unoccupied as described in 4.2.2.1.(20) and under the conditions of 4.2.2.1.(21).",null,null,null,null,null,null,null,null,null,1]
[]
[]
["Explanation:"]
[]
[]
["Exemption 1: Where it is required to operate continuously due to operational requirements."]
[]
[]
["Exemption 1: Where it is located in spaces where patient care is rendered."]
[]
[]
["Exemption 1: Where is is located in spaces where automatic shut-off would endanger the safety or security of the building occupants."]
[]
[]
["28 - Control devices installed to meet the requirements of Sentence 4.2.2.1.(20) control the lighting for areas of not more than 2,500 m2 on not more than one floor.",null,null,null,null,null,null,null,null,null,0]
[]
[]
["Explanation:"]
[]
[]
["29 - Manual control devices installed to override the “Scheduled Shut-off” control device required in Sentence 4.2.2.1.(20) are as described in 4.2.2.1.(22).",null,null,null,null,null,null,null,null,null,0]
[]
[]
["Explanation:"]
[]
[]
["4.2.2.2. Lighting Controls in Storage Garages"]
["30 - Lighting in a storage garage is divided into zones no larger than 360 m2, as described in Sentence 4.2.2.2.(1).",null,null,null,null,null,null,null,null,null,0]
[]
[]
["Explanation:"]
[]
[]
["31 - Lighting power in each lighting zone referred to in Sentence 4.2.2.2.(1) is controlled by devices that automatically reduce the lighting power by at least 30% when no activity is detected for 20 min, as described in Sentence 4.2.2.2.(2).",null,null,null,null,null,null,null,null,null,0]
[]
[]
["Explanation:"]
[]
[]
["32- Lighting for covered vehicle entrances and exits from storage garages is separately controlled by devices that automatically reduce the lighting by at least 50% from sunset to sunrise, as described in Sentence 4.2.2.2.(3). ",null,null,null,null,null,null,null,null,null,0]
[]
[]
["Explanation:"]
[]
[]
["33 - Where the combined input power of all perimeter luminaires under the conditions described in Sentence 4.2.2.2.(4) exceeds 150 W, controls have been put in place as required by Sentence 4.2.2.2.(4).",null,null,null,null,null,null,null,null,null,0]
[]
[]
["Explanation:"]
[]
[]
["4.2.2.3. Determination of Primary and Secondary Sidelighted Areas"]
["34 - The total primary and secondary sidelighted areas are calculated according to Sentences 4.2.2.3.(1) and 4.2.2.3.(5) respectively.",null,null,null,null,null,null,null,null,null,0]
[]
[]
["35 - Each primary and secondary sidelighted area is calculated according to Sentences 4.2.2.3.(2) and 4.2.2.3.(6) respectively.",null,null,null,null,null,null,null,null,null,0]
[]
[]
["36 - The width of the primary and secondary sidelighted areas are calculated according to Sentences 4.2.2.3.(3) and 4.2.2.3.(7) respectively.",null,null,null,null,null,null,null,null,null,0]
[]
[]
["37 - The depth of the primary and secondary sidelighted areas are calculated according to Sentences 4.2.2.3.(4) and 4.2.2.3.(8) respectively.",null,null,null,null,null,null,null,null,null,0]
[]
[]
["38 - Where an adjacent primary sidelighted area ends at a vertical obstruction that is 1.5 m or higher or extends beyond the limit of an adjacent daylighted area under skylight or primary sidelighted area, then no secondary sidelighted area exists beyond such obstruction or the limit of such areas.",null,null,null,null,null,null,null,null,null,0]
[]
[]
["Explanation:"]
[]
[]
["4.2.2.4. Determination of Daylighting Area Under Rooftop Monitors"]
["39 - The daylighted area under rooftop monitors is that calculated as required by Sentence 4.2.2.4.(1).",null,null,null,null,null,null,null,null,null,0]
[]
[]
["Explanation:"]
[]
[]
["40 - The daylighted area under each rooftop monitor is calculated as the product of the width of the vertical glazing above the ceiling and the smallest of the horizontal distances with the heights and distances measured as required by Sentence 4.2.2.4.(2).",null,null,null,null,null,null,null,null,null,0]
[]
[]
["4.2.2.5. Determination of Daylighted Area Under Skylights"]
["41 - The daylighted area under skylights is calculated considered the combined daylighted overlapping areas, as required by 4.2.2.5.(1)..",null,null,null,null,null,null,null,null,null,0]
[]
[]
["Explanation:"]
[]
[]
["42 - The daylighted area under each skylight is calculated as the area of the skylight’s projection as required by Sentence 4.2.2.5.(2)..",null,null,null,null,null,null,null,null,null,0]
[]
[]
["4.2.2.6. Special Applications"]
["43 - The lighting applications listed in Sentence 4.2.2.6.(1) have separate contol devices.",null,null,null,null,null,null,null,null,null,0]
[]
[]
["44 - All lighting and switched receptacles used in guest rooms and suites in commercial temporary lodgings are automatically controlled so power supply turns off 20 min of the space being unoccupied, as described in Article 4.2.2.3.(2).",null,null,null,null,null,null,null,null,null,0]
[]
[]
["Explanation:"]
[]
[]
["Exemption 1:  Night lighting in bathrooms as described in Sentence 4.2.2.3.(4) or switched receptacles used for lighting controlled by captive key systems."]
[]
[]
["45 - Hotel suites have control devices meeting the requirements of Sentence 4.2.2.6.(2) at the entrance to each room as described by Sentence 4.2.2.3.(3).",null,null,null,null,null,null,null,null,null,0]
[]
[]
["Explanation:"]
[]
[]
["46 - Lighting and switched receptacles used for bathroom lighting in guest rooms and suites in commercial temporary lodgings are automatically controlled by a separate device that automatically turns off such lighting within 20 min of the space being unoccupied, as described in Article 4.2.2.3.(4). ",null,null,null,null,null,null,null,null,null,0]
[]
[]
["Explanation:"]
[]
[]
["Exemption 1: Luminaires in bathrooms, according to Sentence 4.2.2.6.(4)."]
[]
[]
["47 - All supplemental task lighting has control devices meeting the requirements of Sentence 4.2.2.3.(5).",null,null,null,null,null,null,null,null,null,0]
[]
[]
["Explanation:"]
[]
[]
[]
["4.2.3. Exterior Lighting Power"]
["4.2.3.1. Exterior Lighting - Modified by SB-10"]
["48 - Exterior lighting allowances are based on the lighting zone in which the building is located, as determined from Table SB 4.2.3.1.A-2017. as required by 4.2.3.1.(1).",null,null,null,null,null,null,null,null,null,0]
[]
[]
["49 - The basic site allowance to be applied in the calculation of maximum connected exterior lighting power in Sentences 4.2.3.1.(3) and 4.2.3.1.(4) does not exceed the limits specified in Table SB 4.2.3.1.B-2017. as required by 4.2.3.1.(2)..",null,null,null,null,null,null,null,null,null,0]
[]
[]
["50 - The exterior lighting power for each specific building exterior is determined according to Sentence 4.2.3.1.(3) and Table SB 4.2.3.1.C-2017.",null,null,null,null,null,null,null,null,null,0]
[]
[]
["Explanations:"]
[]
[]
["Exemption 1: Where the lighting is equipped with an independent control device that complies with Sentence 4.2.4, the special exterior lighting applications listed in Sentences 4.2.3.1.(5) need not comply with the requirements of Sentences 4.2.3.1.(1) to (4) (inclusively).",null,null,null,null,null,null,null,null,null,"Exemption 1: Where the lighting is equipped with an independent control device that complies with sentence 4.2.4, the special exterior lighting applications listed in Sentence 4.2.3.1.(5)., need not comply with the requirements of Sentences 4.2.3.1.(1) to (4) (inclusively)."]
[]
[]
["51 - The connected exterior lighting power for all general building exterior applications not listed in Table SB 4.2.3.1.C-2017 that are to be illuminated are determined as required by Sentence 4.2.3.1.(4) using SB 4.2.3.1.D-2017.",null,null,null,null,null,null,null,null,null,1]
[]
[]
["Explanations:"]
[]
[]
["Exemption 1: Where the lighting is equiped with a special exterior lighting applications listed in Sentence 4.2.3.1.(5)., the special exterior lighting applications need not comply with the requirements of Sentences 4.2.3.1.(1) to (4) (inclusively)."]
[]
[]
[]
["4.2.4. Exterior Lighting Controls"]
["4.2.4.1. Requirements"]
["52 - Applicable exterior lighting is controlled either by astronomical time controls, photosensors, a combination of photosensors and timer shut-off switch, or other types of controls that perform the same function as the aforementioned controls types, as required by Sentence 4.2.4.1.(1)..",null,null,null,null,null,null,null,null,null,0]
[]
[]
["Exemption 1: Exterior lighting for covered vehicle exterior entrances, exterior exits from buildings or parking structures need not comply with Sentences 4.2.4.1.(1) and (2) where it is required for reasons provided by 4.2.4.1.(3).."]
[]
[]
["53 - Applicable exterior lighting designated for dusk-to-dawn operation is controlled by  astronomical time controls, or photosensors, as required by Sentence 4.2.4.1.(2)..",null,null,null,null,null,null,null,null,null,0]
[]
[]
["Exemption 1: Exterior lighting for covered vehicle exterior entrances, exterior exits from buildings or parking structures need not comply with Sentences 4.2.4.1.(1) and (2) where it is required for reasons provided by 4.2.4.1.(3).."]
[]
[]
["54 - Exterior lighting, including advertising signage and parking lot lighting, is equipped with devices that have the capability to automatically reduce total connected lighting power by 30%, as described by Sentence 4.2.4.1.(5).",null,null,null,null,null,null,null,null,null,0]
[]
[]
["Explanation: "]
[]
[]
["55 - Building façade and landscape lighting has the capability to shut off automatically, as described by Sentence 4.2.4.1.(5).",null,null,null,null,null,null,null,null,null,0]
[]
[]
["Explanation: "]
[]
[]
["56 - All lighting schedule controllers are equipped with backup provisions for at least 10 h during a power outage, meeting the requirements of Sentence 4.2.4.1.(6).",null,null,null,null,null,null,null,null,null,0]
[]
[]
["Explanation: "]

{"sheet":"Lighting Trade-off Path","index":7,"n_rows":289,"n_cols":11,"rows_kept":289,"cut":false,"hidden":false,"merged":[[180,0,182,8],[177,0,179,8],[112,0,112,8],[0,0,0,1],[0,2,0,8],[1,0,1,1],[1,2,1,8],[2,0,3,8],[88,0,88,8],[16,0,17,2],[16,3,17,8],[32,0,33,8],[52,0,54,8],[55,0,57,8],[46,0,48,8],[165,0,167,8],[171,0,173,8],[83,0,85,8],[71,0,73,8],[40,9,45,9],[46,9,51,9],[64,0,64,8],[65,0,67,8],[86,0,86,8],[87,0,87,8],[4,0,5,8],[34,0,34,8],[35,0,35,8],[36,0,36,8],[37,0,39,8],[40,0,42,8],[14,0,15,8],[43,0,45,8],[49,0,51,8],[19,0,19,8],[20,0,22,8],[20,9,31,9],[23,0,25,8],[26,0,28,8],[29,0,31,8],[18,0,18,8],[52,9,57,9],[83,9,85,9],[233,0,233,8],[237,0,239,8],[187,0,189,8],[193,0,195,8],[199,0,201,8],[210,0,210,8],[288,0,290,8],[281,0,281,8],[282,0,284,8],[254,0,256,8],[257,0,259,8],[263,0,265,8],[269,0,271,8],[275,0,277,8],[243,0,245,8],[246,0,246,8],[247,0,249,8],[250,0,250,8],[251,0,253,8],[285,0,287,8],[206,0,208,8],[196,0,198,8],[202,0,202,8],[240,0,242,8],[219,0,221,8],[218,0,218,8],[222,0,222,8],[223,0,225,8],[190,0,192,8],[103,0,105,8],[109,0,111,8],[230,0,232,8],[229,0,229,8],[158,0,158,8],[159,0,161,8],[203,0,205,8],[212,0,214,8],[209,0,209,8],[211,0,211,8],[183,0,183,8],[184,0,186,8],[120,0,120,8],[121,0,123,8],[215,0,217,8],[106,0,108,8],[162,0,164,8],[168,0,170,8],[174,0,176,8],[234,0,236,8],[89,0,91,8],[92,0,94,8],[100,0,102,8],[58,0,60,8],[61,0,63,8],[113,0,115,8],[155,0,157,8],[133,0,133,8],[134,0,136,8],[137,0,139,8],[140,0,142,8],[146,0,148,8],[143,0,145,8],[149,0,151,8],[116,0,116,8],[117,0,119,8],[95,0,95,8],[124,0,126,8],[127,0,129,8],[130,0,132,8],[152,0,154,8],[96,0,98,8],[99,0,99,8],[282,9,284,9],[285,9,287,9],[288,9,290,9],[6,0,13,8],[240,9,242,9],[243,9,245,9],[247,9,249,9],[260,0,262,8],[266,0,268,8],[272,0,274,8],[278,0,280,8],[251,9,253,9],[254,9,256,9],[203,9,205,9],[212,9,214,9],[215,9,217,9],[219,9,221,9],[226,0,228,8],[230,9,232,9],[113,9,115,9],[117,9,119,9],[37,9,39,9],[58,9,60,9],[61,9,63,9],[100,9,105,9],[106,9,111,9],[121,9,126,9],[127,9,132,9],[140,9,145,9],[146,9,151,9],[159,9,164,9],[165,9,170,9],[171,9,176,9],[152,9,154,9],[155,9,157,9],[134,9,136,9],[137,9,139,9],[184,9,189,9],[257,9,262,9],[263,9,268,9],[269,9,274,9],[275,9,280,9],[177,9,182,9],[190,9,195,9],[196,9,201,9],[223,9,228,9],[234,9,239,9],[206,9,208,9],[65,9,73,9],[74,0,76,8],[74,9,82,9],[80,0,82,8],[68,0,70,8],[77,0,79,8],[89,9,91,9],[92,9,94,9],[96,9,98,9]]}
["Project Name",null,{"$f":"'Compliance Documents Checklist'!C1:I1","v":"Enter project name on 'How to Use this Document' tab"}]
["Contact Person",null,{"$f":"'Compliance Documents Checklist'!C2:F2","v":"Enter contact person name on 'How to Use this Document' tab"}]
[]
[]
["Section 4.1. General"]
[]
["Please enter here any building specific explanation with reference to the item number."]
[]
[]
[]
[]
[]
[]
[]
[]
[]
["Incomplete Items:",null,null,{"$f":"COUNTIF(K37:K291,0)","v":47}]
[]
[]
["4.1.1. General"]
["1 - This Section is complete for all applicable lighting components in the building, as required by 4.1.1.",null,null,null,null,null,null,null,null,null,0]
[]
[]
["Exemption 1: Emergency lighting meeting the requirements of 4.1.1.2.(2).(a)..",null,null,null,null,null,null,null,null,null,0]
[]
[]
["Exemption 2: Lighting within dwelling units, as per 4.1.1.2.(2).(b)..",null,null,null,null,null,null,null,null,null,0]
[]
[]
["Exemption 3: Lighting in Buildings where it is impractical, according to 4.1.1.2.(2).(c).."]
[]
[]
["Section 4.3. Trade-off Path"]
[]
[]
["4.3.1. General"]
["4.3.1.2. Limitation"]
["2 - This path is used for all interior lighting and controls, as required by Sentence 4.3.1.1.(1)..",null,null,null,null,null,null,null,null,null,0]
[]
[]
["3 - Power requirements for lighting units for exit signs conform to the standard listed in Sentence 4.2.1.1.(1)..",null,null,null,null,null,null,null,null,null,0]
[]
[]
["Explanation:"]
[]
[]
["4 a) - Fluorescent lamp ballasts conform to the standard listed in Sentence 4.2.1.2.(1)..",null,null,null,null,null,null,null,null,null,0]
[]
[]
["Explanation:"]
[]
[]
["4 b) - Applicable electronic florescent lamp ballasts conform to the standard listed in Sentence 4.2.1.2.(2).."]
[]
[]
["Explanation:"]
[]
[]
["5 - Exterior lighting power conforms to the requirements of Subsection 4.2.3. as modified by SB-10 (table SB 4.2.3.1.-B)",null,null,null,null,null,null,null,null,null,0]
[]
[]
["6 - Exterior lighting controls conform to the requirements of Subsection 4.2.4..",null,null,null,null,null,null,null,null,null,0]
[]
[]
["4.3.1.3. Compliance"]
["7 - The total annual energy consumption of interior lighting in the proposed building has been calculated in accordance with Subsection 4.3.2.",null,null,null,null,null,null,null,null,null,0]
[]
[]
["Explanation:"]
[]
[]
["Permission 1: Total annual energy consumption of interior lighting in the proposed building has instead been calculated in accordance with CSA C873.4, \"Building Energy Estimation Methodology Part 4 EnergyConsumption for Lighting\" with modifications as indicated in Article 4.3.1.3.(4)."]
[]
[]
["7 - The total annual energy consumption of interior lighting in the reference building has been calculated in accordance with Subsection 4.3.3.",null,null,null,null,null,null,null,null,null,0]
[]
[]
["Explanation:"]
[]
[]
["Permission 1: Total annual energy consumption of interior lighting in the proposed building may instead be calculated in accordance with CSA C873.4, \"Building Energy Estimation Methodology Part 4 EnergyConsumption for Lighting\" with modifications as indicated in Article 4.3.1.3.(5)."]
[]
[]
["7 - Total annual energy consumption of interior lighting in the proposed building is less than or equal to the maximum allowed annual energy consumption, as described in Sentence 4.3.1.3.(3).",null,null,null,null,null,null,null,null,null,0]
[]
[]
[]
["4.3.2. Installed Interior Lighting Energy"]
["4.3.2.1. Determination of Installed Interior Lighting Energy"]
["8 - The installed interior lighting energy, IILE, in (W·h)/a, is calculated using the equations in Article 4.3.2.1..",null,null,null,null,null,null,null,null,null,0]
[]
[]
["9 - The installed interior lighting energy, IILE is",null,null,null,null,null,null,null,null,null,1]
[]
[]
["4.3.2.2. Determination of Lighting Power Density"]
["10 - The lighting power density for a space, pi, in W/m2, is calculated using the equation in Sentence 4.3.2.2.(1)..",null,null,null,null,null,null,null,null,null,0]
[]
[]
["4.3.2.3. Determination of Daylighted Area"]
["11 - The daylighted areas of a space for skylights, for toplighting and for sidelighting, are calculated as required by Sentence 4.3.2.3.(1)..",null,null,null,null,null,null,null,null,null,0]
[]
[]
["Explanation:"]
[]
[]
["12 - Where a space is illuminated by both sidelighting and toplighting, the daylighted area provided by only one of these daylight supplies are determined and used in the daylighting calculations as required by 4.3.2.3.(2)..",null,null,null,null,null,null,null,null,null,0]
[]
[]
["Explanation:"]
[]
[]
["4.3.2.4. Determination of Non-Daylighted Area"]
["13 - The non-daylighted area of a space, ANDL,i, in m2, is calculated using the equation in Sentence 4.3.2.4.(1)..",null,null,null,null,null,null,null,null,null,0]
[]
[]
["4.3.2.5. Determination of Effective Annual Operational Times"]
["14 - The effective annual daytime operational time of the daylighted area, teff,day,DL,i, in h/a, is calculated using the equations in Article 4.3.2.5..",null,null,null,null,null,null,null,null,null,0]
[]
[]
["4.3.2.6. Determination of Operational Times"]
["15 - The annual operational time of each space during daytime, tday,i, is determined using Table 4.3.2.6.A., as required by Sentence 4.3.2.6.(1)..",null,null,null,null,null,null,null,null,null,0]
[]
[]
["Exemption 1: If the building operates for more or less than the default 250 days per year, the data provided in Tables 4.3.2.6.A. and 4.3.2.6.B. is adjusted using the equation in Sentence 4.3.2.6.(3).."]
[]
[]
["16 - The annual operational time of each space during nighttime, tnight,i, shall be determined using Table 4.3.2.6.B., as required by Sentence 4.3.2.6.(2)..",null,null,null,null,null,null,null,null,null,0]
[]
[]
["Exemption 1: If the building operates for more or less than the default 250 days per year, the data provided in Tables 4.3.2.6.A. and 4.3.2.6.B. is adjusted using the equation in Sentence 4.3.2.6.(3).."]
[]
[]
["4.3.2.7. Determination of Factor for Daylight Harvesting"]
["17 - The factor for daylight harvesting, FDL,i, is calculated using the equation in Sentence 4.3.2.7.(1)..",null,null,null,null,null,null,null,null,null,0]
[]
[]
["18 - As required by Sentence 4.3.2.7.(2)., for spaces with no daylight supply, the factor for daylight harvesting, FDL,i is 0.",null,null,null,null,null,null,null,null,null,0]
[]
[]
["19 - Where sidelighting is the primary daylight supply, the daylight supply factor, CDL,sup,i, is determined as required by Sentence 4.3.2.7.(3)..",null,null,null,null,null,null,null,null,null,0]
[]
[]
["Explanation:"]
[]
[]
["20 - Where toplighting is the primary daylight supply, the daylight supply factor CDL,sup,i, is determined as required by Sentence 4.3.2.7.(4)..",null,null,null,null,null,null,null,null,null,0]
[]
[]
["Explanation:"]
[]
[]
["21 - The daylight system control factor, CDL,ctrl,i, is selected from Table 4.3.2.7.A., as required by Sentence 4.3.2.7.(5)..",null,null,null,null,null,null,null,null,null,0]
[]
[]
["22- The daylight-dependent control factor for electric lighting, CEL,ctrl,i, is selected from Table 4.3.2.7.B., as required by Sentence 4.3.2.7.(6)..",null,null,null,null,null,null,null,null,null,0]
[]
[]
["4.3.2.8. Determination of the Daylight Supply Factor for Sidelighting"]
["23 - For spaces where sidelighting is the primary daylight supply, the daylight supply factor, CDL,sup,i, is calculated using the equation in Sentence 4.3.2.8.(1)..",null,null,null,null,null,null,null,null,null,0]
[]
[]
["Explanation:"]
[]
[]
["24 - The effective luminous transmittance of the fenestration providing sidelighting, τeff,i, is calculated using the equation in Sentence 4.3.2.8.(2)..",null,null,null,null,null,null,null,null,null,0]
[]
[]
["Explanation:"]
[]
[]
["25 - The raw daylight supply factor for the rough opening, CDL,sup,raw,i, is determined using Table 4.3.2.8, as required by Sentence 4.3.2.8.(3)..",null,null,null,null,null,null,null,null,null,0]
[]
[]
["Explanation:"]
[]
[]
["26 - The factor to account for horizontal obstructions, fobst,i, is calculated using the equation in Sentence 4.3.2.8.(4)..",null,null,null,null,null,null,null,null,null,0]
[]
[]
["Explanation:"]
[]
[]
["4.3.2.9. Determination of the Daylight Supply Factor for Toplighting"]
["27 - Where toplighting is the primary daylight supply, the daylight supply factor, CDL,sup,i, is determined using Table 4.3.2.9.A., as required by Sentence 4.3.2.9.(1)..",null,null,null,null,null,null,null,null,null,0]
[]
[]
["Explanation:"]
[]
[]
["28 - The mean daylight factor for toplighting, Di, is calculated using the equation in Sentence 4.3.2.9.(2)..",null,null,null,null,null,null,null,null,null,0]
[]
[]
["Explanation:"]
[]
[]
["29 - The room cavity ratio, RCR, is calculated using the equation in Sentence 4.3.2.9.(3)..",null,null,null,null,null,null,null,null,null,0]
[]
[]
["Explanation:"]
[]
[]
["4.3.2.10. Determination of Factors for Occupancy Control and Personal Control"]
["30 a) - The factor for occupancy control, Focc,i, is calculated using the equation in Sentence 4.3.2.10.(1)..",null,null,null,null,null,null,null,null,null,0]
[]
[]
["30 b) - The factor for personal control, Fpres,I, is calculated using the equation in Sentence 4.3.2.10.(2).."]
[]
[]
[]
["4.3.3. Interior Lighting Energy Allowance"]
["4.3.3.1. Determination of Interior Lighting Energy Allowance"]
["31 - The interior lighting energy allowance, ILEA, in (W·h)/a, determined using the space-by-space method in Article 4.2.1.6. and with the prescriptive lighting controls in Subsection 4.2.2., is calculated using the equations in Article 4.3.3.1..",null,null,null,null,null,null,null,null,null,0]
[]
[]
["32 - The interior lighting energy allowance, ILEA is:",null,null,null,null,null,null,null,null,null,1]
[]
[]
["4.3.3.2. Determination of Lighting Power Density"]
["33 - The lighting power density for a space, LPDi, is determined using Table 4.2.1.6., as required by Sentence 4.3.3.2.(1)..",null,null,null,null,null,null,null,null,null,0]
[]
[]
["4.3.3.3. Determination of Daylighted Area"]
["34 - The daylighted area of a space, ADL,i, in m2, is determined as required by Sentence 4.3.3.3.(1)..",null,null,null,null,null,null,null,null,null,0]
[]
[]
["Explanation:"]
[]
[]
["4.3.3.4. Determination of Non-Daylighted Area"]
["35 - The non-daylighted area of a space, ANDL,i, in m2, is calculated using the equation in Sentence 4.3.3.4.(1)..",null,null,null,null,null,null,null,null,null,0]
[]
[]
["4.3.3.5. Determination of Effective Annual Operational Times"]
["36 - The effective annual daytime operational time of the daylighted area, teff,day,DL,i, in h/a, is calculated using the equation in Sentence 4.3.3.5.(1)..",null,null,null,null,null,null,null,null,null,0]
[]
[]
["Explanation:"]
[]
[]
["37 - The effective annual daytime operational time of the non-daylighted area, teff,day,NDL,i, in h/a, is calculated using the equation in Sentence 4.3.3.5.(2)..",null,null,null,null,null,null,null,null,null,0]
[]
[]
["38 - The effective annual nighttime operational time, teff,night,i, in h/a, is calculated using the equation in Sentence 4.3.3.5.(3)..",null,null,null,null,null,null,null,null,null,0]
[]
[]
["4.3.3.6. Determination of Operational Times"]
["39 - Annual operational times, tday,i and tnight,i, is determined as required by Sentence 4.3.3.6.(1)..",null,null,null,null,null,null,null,null,null,0]
[]
[]
["4.3.3.7. Determination of Factor for Daylight Harvesting"]
["40 - The factor for daylight harvesting, FDL,i, is determined using the equation in Sentence 4.3.3.7.(1)..",null,null,null,null,null,null,null,null,null,0]
[]
[]
["41 - For spaces with no daylight supply, the factor for daylight harvesting, FDL,i, is 0, as required by 4.3.3.7.(2)..",null,null,null,null,null,null,null,null,null,0]
[]
[]
["42 - Where sidelighting is the primary daylight supply, the daylightsupply factor, CDL,sup,i, is determined as required by Sentence 4.3.3.7.(3)..",null,null,null,null,null,null,null,null,null,0]
[]
[]
["Explanation:"]
[]
[]
["43 - Where toplighting is the primary daylight supply, the daylight supply factor, CDL,sup,i, is determined as required by Sentence 4.3.3.7.(4)..",null,null,null,null,null,null,null,null,null,0]
[]
[]
["Explanation:"]
[]
[]
["44 - The daylight system control factor, CDL,ctrl,i, is determined using Table 4.3.2.7.A. based on the minimum requirement for the applicable space according to the prescriptive path, as required by Sentence 4.3.3.7.(5)..",null,null,null,null,null,null,null,null,null,0]
[]
[]
["Explanation:"]
[]
[]
["45 - The daylight-dependent control factor for electric lighting, CEL,ctrl,i, is determined using Table 4.3.2.7.B. based on the minimum requirement for the\napplicable space in the prescriptive path, as required by Sentence 4.3.3.7.(6)..",null,null,null,null,null,null,null,null,null,0]
[]
[]
["Explanation:"]
[]
[]
["4.3.3.10. Determination of Factors for Occupancy Control and Personal Control"]
["46 - The factor for occupancy control, Focc,i,, is calculated using the equation in Sentence 4.3.3.10.(1)..",null,null,null,null,null,null,null,null,null,0]
[]
[]
["47 - The factor for personal control, Fpers,i, is set to 1, according to Sentence 4.3.3.10.(2)..",null,null,null,null,null,null,null,null,null,0]
[]
[]
["48 - The installed interior lighting energy (IILE) in the proposed building less than or equal to the interior lighting energy allowance (ILEA).",null,null,null,null,null,null,null,null,null,0]

{"sheet":"HVAC - Prescriptive","index":8,"n_rows":768,"n_cols":11,"rows_kept":768,"cut":false,"hidden":false,"merged":[[751,4,751,6],[160,0,162,8],[157,9,162,9],[169,9,174,9],[172,0,174,8],[178,0,180,8],[175,9,180,9],[385,0,387,8],[212,0,212,8],[424,0,424,8],[281,0,283,8],[316,0,318,8],[290,0,290,8],[291,0,291,8],[292,0,292,8],[293,0,295,8],[313,0,315,8],[220,0,222,8],[238,0,240,8],[319,0,321,8],[378,0,378,8],[332,0,334,8],[338,0,340,8],[399,0,401,8],[574,0,576,8],[571,0,573,8],[577,0,579,8],[568,0,570,8],[561,0,563,8],[507,0,507,8],[503,0,505,8],[599,0,601,8],[515,0,515,8],[517,0,517,8],[518,0,520,8],[554,0,554,8],[555,0,557,8],[548,0,550,8],[614,0,616,8],[623,0,625,8],[626,0,628,8],[632,0,632,8],[633,0,635,8],[580,0,580,8],[581,0,583,8],[593,0,595,8],[587,0,589,8],[71,0,73,8],[74,0,76,8],[83,0,83,8],[90,0,92,8],[103,0,105,8],[106,0,108,8],[395,0,397,8],[398,0,398,8],[194,0,194,8],[195,0,195,8],[296,0,296,8],[300,0,300,8],[269,0,271,8],[297,0,299,8],[169,0,171,8],[200,0,202,8],[150,0,150,8],[151,0,153,8],[157,0,159,8],[163,0,165,8],[304,0,306,8],[307,0,309,8],[310,0,312,8],[368,0,368,8],[80,0,82,8],[175,0,177,8],[181,0,181,8],[196,0,196,8],[197,0,199,8],[182,0,184,8],[127,0,127,8],[128,0,130,8],[209,0,211,8],[115,0,117,8],[216,0,218,8],[223,0,225,8],[229,0,231,8],[232,0,234,8],[241,0,243,8],[253,0,255,8],[247,0,247,8],[248,0,248,8],[249,0,249,8],[262,0,264,8],[268,0,268,8],[328,0,330,8],[331,0,331,8],[425,9,430,9],[137,0,139,8],[118,0,120,8],[121,0,123,8],[131,0,133,8],[265,0,267,8],[250,0,252,8],[140,0,142,8],[147,0,149,8],[166,0,168,8],[213,0,215,8],[219,0,219,8],[154,0,156,8],[185,0,187,8],[188,0,190,8],[191,0,193,8],[256,0,258,8],[259,0,261,8],[272,0,274,8],[275,0,277,8],[278,0,280,8],[284,0,286,8],[203,0,205,8],[206,0,208,8],[530,9,535,9],[536,9,541,9],[542,9,547,9],[437,9,442,9],[443,9,448,9],[449,9,454,9],[463,0,465,8],[472,0,474,8],[497,0,499,8],[455,0,455,8],[456,0,458,8],[462,0,462,8],[466,0,468,8],[524,0,526,8],[539,0,541,8],[542,0,544,8],[545,0,547,8],[536,0,538,8],[530,0,532,8],[475,0,475,8],[476,0,478,8],[479,0,481,8],[506,0,506,8],[437,0,439,8],[322,0,324,8],[379,0,381,8],[382,0,384,8],[428,0,430,8],[516,0,516,8],[443,0,445,8],[431,0,433,8],[508,0,508,8],[509,0,511,8],[488,0,490,8],[434,0,436,8],[440,0,442,8],[446,0,448,8],[452,0,454,8],[459,0,461,8],[372,0,372,8],[373,0,375,8],[425,0,427,8],[369,0,371,8],[414,0,414,8],[0,0,0,1],[0,2,0,8],[1,0,1,1],[19,0,21,8],[37,0,38,8],[39,0,39,8],[1,2,1,8],[14,0,15,8],[16,0,17,2],[16,3,17,8],[2,0,3,8],[4,0,5,8],[18,0,18,8],[22,0,24,8],[28,0,30,8],[31,0,33,8],[34,0,36,8],[25,0,27,8],[6,0,13,8],[408,0,410,8],[415,0,417,8],[418,0,420,8],[388,0,388,8],[389,0,391,8],[392,0,394,8],[411,0,413,8],[402,0,404,8],[421,0,423,8],[449,0,451,8],[40,0,40,8],[41,0,41,8],[42,0,44,8],[48,0,48,8],[49,0,49,8],[50,0,50,8],[51,0,53,8],[144,0,146,8],[143,0,143,8],[58,0,60,8],[64,0,64,8],[97,0,99,8],[77,0,79,8],[96,0,96,8],[57,0,57,8],[65,0,67,8],[112,0,114,8],[68,0,70,8],[84,0,86,8],[87,0,89,8],[93,0,95,8],[100,0,102,8],[109,0,111,8],[347,0,349,8],[353,0,353,8],[344,0,344,8],[345,0,345,8],[346,0,346,8],[301,0,303,8],[738,4,738,6],[602,0,604,8],[608,0,610,8],[617,0,619,8],[620,0,622,8],[629,0,631,8],[636,0,638,8],[642,0,644,8],[657,0,659,8],[660,0,662,8],[611,0,611,8],[654,0,656,8],[354,0,356,8],[367,0,367,8],[377,0,377,8],[376,0,376,8],[325,0,327,8],[363,0,363,8],[739,4,739,6],[755,0,755,8],[664,0,666,8],[667,0,669,8],[670,0,670,8],[674,0,676,8],[677,0,679,8],[663,0,663,8],[753,0,754,8],[744,2,744,3],[744,4,744,6],[683,0,685,8],[689,0,689,8],[696,0,698,8],[699,0,699,8],[700,0,700,8],[702,0,704,8],[701,0,701,8],[728,0,730,8],[734,0,735,8],[705,0,707,8],[731,0,733,8],[748,2,748,3],[751,2,751,3],[19,9,30,9],[31,9,36,9],[37,9,38,9],[42,9,44,9],[671,0,673,8],[680,0,682,8],[686,0,688,8],[690,0,692,8],[693,0,695,8],[469,0,471,8],[482,0,484,8],[485,0,487,8],[491,0,493,8],[494,0,496,8],[500,0,502,8],[512,0,514,8],[521,0,523,8],[533,0,535,8],[335,0,337,8],[341,0,343,8],[350,0,352,8],[357,0,359,8],[360,0,362,8],[405,0,407,8],[128,9,133,9],[137,9,142,9],[144,9,149,9],[151,9,156,9],[163,9,165,9],[166,9,168,9],[51,9,53,9],[58,9,60,9],[65,9,79,9],[80,9,82,9],[84,9,89,9],[90,9,95,9],[97,9,111,9],[112,9,117,9],[118,9,123,9],[338,9,343,9],[347,9,352,9],[354,9,362,9],[369,9,371,9],[182,9,187,9],[188,9,193,9],[197,9,202,9],[203,9,205,9],[206,9,211,9],[213,9,218,9],[220,9,225,9],[229,9,234,9],[238,9,243,9],[250,9,264,9],[269,9,280,9],[281,9,286,9],[293,9,295,9],[297,9,299,9],[322,9,324,9],[332,9,337,9],[325,9,327,9],[301,9,321,9],[766,9,768,9],[756,9,761,9],[763,9,765,9],[759,0,761,8],[756,0,758,8],[762,0,762,8],[763,0,765,8],[766,0,768,8],[593,9,598,9],[599,9,604,9],[605,9,610,9],[614,9,622,9],[745,2,745,3],[745,4,745,6],[747,2,747,3],[747,4,747,6],[743,4,743,6],[743,2,743,3],[742,4,742,6],[742,2,742,3],[741,4,741,6],[741,2,741,3],[736,2,736,3],[737,2,737,3],[752,2,752,3],[752,4,752,6],[590,0,592,8],[748,4,748,6],[746,4,746,6],[746,2,746,3],[456,9,461,9],[463,9,465,9],[738,2,738,3],[739,2,739,3],[736,4,736,6],[737,4,737,6],[728,9,733,9],[466,9,474,9],[671,9,673,9],[674,9,676,9],[690,9,698,9],[702,9,707,9],[626,9,631,9],[683,9,688,9],[677,9,682,9],[749,2,749,3],[749,4,749,6],[750,2,750,3],[45,0,47,8],[54,0,56,8],[61,0,63,8],[45,9,47,9],[54,9,56,9],[61,9,63,9],[740,4,740,6],[740,2,740,3],[623,9,625,9],[385,9,387,9],[389,9,391,9],[392,9,394,9],[395,9,397,9],[399,9,413,9],[415,9,417,9],[418,9,420,9],[421,9,423,9],[328,9,330,9],[633,9,644,9],[645,9,647,9],[648,9,650,9],[651,9,653,9],[654,9,656,9],[657,9,662,9],[364,0,366,8],[364,9,366,9],[527,0,529,8],[518,9,529,9],[750,4,750,6],[664,9,666,9],[667,9,669,9],[373,9,375,9],[379,9,381,9],[382,9,384,9],[555,9,557,9],[558,9,566,9],[568,9,570,9],[488,9,496,9],[497,9,505,9],[509,9,514,9],[476,9,478,9],[479,9,487,9],[431,9,436,9],[571,9,573,9],[727,0,727,8],[721,0,723,8],[721,9,726,9],[724,0,726,8],[548,9,553,9],[551,0,553,8],[708,0,710,8],[708,9,713,9],[711,0,713,8],[714,0,714,8],[715,0,717,8],[715,9,720,9],[718,0,720,8],[574,9,579,9],[581,9,586,9],[587,9,592,9],[648,0,650,8],[651,0,653,8],[645,0,647,8],[605,0,607,8],[596,0,598,8],[558,0,560,8],[564,0,566,8],[567,0,567,8],[584,0,586,8],[639,0,641,8],[612,0,612,8],[613,0,613,8]]}
["Project Name",null,{"$f":"'Compliance Documents Checklist'!C1:I1","v":"Enter project name on 'How to Use this Document' tab"}]
["Contact Person",null,{"$f":"'Compliance Documents Checklist'!C2:F2","v":"Enter contact person name on 'How to Use this Document' tab"}]
[]
[]
["Section 5.1. General"]
[]
["Please enter here any building specific explanation with reference to the item number."]
[]
[]
[]
[]
[]
[]
[]
[34]
[]
["Incomplete Items"]
[]
[]
["1 -  This Section is complete for all systems heating, ventilating and air conditioning (HVAC) systems covered by the NECB, in the building.",null,null,null,null,null,null,null,null,null,0]
[]
[]
["Exemption 1: HVAC systems used exclusively for the control of smoke, according to 5.1.1.2.(1)..",null,null,null,null,null,null,null,null,null,0]
[]
[]
["Exemption 2: Where it can be shown that the nature of the occupancy, or that the type of HVAC system makes it impractical to apply the requirement of this Part, according to Sentence 5.1.1.2.(2).."]
[]
[]
["Exemption 3: Existing HVAC systems that are extended to serve additions, according to Sentence 5.1.1.2.(3).."]
[]
[]
["2 - This Section is completed for all back-up HVAC systems covered by the NECB, in the building.",null,null,null,null,null,null,null,null,null,0]
[]
[]
["Explanation:"]
[]
[]
["Section 5.2. Prescriptive Path"]
[]
[]
["5.2.1. Equipment Sizing "]
["5.2.1.1. Load Calculations"]
["3 - HVAC systems are sized in accordance with good engineering practice such as that described in Sentence 5.2.1.1.(1)..",null,null,null,null,null,null,null,null,null,0]
[]
[]
[]
[]
[]
[]
["5.2.2. Air Distribution Systems"]
["5.2.2.1. Design and Installation of Ducts"]
["4 - Ducts are designed and installed in accordance with the NBC, according to the requirements of Sentence 5.2.2.1.(1)..",null,null,null,null,null,null,null,null,null,0]
[]
[]
[]
[]
[]
["5.2.2.2. Provision for Balancing"]
["5 - All air distribution systems are designed such that they can be balanced.",null,null,null,null,null,null,null,null,null,0]
[]
[]
[]
[]
[]
["5.2.2.3. Duct Sealing"]
["6 - Air-handling ducts and plenums forming part of an HVAC system is constructed, installed and sealed in accordance with Sentence 5.2.2.3.(1)..",null,null,null,null,null,null,null,null,null,0]
[]
[]
["Explanation:"]
[]
[]
["Exemption 1: Air-handling ducts and plenums that do not conform to Sentence 5.2.2.3.(1). , meet the requirements of Article 5.2.2.4.."]
[]
[]
["Exemption 2: Return ducts located within conditioned space or in spaces used as return air plenums need not comply with Sentence 5.2.2.3.(1)., according to Sentence 5.2.2.3.(3).."]
[]
[]
["Exemption 3: Except for supply ducts located upstream of zone coils, mixing boxes, variable-air-volume boxes and diffusers with integral variable-air-volume controls, supply ducts located within the conditioned space to which they supply air need not comply with Sentence 5.2.2.3.(1).."]
[]
[]
["7 - Sealing tape is not used as the primary sealant for air-handling ducts and plenums.",null,null,null,null,null,null,null,null,null,0]
[]
[]
["5.2.2.4. Leakage Testing of Duct"]
["8 - Where ducts are not constructed, installed and sealed in accordance with Sentence 5.2.2.3.(1), they meet the requirements of Sentence 5.2.2.4.(2)..",null,null,null,null,null,null,null,null,null,0]
[]
[]
["Explanation:"]
[]
[]
["9 - For ducts tested in accordance with Sentence 5.2.2.4.(1), the maximum permitted leakage is caculated according to the equation in Sentence 5.2.2.4.(2)..",null,null,null,null,null,null,null,null,null,0]
[]
[]
["Explanation:"]
[]
[]
["5.2.2.5. Duct and Plenum Insulation "]
["10 - All air-handling ducts, plenums and run-outs forming part of an HVAC system are insulated according to Sentence 5.2.2.5.(1) and 5.2.2.5.(2). and Table 5.2.2.5..     ",null,null,null,null,null,null,null,null,null,0]
[]
[]
["Explanation:"]
[]
[]
["Exemption 1: Exhaust ducts, return ducts and plenums located within conditioned space need not comply with Sentence 5.2.2.5.(1).."]
[]
[]
["Exemption 2: Ducts and plenums located within conditioned space in a dwelling unit and serving only that dwelling unit need not comply with 5.2.2.5.(1)."]
[]
[]
["Exemption 3: Factory-installed plenums and ducts, in accordance with Article 5.2.12.1., need not comply with Sentences 5.2.2.5.(1). and 5.2.2.5.(5)., provided they are insulated to a thermal resistance not less than specified in Sentence 5.2.2.5.(6).."]
[]
[]
["11 - Air handling ducts and plenums, forming part of HVAC systems, that are located outside the building envelope and are not as described in Sentence 5.2.2.5.(6)., are insulated to the same level as indicated in Subsection 3.2.2..",null,null,null,null,null,null,null,null,null,0]
[null,null,null,null,null,null,null,null,null,null,0]
[]
["Exemption 1: Relief and outside air ducts and factory installed ducts and plenums meeting Sentence 5.2.2.5.(6)., need not comply. "]
[]
[]
["12 - Insulation material is installed as per 5.2.2.5.(7) and 5.2.2.5.(8)..",null,null,null,null,null,null,null,null,null,0]
[]
[]
["Explanation:"]
[]
[]
[]
[]
[]
["5.2.2.6. Protection of Duct Insulation"]
["13 - Insulation on cold-air supply ducts is provided with a vapour barrier to protect from condensation as described in Sentence 5.2.2.6.(1)..",null,null,null,null,null,null,null,null,null,0]
[]
[]
["Explanation:"]
[]
[]
[]
[]
[]
["14 - Duct insulation is installed to protect from mechanical damage or weathering, as required by 5.2.2.6.(2)..",null,null,null,null,null,null,null,null,null,0]
[]
[]
["Explanation:"]
[]
[]
["5.2.2.7. Cooling with Outdoor Air"]
["15 - Systems with mechanical cooling and an air handling capacity, as listed in Sentence 5.2.2.7.(1)., are designed to reduce mechanical cooling by either using an air economizer system or a water economizer system. ",null,null,null,null,null,null,null,null,null,0]
[]
[]
["Explanation:"]
[]
[]
["5.2.2.8. Cooling by Direct Use of Outdoor Air (Air Economizer System)",null,null,null,null,null,null,null,null,null,0]
["16 - HVAC systems that use less mechanical cooling energy by direct use of outdoor air are capable of mixing return air with up to 100% outdoor air to produce the temperature required, according to the requirements of Sentence 5.2.2.8.(1)..",null,null,null,null,null,null,null,null,null,1]
[null,null,null,null,null,null,null,null,null,null,0]
[]
["Permission 1: Direct expansion HVAC systems are permitted to include controls to reduce the quantity of outdoor air at the lowest stage of cooling equipment output as necessary according to the requirements of Sentence 5.2.2.8.(6).."]
[]
[]
["17 - Systems are designed to automatically revert to the minimum outdoor airflow (as prescribed by the NCB), when the return air temperature is less than the outdoor air temperature or the return air enthalpy is less than the outdoor air enthalpy, according to the requirements of Sentence 5.2.2.8.(2)..",null,null,null,null,null,null,null,null,null,0]
[]
[]
["Explanation:"]
[]
[]
["18 - Systems are designed to mix outdoor air and return air to a temperature as near as possible to that required to condition the space, as indicated in Sentence 5.2.2.8.(3)..",null,null,null,null,null,null,null,null,null,0]
[]
[]
["19 -  Systems with cooling capacities of 70 kW or more, incorporate cooling equipment that can operate, with the lowest stage providing no more than 25% of the full capacity of each system, as required by Sentence 5.2.2.8.(4)..",null,null,null,null,null,null,null,null,null,0]
[]
[]
["20 - Systems with cooling capacities greater that 25 kW and less that 70 kW, incorporate cooling equipment that can operate at the lowest stage providing no more that 50 % of the full capacity of each system, as required by Sentence 5.2.2.8.(5)..",null,null,null,null,null,null,null,null,null,0]
[]
[]
["Explanation:"]
[]
[]
["21 - Applicable HVAC systems, including HVAC systems that provide cooling using direct expansion (DX) technologies, are designed and configured to reduce mechanical cooling by direct use of outdoor air, according to Article 5.2.2.8.(6).",null,null,null,null,null,null,null,null,null,0]
[null,null,null,null,null,null,null,null,null,null,0]
[]
["Explanation:"]
[]
[]
["5.2.2.9. Cooling by Indirect Use of Outdoor Air (Water Economizer System)"]
["22 - HVAC systems that reduce mechanical cooling energy use by using outdoor air to chill cooling distribution fluid by direct expansion, indirect evaporation, or both, are capable of cooling supply air to provide 100% of the cooling load when the outdoor air temperature is 7°C or lower, as required by 5.2.2.9.(1).. ",null,null,null,null,null,null,null,null,null,0]
[]
[]
["Explanation:"]
[]
[]
["23 - HVAC systems that reduce mechanical cooling energy use by using outdoor air to chill cooling distribution fluid by sensible heat transfer are capable by of providing 100% of the cooling load when the outdoor air temperature is 10°C or lower, as required by 5.2.2.9.(2).",null,null,null,null,null,null,null,null,null,0]
[]
[]
["Explanation:"]
[]
[]
[]
["5.2.3. Fan System Design"]
["5.2.3.1. Application"]
["24 - Applicable fans, based on use and on total of all fan motor nameplate rating, according to the requirements of Article 5.2.3.1., are considered in answering the questions of Subsection 5.2.3. ",null,null,null,null,null,null,null,null,null,0]
[]
[]
["Explanation:"]
[]
[]
["25 - Power demand considered in this section is the sum of the demand of all fans required to operate at design conditions to supply air to the conditioned space.",null,null,null,null,null,null,null,null,null,0]
[]
[null,null,null,null,null,null,null,null,null,null,1]
["26 - The building is provided with constant volume fan systems or/and variable-air-volume fan systems.",null,null,null,null,null,null,null,null,null,0]
[]
[]
["Explanation:"]
[]
[]
["5.2.3.2. Constant-Volume Fan Systems"]
["27 - For fans producing constant air flowrate whenever the system is operating, the maximum power demand required by the motors for the combined supply and return fan system at design conditions, do not exceed the requirements of Sentence 5.2.3.2.(1)..",null,null,null,null,null,null,null,null,null,0]
[]
[]
["Explanation:"]
[]
[]
["5.2.3.3. Variable-Air-Volume Fans Systems"]
["28 - For fans systems through which airflow varies automatically as a function of load, the power demand required by the motors for the combined supply and return fan system, does not exceed the limit of Sentence 5.2.3.3.(1)..",null,null,null,null,null,null,null,null,null,0]
[]
[]
["Explanation:"]
[]
[]
[]
[]
[]
["29 - In variable-air-volume systems, any individual supply, relief or return fan with a power demand greater that 7.5 kW and less than 25 KW, has controls for variation of flow meeting Sentence 5.2.3.3.(2)..",null,null,null,null,null,null,null,null,null,0]
[]
[]
["Explanation:"]
[]
[]
[]
[]
[]
["30 - In variable-air-volume systems, any individual supply, relief or return fan with a power demand equal to or greater than 25 KW, has controls to prevent the fan motor from demanding more than Sentence 5.2.3.3.(3)..",null,null,null,null,null,null,null,null,null,0]
[]
[]
["Explanation:"]
[]
[]
[]
[]
[]
[]
["5.2.4. Air Intake and Outlet Dampers"]
["5.2.4.1. Required Dampers"]
["31 - All applicable ducts or openings are equipped with motorized dampers as indicated in Sentence 5.2.4.1.(1)..",null,null,null,null,null,null,null,null,null,0]
[]
[]
["Explanation:"]
[]
[]
["Exemption 1: Where dampers are not permitted by other regulations, air intakes and outlets need not comply with Sentence 5.2.4.1.(1)., as provided in Sentence 5.2.4.1.(2).."]
[]
[]
["Exemption 2: Air intakes and outlets serving HVAC systems required to operate continuously need not comply with Sentence 5.2.4.1(1)., as provided in Sentence 5.2.4.1.(3).."]
[]
[]
["Permission 1: If the duct or opening is less than 0.08 m2 in cross sectional area, the air inlet and outlet dampers are permitted to comply with Sentence 5.2.4.1.(4)..  "]
[]
[]
[]
[]
[]
["5.2.4.2. Type and Location of Dampers"]
["32 - Dampers, as required by Article 5.4.2.1, are located relative to the building envelope and designed to close as indicated in Sentence 5.2.4.2.(1).. ",null,null,null,null,null,null,null,null,null,0]
[]
[]
["Explanation:"]
[]
[]
["Permission 1: Dampers required in Article 5.2.4.1. are permitted to be located inboard of the building envelope, provided the conditions of Sentence 5.2.4.2.(3), apply."]
[]
[]
["Permission 2: Dampers in air intakes and outlets serving air-heating or -cooling equipment located outside of the building envelope are permitted to be located within the equipment, according to Sentence 5.2.4.2.(4).."]
[]
[]
["33 - Air leakage through required motorized dampers in their closed position, does not exceed the requirements of Sentence 5.2.4.2.(2)..",null,null,null,null,null,null,null,null,null,0]
[]
[]
["Explanation:"]
[]
[]
[]
[]
[]
[]
["5.2.5. Piping for Heating Ventilating and Air-Conditioning Systems"]
["5.2.5.1. Design and Installation of Piping"]
["34- HVAC piping is designed and installed in accordance with the NBC, according to the requirements of 5.2.5.1.(1)..",null,null,null,null,null,null,null,null,null,0]
[]
[]
["5.2.5.2. Provisions for Balancing"]
["35 - All hydronic systems are designed so that they can be balanced, according to the requirements of 5.2.5.2.(1)..",null,null,null,null,null,null,null,null,null,0]
[]
[]
["5.2.5.3. Piping Insulation "]
["36 - Piping forming part of HVAC systems, as indicated in Article 5.2.5.3., is insulated according to the requirements of Table 5.2.5.3.. ",null,null,null,null,null,null,null,null,null,0]
[]
[]
["Exemption 1: Piping within a conditioned space in a dwelling unit and serving only that dwelling unit need not comply with Sentence 5.2.5.3.(1)., if they meet the requirements of Sentence 5.2.5.3.(2).."]
[]
[]
["Exemption 2: HVAC piping that conveys fluids with design operating temperatures greater than 16°C and less than 41°C need not comply with Table 5.2.5.3."]
[]
[]
["Permission 1: Where piping insulation has a thermal conductivity that is greater than the ranges given in Table 5.2.5.3., the insulation thickness given in the Table may be increased according to the requirements of Sentence 5.2.5.3.(4).. ",null,null,null,null,null,null,null,null,null,0]
[]
[]
["Explanation:"]
[]
[]
["Permission 2: Where piping insulation has a thermal conductivity that is lower than the ranges given in Table 5.2.5.3., the insulation thickness given in the Table may be decreased according to the requirements of Sentence 5.2.5.3.(5)..",null,null,null,null,null,null,null,null,null,0]
[]
[]
["Explanation:"]
[]
[]
["38 - The thermal conductivity of the piping insulation is determined according to Sentence 5.2.5.3.(6)..",null,null,null,null,null,null,null,null,null,0]
[]
[]
["39 - Required insulation is installed according to good practice, according to Sentence 5.2.5.3.(7)..",null,null,null,null,null,null,null,null,null,0]
[]
[]
["40 - Insulation thickness used to determine compliance with Table 5.2.5.3. is the thickness of the insulation after installation according to the requirements of Sentence 5.2.5.3.(8)..",null,null,null,null,null,null,null,null,null,0]
[]
[]
["5.2.5.4. Protection of Piping Insulation"]
["41 - Insulation on piping conveying chilled fluid is provided with a vapour barrier protection to prevent condensation, according to Sentence 5.2.5.4.(1)..",null,null,null,null,null,null,null,null,null,0]
[]
[]
["Explanation:"]
[]
[]
["42 - Piping insulation is protected from mechanical damage and weathering in accordance with Sentence 5.2.5.4.(2)..",null,null,null,null,null,null,null,null,null,0]
[]
[]
["Explanation:"]
[]
[]
[]
["5.2.6. Pumping Systems Design"]
["5.2.6.1. Application"]
["43 - All HVAC pumping systems with a total pump system motor nameplate power of 7.5 kW or greater, according to Article 5.2.6.1., meet the requirements of Subsection 5.2.6..",null,null,null,null,null,null,null,null,null,0]
[]
[]
["Explanation:"]
[]
[]
["5.2.6.2. Variable-Flow Pumping Systems"]
["44 - Applicable HVAC pumping systems that serve control valves are configured and designed to vary flow according to Sentence 5.2.6.2.(1)..",null,null,null,null,null,null,null,null,null,0]
[]
[]
["Explanation:"]
[]
[]
["Exemption 1: Sentence 5.2.6.1.(1). does not apply to the systems listed in Sentence 5.2.6.2.(2). within specific minimum flow, controls or resets."]
[]
[]
["5.2.6.3. Pumping Power Demand"]
["45 - The combined pumping power demand required by the motors of all the pumps in a given hydronic system do not exceed the values stated in Table 5.2.6.3..",null,null,null,null,null,null,null,null,null,0]
[]
[]
[]
["5.2.7. Equipment Installed Outdoors"]
["46 - Is the building equipped with HVAC equipment installed outdoors?",null,null,null,null,null,null,null,null,null,0]
[]
[]
["5.2.1.7. Manufacturer's Designation"]
["47 - If Yes: HVAC equipment planned for installation outdoors or in an unconditioned space has been designated by the manufacturer for such installation.",null,null,null,null,null,null,null,null,null,0]
[]
[]
[]
["5.2.8. Temperature Controls"]
["5.2.8.1. Temperature Controls"]
["48 - Each HVAC system intended to provide comfort heating or cooling is provided with space temperature control devices, accurate to within 1°C, as indicated in sentence 5.2.8.1.(1)..",null,null,null,null,null,null,null,null,null,0]
[]
[]
["49 - Does the building contain dwellling units?",null,null,null,null,null,null,null,null,null,0]
[]
[]
["50 - If Yes: Each dwelling unit is controlled by at least one thermostatic control device.",null,null,null,null,null,null,null,null,null,0]
[]
[]
["5.2.8.2. Temperature Control within Dwelling Units"]
["51 - Dwelling units are provided with temperature control devices to control the heating to the space as indicated in Sentence 5.2.8.2.(1)..",null,null,null,null,null,null,null,null,null,0]
[]
[]
["52 - Are the dwelling units provided with mechanical cooling?",null,null,null,null,null,null,null,null,null,0]
[]
[null,null,null,null,null,null,null,null,null,null,0]
["53 - If Yes: Dwelling units are provided with temperature controls devices to reduce the cooling to the space as indicated in Sentence 5.2.8.2.(2)..",null,null,null,null,null,null,null,null,null,0]
[]
[]
["5.2.8.3. Installation of Thermostats"]
["54 - Thermostats are installed as required in Sentence 5.2.8.3.(1). to control the HVAC system.",null,null,null,null,null,null,null,null,null,0]
[]
[]
["Explanation:"]
[]
[]
["Exemption 1: Barrier-free installation meeting the requirements of 5.2.8.3.(1).."]
[]
[]
["Exemption 2: Stratified ventilation systems meeting the requirements of 5.2.8.3.(1).."]
[]
[]
["Exemption 3: Manufacturer's instuctions differ from 5.2.8.3.(1).."]
[]
[]
["5.2.8.4. Heat Pump Controls"]
["55 - Is the building equipped with heat pump(s) with supplemental heaters?",null,null,null,null,null,null,null,null,null,0]
[]
[]
["56 - Heat pumps equipped with supplementary heaters are provided with controls to prevent supplemental heater operation when the heating load can be met by the heat pump alone, according to Sentence 5.2.8.4.(1).",null,null,null,null,null,null,null,null,null,0]
[null,null,null,null,null,null,null,null,null,null,0]
[]
["Explanation:"]
[]
[]
["5.2.8.5. Space Temperature Control"]
["57 - The supply of heating and cooling energy to each zone is controlled by thermostatic controls as indicated in Sentence 5.2.8.5.(1).. ",null,null,null,null,null,null,null,null,null,0]
[]
[]
["Explanation:"]
[]
[]
["58 - Independent perimeter heating and cooling system(s) designed to offset building envelope heat losses, heat gains or both have space temperature control devices as indicated in Sentence 5.2.8.5.(2)..",null,null,null,null,null,null,null,null,null,0]
[]
[]
["Explanation:"]
[]
[]
["59 - Spaces provided with separate thermostatic controls for heating and cooling prevent simultaneous operation, according to 5.2.8.5.(3)..",null,null,null,null,null,null,null,null,null,0]
[]
[]
["Explanation:"]
[]
[]
["60 - Electric resistance heater unit thermostats meet the requirements of Sentence 5.2.8.5.(4)..",null,null,null,null,null,null,null,null,null,0]
[]
[]
["Explanation:"]
[]
[]
["61 - Applicable vestibules have temperature control devices that limit the maximum temperature to 15°C according to Sentence 5.2.8.5.(5).. ",null,null,null,null,null,null,null,null,null,0]
[]
[]
["Explanation:"]
[]
[]
["5.2.8.6. Ice- and Snow Melting Heater Controls"]
["62 - Ice- and snow-melting heaters are provided with shut down controls as indicated in Sentence 5.2.8.6.(1)..",null,null,null,null,null,null,null,null,null,0]
[]
[]
["Explanation:"]
[]
[]
["5.2.8.7. Control of Temperature of Air Leaving the Supply Air Handler"]
["63 - Is the building equipped with supply air-handler(s)?",null,null,null,null,null,null,null,null,null,0]
[]
[]
["64 - If Yes: All applicable supply air-handlers are designed and equipped with controls to avoid excessive heating or cooling as required in Sentence 5.2.8.7.(1)..",null,null,null,null,null,null,null,null,null,0]
[]
[]
["Permission 1: Reheating supply air for humidity control is permitted according to 5.2.8.7.(2). where specified humidity levels are required."]
[]
[]
["Permission 2: Reheating supply air is permitted according to 5.2.8.7.(3). where such reheating will not cause an increase in energy consumption."]
[]
[]
["5.2.8.8. Control of Space Temperature by Reheating or Recooling"]
["65 - Does the building have HVAC systems that cool previously heated air or systems that heat previously cooled air?"]
[]
[]
["66 - Applicable reheat systems are equipped with controls that automatically adjust the temperature of the cool air supply to the highest temperature that will satisfy the temperature-control zone requiring the coolest air, according to Sentence 5.2.8.8.(1)..",null,null,null,null,null,null,null,null,null,0]
[]
[]
["Explanation:"]
[]
[]
["Exemption 1: HVAC systems that are designed to reduce the air supplied to each temperature-control zone to no more than 2 L/s per m2 of floor surface area of the temperature-control zone before reheating, recooling or mixing of supply air takes place need not comply with Sentence (1)."]
[]
[]
["67 - Applicable recool systems are equipped with controls that automatically adjust the temperature of the warm air supply to the lowest temperature, according to Sentence 5.2.8.8.(2)..",null,null,null,null,null,null,null,null,null,0]
[]
[]
["Explanation:"]
[]
[]
["Exemption 1: HVAC systems that are designed to reduce the air supplied to each temperature-control zone to no more than 2 L/s per m2 of floor surface area of the temperature-control zone before reheating, recooling or mixing of supply air takes place need not comply with Sentence (2)."]
[]
[]
["68 - HVAC systems that control the temperature of a space by mixing reheat supply air and cooled supply air are equipped with controls according to Sentence 5.2.8.8.(3)..",null,null,null,null,null,null,null,null,null,0]
[]
[]
["Explanation:"]
[]
[]
["Exemption 1: HVAC systems that are designed to reduce the air supplied to each temperature-control zone to no more than 2 L/s per m2 of floor surface area of the temperature-control zone before reheating, recooling or mixing of supply air takes place need not comply with Sentence 5.2.8.8.(3)."]
[]
[]
[]
["5.2.9. Humidification"]
["5.2.9.1. Humidification Controls"]
["69 - HVAC systems equipped with a means of adding or removing moisture to maintain specific humidity levels in a space have automatic control devices meeting the requirements of Sentence 5.2.9.1.(1)..",null,null,null,null,null,null,null,null,null,0]
[]
[]
["Explanation:"]
[]
[]
[]
["5.2.10. Heat Recovery"]
["5.2.10.1. Heat-Recovery Systems - as modified by SB-10",null,null,null,null,null,null,null,null,null,0]
["70 - Applicable exhaust systems with supply airflow rates exceeding the values listed in Tables SB 5.2.10.1.A-2017 and Tables SB 5.2.10.1.B-2017 are provided with energy recovery systems, as described in Article 5.2.10.1. of SB-10. ",null,null,null,null,null,null,null,null,null,0]
[]
[]
["Explanation:"]
[]
[]
["Exemption 1: Specialized exhaust systems and conditions, described in Sentence 5.2.10.1.(3). of SB-10, need not comply with Sentence 5.2.10.1.(1). of SB-10."]
[]
[]
["Exemption 2: Systems serve dwelling units and are equipped with heat recovery system in accordance with  5.2.10.4.."]
[]
[]
["71 - Heat recovered in accordance with Sentence 5.2.10.1.(1) is used in the building's systems, according to Sentence 5.2.10.1.(2). of SB-10.",null,null,null,null,null,null,null,null,null,0]
[]
[]
["Explanation:"]
[]
[]
["72- Energy recovery systems described by Sentence 5.2.10.1.(1). of SB-10 have 55% energy recovery effectiveness or greater, as determined according to 5.2.10.1.(5). of SB-10.",null,null,null,null,null,null,null,null,null,0]
[]
[]
["Explanation:"]
[]
[]
["73 - At airflow rates not less than the system design capacity, the energy recovery effectiveness of each energy recovery apparatus referred to in Sentence (1) is determined according to Sentence 5.2.10.1.(6)..",null,null,null,null,null,null,null,null,null,0]
[]
[]
["Explanation:"]
[]
[]
["74 - Provisions have been made to bypass or control the energy recovery systems to permit air economizer operation as required by Article 5.2.2.8..",null,null,null,null,null,null,null,null,null,0]
[]
[]
["Explanation:"]
[]
[]
["5.2.10.2. Heat Recovery from Dehumidification in Swimming Pools"]
["75 - Does the building contain a pool with a surface area greater than 10 m2.",null,null,null,null,null,null,null,null,null,0]
[null,null,null,null,null,null,null,null,null,null,0]
[]
["76 - If Yes: Applicable pools are provided with systems capable of recovering at least 40% of the sensible heat of exhaust air according to Sentence 5.2.10.2.(4). of SB-10.",null,null,null,null,null,null,null,null,null,0]
[]
[]
["Explanation:"]
[]
[]
["Permission 1: Indoor swimming pools are provided with stationary or desiccant dehumidification that provides at least 80% dehumidification, as required in 5.2.10.2.(2).."]
[]
[]
["5.2.10.3. Heat Recovery from Ice-making Machines in Ice Arena and Curling Rinks"]
["77 - Does the buildings contain ice-arenas or curling rinks.",null,null,null,null,null,null,null,null,null,0]
[]
[]
["78 - Does the building's ice-area or curling rink have heating requirements.",null,null,null,null,null,null,null,null,null,0]
[]
[]
["79 - If Yes: There is a means of recovering heat rejected by the refrigeration system for space heating or service water heating as indicated in Sentence 5.2.10.3.(1)..",null,null,null,null,null,null,null,null,null,0]
[]
[]
["Explanation:"]
[]
[]
["5.2.10.4. Heat Recovery in Dwelling Units"]
["80 - For buildings with dwelling units, located in climate zones 7a, 7b, and 8, the principal exhaust component of the ventilation system to the dwelling units is equipped with heat-recovery capability, as indicated in Sentence 5.2.10.4.(1)..",null,null,null,null,null,null,null,null,null,0]
[]
[]
["Explanation:"]
[]
[]
["81 - Heat-recovery ventilators used to meet the requirements of Sentence 5.2.10.4.(1)., have a sensible-heat recovery efficiency according to Sentence 5.2.10.4.(2)..\n",null,null,null,null,null,null,null,null,null,0]
[]
[]
["Other:"]
[]
[null,null,null,null,null,null,null,null,null,null,"y"]
["82 - The tests described in Sentence 5.2.10.4.(2) are performed at the rated airflow as described in Sentence 5.2.10.4.(3)..",null,null,null,null,null,null,null,null,null,0]
[]
[]
["Explanation:"]
[]
[]
["83 - Where a heat-recovery system other than a heat-recovery ventilator is used to meet the requirements of Sentence 5.2.10.4.(1)., that system has a heat-recovery performance equivalent to that required in Sentence 5.2.10.(2)., for heat-recovery ventilators.",null,null,null,null,null,null,null,null,null,0]
[]
[]
["Explanation:"]
[]
[]
["84 - Where heat-recovery systems are required in multi-unit residential buildings, the minimum sensible-heat recovery efficiency is 50%. ",null,null,null,null,null,null,null,null,null,0]
[null,null,null,null,null,null,null,null,null,null,0]
[]
["Explanation:",null,null,null,null,null,null,null,null,null,0]
[]
[]
[null,null,null,null,null,null,null,null,null,null,0]
["5.2.11. Shut-off and Setback Controls"]
["5.2.11.1. Off-hours Controls"]
["85 - Systems serving dwelling units or other areas that are not intended to operate continuously and whose zone-heating or -cooling capacity requirements is 5 kW or more, are equipped with controls, according to Sentence 5.2.11.1.(1)..",null,null,null,null,null,null,null,null,null,1]
[]
[]
["Explanation:"]
[]
[]
["Exemption 1: Zones with a total heating or cooling capacity requirement of less than 5 kW are controlled by readily accessible manual controls, according to Sentence 5.2.11.1.(3)..",null,null,null,null,null,null,null,null,null,0]
[]
[]
["86 - Controls required in Sentence 5.2.11.1.(1)., are designed and configured according to Sentence 5.2.11.1(2)..",null,null,null,null,null,null,null,null,null,0]
[]
[]
["87 - Controls required by Sentence 5.2.11.1.(1). are designed so energy is not spent to reach off-hours setpoints as requirements by Sentence 5.2.11.1.(4)..",null,null,null,null,null,null,null,null,null,0]
[]
[]
["Explanation:"]
[]
[null,null,null,null,null,null,null,null,null,null,0]
["5.2.11.2. Airflow Control Areas"]
["88 - All applicable air distribution systems, as per Sentence 5.2.11.2.(1)., serving multiple temperature-control zones with areas, and greater than 2500 m2, are required to be divided into airflow control areas and are designed and configured to allow supply and exhaust air to be reduce or stopped independently, according to the requirements of Article 5.2.11.2..",null,null,null,null,null,null,null,null,null,0]
[null,null,null,null,null,null,null,null,null,null,0]
[null,null,null,null,null,null,null,null,null,null,0]
["Explanation:",null,null,null,null,null,null,null,null,null,0]
[]
[]
["Exemption 1: The implementation of Sentence 5.2.11.2.(1). is impractical and the air distribution systems are configured as required in Sentence 5.2.11.2.(8)..",null,null,null,null,null,null,null,null,null,0]
[]
[]
["Permission 1: Temperature-control zones in which outdoor air and exhaust requirements prevent the reduction or stopping of the air supply, need not be incorporated into airflow control areas, according to Sentence 5.2.11.2.(2).."]
[]
[]
["89 - Each airflow control area required in Sentence 5.2.11.2.(1) and (2) include only temperature control zones intended to be operated simultaneously, according to Sentence 5.2.11.2.(3)..",null,null,null,null,null,null,null,null,null,0]
[]
[]
["90 - Each airflow control area required in Sentences 5.2.11.2.(1). and (2) do not span more than one storey, according to Sentence 5.2.11.2.(4)..",null,null,null,null,null,null,null,null,null,0]
[]
[]
["91 - Each airflow control area required in Sentence 5.2.11.2.(1). is equipped with controls meeting the requirements of Article 5.2.11.1..",null,null,null,null,null,null,null,null,null,0]
[]
[]
["92 - The air distribution system is designed such that a reduction in air delivery of up to 50% of design flow, results in a reduction in fan power, according to Sentence 5.2.11.2.(6)..",null,null,null,null,null,null,null,null,null,0]
[]
[]
["93- Controls and devices are provided to allow stable operation of systems for any length of time while they are serving a single airflow control area, according to Sentence 5.2.11.2.(7)..",null,null,null,null,null,null,null,null,null,0]
[]
[]
["Explanation:"]
[]
[]
["5.2.11.3. Seasonal Shutdown",null,null,null,null,null,null,null,null,null,0]
["94 - Is the building provided with HVAC pumping systems that are used on a seasonal basis?",null,null,null,null,null,null,null,null,null,1]
[]
[]
["95 - If Yes: The HVAC pumping systems are provided with the controls required in Article 5.2.11.3..",null,null,null,null,null,null,null,null,null,0]
[]
[]
["5.2.11.4. Multiple Boilers"]
["96 - Does the building have multiple boilers?",null,null,null,null,null,null,null,null,null,0]
[]
[]
["97 - HVAC systems with multiple boilers, incorporate a means for preventing heat loss through the boilers when they are not operating as indicated in Sentence 5.2.11.4.(1).. ",null,null,null,null,null,null,null,null,null,0]
[]
[]
["98 - For heating loads > 176 KW and ≤ 352 kW the boiler plant is configured as required by Sentence 5.2.11.4.(2).. ",null,null,null,null,null,null,null,null,null,0]
[]
[]
["Explanation:"]
[]
[]
["99 - For heating loads > 352 KW the boiler plant is fully modulating as required by Sentence 5.2.11.4.(3).. ",null,null,null,null,null,null,null,null,null,0]
[]
[]
["Explanation:"]
[]
[]
["5.2.11.5. Loop Temperature Reset for Chilled- and Hot-Water Systems",null,null,null,null,null,null,null,null,null,0]
["100 - Chilled- and/or hot-water systems with design capacity greater than 88 kW are provided with a temperature reset according to Article 5.2.11.5..",null,null,null,null,null,null,null,null,null,0]
[]
[]
["Explanation:"]
[]
[]
["Exemption 1: Chilled- and hot-water systems described in Sentence 5.2.11.5.(1). need not be equipped with loop temperature reset controls where such controls would cause the improper operation of heating, cooling, humidifying, or dehumidifying equipment or systems, according to Sentence 5.2.11.5.(2).."]
[]
[]
[]
["5.2.12. Equipment Efficiency"]
["5.2.12.1. Unitary and Packaged HVAC Equipment "]
["101 - Unitary and packaged HVAC equipment and components comply with the performance requirements listed in Table 5.2.12.1..",null,null,null,null,null,null,null,null,null,0]
[]
[]
["Explanation:"]
[]
[]
["102 - Gas-fired boiler efficiencies are greater than the corresponding values from Table SB 5.2.12.1.A–2017.",null,null,null,null,null,null,null,null,null,0]
[]
[]
["Explanation:"]
[]
[]
["5.2.12.2. Heat Rejection Equipment "]
["103 - Except for equipment covered by Article 5.2.12.1. whose performance includes heat rejection energy, standalone heat rejection equipment and their components comply with the performance requirements stated in Table 5.2.12.2.",null,null,null,null,null,null,null,null,null,0]
[]
[]
["Explanation:"]
[]
[]
["104 - Constant speed fans operate with cycling control to maintain the leaving fluid temperature or condensing temperature/pressure of the heat rejection equipment at the set-point. ",null,null,null,null,null,null,null,null,null,0]
[]
[]
["Explanation:"]
[]
[]
[]
["105 - The table below is complete with HVAC equipment and component specifications for the building."]
[]
[]
["Explanation:"]
[]
[]
[]
[]
["Component or Equipment","Location or Identifier","Cooling or Heating Capacity kW",null,"Standard",null,null,"Rating Condition","Rated Performance "]
[]
[]
[]
[]
[]
[]
[]
[]
[]
[]
[]
[]
[]
[]
[]
[]
[]
[]
["5.2.12.3. Field-Assembled Equipment and Components"]
["106 - If components from more than one manufacturer are used as parts of an HVAC systems, the system is designed in accordance with good engineering practice according to Article 5.2.12.3., with overall efficiency as required by Article 5.2.12.1 as supplemented by SB-10.",null,null,null,null,null,null,null,null,null,0]
[]
[]
["Explanation:"]
[]
[]
["5.2.12.4. Service Water Heating Equipment Used for Space Heating "]
["107 - Is the building provided with service water heating equipment used for space heating?",null,null,null,null,null,null,null,null,null,0]
[]
[]
["108 - Service water heating equipment solely used to provide space heating or used to provided a combination of space and service water heating complies with the applicable standard listed in Table 6.2.2.1. as supplemented by SB-10 or, where such equipment is not covered in these Tables, with the Energy Efficiency Act and its Regulations..",null,null,null,null,null,null,null,null,null,0]
[null,null,null,null,null,null,null,null,null,null,0]

{"sheet":"HVAC - TOP","index":9,"n_rows":152,"n_cols":15,"rows_kept":152,"cut":false,"hidden":false,"merged":[[19,9,30,9],[31,9,36,9],[18,0,18,8],[105,3,105,5],[103,3,103,5],[104,3,104,5],[96,1,96,2],[97,1,97,2],[98,1,98,2],[99,1,99,2],[100,1,100,2],[101,1,101,2],[102,1,102,2],[103,1,103,2],[104,1,104,2],[87,9,89,9],[90,0,91,8],[92,0,93,8],[60,0,62,8],[64,9,66,9],[67,9,69,9],[71,9,73,9],[76,9,78,9],[87,0,89,8],[0,2,0,8],[1,2,1,8],[0,0,0,1],[1,0,1,1],[129,0,129,1],[129,2,129,5],[96,11,96,12],[94,3,94,6],[117,1,117,2],[118,1,118,2],[119,1,119,2],[120,1,120,2],[121,1,121,2],[122,1,122,2],[123,1,123,2],[124,1,124,2],[125,1,125,2],[126,1,126,2],[127,1,127,2],[128,1,128,2],[118,3,118,5],[119,3,119,5],[114,1,114,2],[115,1,115,2],[128,3,128,5],[109,3,109,5],[110,3,110,5],[111,3,111,5],[112,3,112,5],[113,3,113,5],[106,3,106,5],[107,3,107,5],[108,3,108,5],[120,3,120,5],[121,3,121,5],[122,3,122,5],[123,3,123,5],[124,3,124,5],[125,3,125,5],[126,3,126,5],[127,3,127,5],[114,3,114,5],[115,3,115,5],[116,3,116,5],[117,3,117,5],[116,1,116,2],[105,1,105,2],[106,1,106,2],[107,1,107,2],[108,1,108,2],[109,1,109,2],[110,1,110,2],[111,1,111,2],[112,1,112,2],[113,1,113,2],[96,3,96,5],[80,9,82,9],[84,9,86,9],[57,0,59,8],[63,0,63,8],[64,0,66,8],[67,0,69,8],[70,0,70,8],[71,0,73,8],[74,0,74,8],[75,0,75,8],[76,0,78,8],[79,0,79,8],[80,0,82,8],[83,0,83,8],[84,0,86,8],[57,9,62,9],[54,0,56,8],[42,9,44,9],[45,9,47,9],[48,9,50,9],[4,0,5,8],[14,0,15,8],[40,0,40,8],[41,0,41,8],[42,0,44,8],[45,0,47,8],[48,0,50,8],[51,0,53,8],[6,0,13,8],[16,0,17,2],[16,3,17,8],[16,9,17,9],[51,9,56,9],[19,0,21,8],[22,0,24,8],[25,0,27,8],[28,0,30,8],[31,0,33,8],[34,0,36,8],[37,0,38,8],[97,3,97,5],[98,3,98,5],[99,3,99,5],[100,3,100,5],[101,3,101,5],[102,3,102,5],[151,9,153,9],[129,6,129,8],[132,9,134,9],[136,9,138,9],[139,9,141,9],[143,9,145,9],[147,9,149,9],[147,0,149,8],[146,0,146,8],[150,0,150,8],[151,0,153,8],[143,0,145,8],[131,0,131,8],[132,0,134,8],[135,0,135,8],[136,0,138,8],[139,0,141,8],[142,0,142,8]]}
["Project Name",null,{"$f":"'HVAC - Prescriptive'!C1:I1","v":"Enter project name on 'How to Use this Document' tab"}]
["Contact Person",null,{"$f":"'Compliance Documents Checklist'!C2:F2","v":"Enter contact person name on 'How to Use this Document' tab"}]
[]
[]
["Section 5.1. General"]
[]
["Please enter here any building specific explanation with reference to the item number."]
[]
[]
[]
[]
[]
[]
[]
[]
[]
["Incomplete Items",null,null,{"$f":"COUNTIF(K43:K154,0)","v":18}]
[]
[]
["1 -  This Section is complete for all systems heating, ventilating and air conditioning (HVAC) systems covered by the NECB and SB-10, in the building.",null,null,null,null,null,null,null,null,null,0]
[]
[]
["Exemption 1: HVAC systems used exclusively for the control of smoke, according to 5.1.1.2.(1)..",null,null,null,null,null,null,null,null,null,0]
[]
[]
["Exemption 2: Where it can be shown that the nature of the occupancy, or that the type of HVAC system makes it impractical to apply the requirement of this Part, according to Sentence 5.1.1.2.(2).."]
[]
[]
["Exemption 3: Existing HVAC systems that are extended to serve additions, according to Sentence 5.1.1.2.(3).."]
[]
[]
["2 - This Section is completed for all back-up HVAC systems covered by the NECB and SB-10, in the building.",null,null,null,null,null,null,null,null,null,0]
[]
[]
["Explanation:"]
[]
[]
["Section 5.3. Trade-off Path"]
[]
[]
["5.3.1. General"]
["5.3.1.1. Application"]
["3 - The building and its service water heating system(s) allows the use of the trade-off path by meeting the requirements of Sentence 5.3.1.1.(1)..",null,null,null,null,null,null,null,null,null,0]
[]
[]
["4 - The HVAC system used, is of a type listed in Table 5.3.1.1..",null,null,null,null,null,null,null,null,null,0]
[]
[]
["5 - The energy type is listed in Subclause 5.3.1.1.(1).(c).(ii).",null,null,null,null,null,null,null,null,null,0]
[]
[null,null,null,null,null,null,null,null,null,null,1]
["6 - The cooling energy is electricity, as required by Subclause 5.3.1.1.(1).(c).(iii).",null,null,null,null,null,null,null,null,null,0]
[]
[]
["Explanation:"]
[]
[]
["7 - The heat pump energy is electricity, as required by Subclause 5.3.1.1.(1).(c).(iii)..",null,null,null,null,null,null,null,null,null,0]
[]
[]
["Explanation:"]
[]
[]
["5.3.1.2. Application Limitations"]
["8 - Is the building provided with back-up HVAC systems?",null,null,null,null,null,null,null,null,null,0]
[]
[]
["9 - The back-up system complies with the prescriptive requirements, as required by Article 5.3.1.2..",null,null,null,null,null,null,null,null,null,0]
[]
[]
["5.3.1.3. Compliance",null,null,null,null,null,null,null,null,null,1]
["10 - The HVAC trade-off index, HVACTOI, as calculated in accordance with Subsection 5.3.2., for all HVAC systems, is greater or equal to 0. The HVACTOI is",null,null,null,null,null,null,null,null,null,0]
[]
[]
["5.3.2. Compliance Calculation"]
["5.3.2.1. HVAC Trade-off Index"]
["11 - The HVAC trade-off index, HVACTOI for a specific HVAC system is calculated using the equation in Sentence 5.3.2.1.(1)..",null,null,null,null,null,null,null,null,null,0]
[]
[]
["5.3.2.2. Determination of Components to Be Included, γi"]
["12 - The value of the component factor, γi, used in the equation in Sentence 5.3.2.1.(1) is taken from Table 5.3.2.2., as required by Sentence 5.3.2.2.(1)..",null,null,null,null,null,null,null,null,null,0]
[]
[]
["5.3.2.3. Determination of Trade-off Values of Components, ToVi"]
["13 - The trade-off value component i, ToVi, to be used in the equation in Sentence 5.3.2.1.(1). is determined in accordance with the requirements of Table 5.3.2.3..",null,null,null,null,null,null,null,null,null,0]
[]
[]
["14 - Is an HVAC summary report attached for each system?",null,null,null,null,null,null,null,null,null,0]
[]
[]
["HVAC Equipment Summary of the Proposed Buiding"]
[]
[]
[]
["System Type"]
[]
["Trade-off Value","Description",null,"Value",null,null,"Unit","Source"]
[{"$f":"CONCATENATE(N98,O98)","v":"ToV1"},"Supply fan mechanical efficiency",null,null,null,null,"%","Specifications",null,null,null,null,null,"ToV",1]
[{"$f":"CONCATENATE(N99,O99)","v":"ToV2"},"Supply motor efficiency",null,null,null,null,"%","Specifications",null,null,null,null,null,"ToV",2]
["ToV3","Return fan mechanical efficiency",null,null,null,null,"%","Specifications",null,null,null,null,null,"ToV",3]
["ToV4","Return fan motor efficiency ",null,null,null,null,"%","Specifications",null,null,null,null,null,"ToV",4]
["ToV5","Supply temperature control",null,null,null,null,"ratio","Table 5.3.2.7.",null,null,null,null,null,"ToV",5]
["ToV6","Airflow control efficiency",null,null,null,null,"ratio","Table 5.3.2.7.",null,null,null,null,null,"ToV",6]
["ToV7","Supply fan total static pressure",null,null,null,null,"in. w.g.","Specifications",null,null,null,null,null,"ToV",7]
["ToV8","Supply duct insulation",null,null,null,null,"R-value","Specifications",null,null,null,null,null,"ToV",8]
["ToV9","Return fan total static pressure",null,null,null,null,"in. w.g.","Specifications",null,null,null,null,null,"ToV",9]
["ToV10","Heating coil design temp drop",null,null,null,null,"°F","Specifications",null,null,null,null,null,"ToV",10]
["ToV11","Baseboard heater design temperature drop",null,null,null,null,"°F","Specifications",null,null,null,null,null,"ToV",11]
["ToV12","Boiler/furnace/heat pump heating efficiency",null,null,null,null,"%","Specifications",null,null,null,null,null,"ToV",12]
["ToV13","Chillers/direct expansion system/heat pump cooling efficiency",null,null,null,null,"COP","Specifications",null,null,null,null,null,"ToV",13]
["ToV14","Rejection fan input power ratio",null,null,null,null,"W/Btu/h","Specifications",null,null,null,null,null,"ToV",14]
["ToV15","Cooling by direct use of outdoor air (air economizer)",null,null,null,null,"ratio","Table 5.3.2.7.",null,null,null,null,null,"ToV",15]
["ToV16","Outdoor airflow control",null,null,null,null,"ratio","Table 5.3.2.7.",null,null,null,null,null,"ToV",16]
["ToV17","Exhaust air heat-recovery efficiency",null,null,null,null,"%","Specifications",null,null,null,null,null,"ToV",17]
["ToV18","Cooling by indirect use of outdoor air (water economizer)",null,null,null,null,"%","Specifications",null,null,null,null,null,"ToV",18]
["ToV19","Piping insulation – hot water",null,null,null,null,"R-value","Specifications",null,null,null,null,null,"ToV",19]
["ToV20","Piping insulation – chilled water",null,null,null,null,"R-value","Specifications",null,null,null,null,null,"ToV",20]
["ToV21","Piping pressure losses – hot water",null,null,null,null,"ft. w.g.","Specifications",null,null,null,null,null,"ToV",21]
["ToV22","Piping pressure losses – chilled water",null,null,null,null,"ft. w.g.","Specifications",null,null,null,null,null,"ToV",22]
["ToV23","Pump mechanical efficiency – hot water",null,null,null,null,"%","Specifications",null,null,null,null,null,"ToV",23]
["ToV24","Pump mechanical efficiency – chilled water",null,null,null,null,"%","Specifications",null,null,null,null,null,"ToV",24]
["ToV25","Pump motor efficiency – hot water",null,null,null,null,"%","Specifications",null,null,null,null,null,"ToV",25]
["ToV26","Pump motor efficiency – chilled water",null,null,null,null,"%","Specifications",null,null,null,null,null,"ToV",26]
["ToV27","Hot water pump control",null,null,null,null,"ratio","Table 5.3.2.7.",null,null,null,null,null,"ToV",27]
["ToV28","Chilled water pump control",null,null,null,null,"ratio","Table 5.3.2.7.",null,null,null,null,null,"ToV",28]
["ToV29","Hot water loop temperature control",null,null,null,null,"ratio","Table 5.3.2.7.",null,null,null,null,null,"ToV",29]
["ToV30","Chilled water loop temperature control",null,null,null,null,"ratio","Table 5.3.2.7.",null,null,null,null,null,"ToV",30]
["ToV31","Hot water flow control",null,null,null,null,"ratio","Table 5.3.2.7.",null,null,null,null,null,"ToV",31]
["ToV32","Chilled water flow control",null,null,null,null,"ratio","Table 5.3.2.7.",null,null,null,null,null,"ToV",32]
["HVAC toi"]
[]
["5.3.2.4. Determination of Base Value of Components, BaVi"]
["15 - The base value of component i for the reference building, BaVi, to be used in the equation in Sentence 5.3.2.1.(1), is taken from Table 5.3.2.4. for the applicable HVAC system for the proposed building, as required by Sentence 5.3.2.4.(1)..",null,null,null,null,null,null,null,null,null,0]
[]
[]
["5.3.2.5. Determination of Weighting Factor Linking the Component Efficiency Variation to the System Efficiency Variation, αi and βi"]
["16 - The first order weighting factor linking the component efficiency variations of component i to the system efficiency variations, αi, is calculated using the equation in Sentence 5.3.2.5.(1)..",null,null,null,null,null,null,null,null,null,0]
[]
[]
["17 - The second order weighting factor linking the component efficiency variations of component i to the system efficiency variations, βi, is calculated using the equation in Sentence 5.3.2.5.(2)..",null,null,null,null,null,null,null,null,null,0]
[]
[]
["5.3.2.6. Determination of Climatic Parameter Relevant to the Component, XDDi"]
["18 - The climatic parameters relevant to component i, XDDi, to be used in the equation in Article 5.3.2.5., are those specified in Tables 5.3.2.8.A. to 5.3.2.8.AA., according to Sentence 5.3.2.6.(1)..",null,null,null,null,null,null,null,null,null,0]
[]
[]
["5.3.2.7. Determination of Trade-off Value of Component, ToVi"]
["19 - As indicated in Table 5.3.2.3., the values for ToV5, ToV6, ToV15, ToV16, and ToV27 to ToV32, to be used in the equation in Sentence 5.3.2.1.(1), are taken from Table 5.3.2.7. for the applicable control type and HVAC system, according to Sentence 5.3.2.7.(1)..",null,null,null,null,null,null,null,null,null,0]
[]
[]
["5.3.2.8. Coefficient Values: α1i, α2i, α3i, β1i, β2i and β3i"]
["20 - The coefficient values of α1i, α2i, α3i, β1i, β2i and β3i to be used for weighting αi and βi in Article 5.3.2.5. are selected from Tables 5.3.2.8.A. to 5.3.2.8.AA., for the given HVAC type and component, according to Sentence 5.3.2.8.(1)..",null,null,null,null,null,null,null,null,null,0]

{"sheet":"SWH - Prescriptive","index":10,"n_rows":251,"n_cols":11,"rows_kept":251,"cut":false,"hidden":false,"merged":[[225,0,225,8],[197,0,199,8],[206,0,206,8],[207,0,207,8],[208,0,208,8],[209,0,211,8],[212,0,214,8],[222,0,224,8],[218,0,220,8],[221,0,221,8],[200,0,202,8],[203,0,205,8],[174,0,174,8],[175,0,177,8],[181,0,181,8],[182,0,182,8],[183,0,183,8],[184,0,186,8],[187,0,189,8],[193,0,193,8],[194,0,196,8],[178,0,180,8],[190,0,192,8],[173,0,173,8],[97,0,99,8],[151,0,151,8],[152,0,154,8],[155,0,157,8],[87,0,89,8],[107,0,107,8],[108,0,108,8],[113,0,115,8],[125,0,127,8],[128,0,130,8],[137,0,139,8],[94,0,96,8],[100,0,100,8],[101,0,103,8],[162,0,164,8],[116,0,118,8],[119,0,121,8],[146,0,148,8],[77,0,79,8],[83,0,83,8],[109,0,109,8],[110,0,112,8],[104,0,106,8],[159,0,161,8],[169,0,171,8],[172,0,172,8],[71,0,73,8],[74,0,76,8],[80,0,82,8],[149,0,149,8],[166,0,168,8],[158,0,158,8],[165,0,165,8],[150,0,150,8],[122,0,124,8],[131,0,133,8],[134,0,136,8],[84,0,86,8],[90,0,90,8],[91,0,93,8],[140,0,142,8],[143,0,145,8],[68,0,70,8],[55,0,57,8],[58,0,59,8],[0,0,0,1],[0,2,0,8],[1,0,1,1],[4,0,5,8],[1,2,1,8],[2,0,3,8],[15,0,16,8],[20,0,22,8],[6,0,14,8],[19,0,19,8],[26,0,27,8],[29,0,29,8],[30,0,30,8],[31,0,33,8],[23,0,25,8],[35,0,35,8],[36,0,36,8],[49,0,51,8],[28,0,28,8],[17,0,18,2],[67,0,67,8],[34,0,34,8],[20,9,22,9],[23,9,25,9],[26,9,27,9],[31,9,33,9],[17,3,18,8],[222,9,224,9],[65,0,66,8],[209,9,211,9],[212,9,214,9],[184,9,186,9],[166,9,168,9],[169,9,171,9],[152,9,154,9],[155,9,157,9],[131,9,133,9],[97,9,99,9],[84,9,86,9],[87,9,89,9],[91,9,93,9],[94,9,96,9],[215,0,217,8],[52,0,54,8],[159,9,164,9],[215,9,220,9],[17,9,18,9],[49,9,54,9],[68,9,76,9],[77,9,82,9],[101,9,106,9],[122,9,127,9],[128,9,130,9],[134,9,139,9],[55,9,57,9],[58,9,59,9],[110,9,121,9],[140,9,142,9],[143,9,148,9],[240,0,240,8],[241,0,243,8],[241,9,246,9],[244,0,246,8],[247,0,249,8],[250,0,252,8],[247,9,252,9],[37,0,39,8],[43,0,45,8],[46,0,48,8],[37,9,48,9],[40,0,42,8],[226,0,226,8],[227,0,227,8],[228,0,230,8],[234,0,236,8],[231,0,233,8],[237,0,239,8],[228,9,233,9],[234,9,239,9],[175,9,180,9],[187,9,192,9],[194,9,199,9],[200,9,205,9]]}
["Project Name",null,{"$f":"'Compliance Documents Checklist'!C1:I1","v":"Enter project name on 'How to Use this Document' tab"}]
["Contact Person",null,{"$f":"'Compliance Documents Checklist'!C2:F2","v":"Enter contact person name on 'How to Use this Document' tab"}]
[]
[]
["Section 6.1. General"]
[]
["Please enter here any building specific explanation with reference to the item number."]
[]
[]
[]
[]
[]
[]
[]
[]
[0]
[]
["Incomplete Items",null,null,{"$f":"COUNTIF(K21:K225,0)","v":34}]
[]
[]
["1 - This Section is completed for all service water heating systems in the building.",null,null,null,null,null,null,null,null,null,0]
[]
[]
["2 - This Section is completed for all back-up service water heating systems in the building, as required by Sentence 6.1.1.3.(2)..",null,null,null,null,null,null,null,null,null,0]
[]
[]
["Section 6.2. Prescriptive Path"]
[]
[]
["6.2.1. System Design"]
["6.2.1.1 Regulations"]
["3 - Service water heating systems are designed in accordance with the regulations of  Sentence 6.2.1.1.(1)..",null,null,null,null,null,null,null,null,null,0]
[]
[]
[]
["6.2.2. Water Heating Equipment and Storage Vessels"]
["6.2.2.1. Equipment Efficiency"]
["4a - Service hot water systems with total installed gas water heating input capacity of 293 kW or greater have a minimum thermal efficiency (Et) of 90% per SB-10.   ",null,null,null,null,null,null,null,null,null,0]
[]
[]
["Explanation:"]
[]
[]
["Exemption 1: 25% of the annual service water heating requirement is provided by site-recovered energy."]
[]
[]
["Exemption 2: Water heaters installed in individual dwelling units."]
[]
[]
["4b - Excluding those systems covered by clause 4a above, the building's service water heaters comply with the performance requirements listed in Table 6.2.2.1. and Table SB 6.2.2.1.A-2017 as applicable.",null,null,null,null,null,null,null,null,null,0]
[]
[]
["Explanation:"]
[]
[]
["5 - Complete the table below with service water heating equipment specifications for all equipment in the proposed design.",null,null,null,null,null,null,null,null,null,0]
[]
[]
[]
[]
["Equipment ID or Location","Component Type","Input","Capacity","Vt, L","Input/Vt, W/L","Standard","Rating Condition","Rated Performance "]
[]
[]
[]
[]
[]
[]
["6.2.2.2. Equipment insulation"]
["6 - Applicable service water storage tanks are insulated in compliance with Sentence 6.2.2.2.(1)..",null,null,null,null,null,null,null,null,null,0]
[]
[]
["Explanation:"]
[]
[]
["Exemption 1: Tanks covered by 6.2.2.1. (as supplemented by SB-10) need not comply with 6.2.2.2.(1).."]
[]
[]
["7 - Applicable service water storage tanks are protected in compliance with Sentence 6.2.2.2.(2)..",null,null,null,null,null,null,null,null,null,0]
[]
[]
["Explanation:"]
[]
[]
["6.2.2.3. Solar Thermal Service Water Heating Equipment "]
["8 - Is the building equipped with service water heating equipment using solar thermal technologies? ",null,null,null,null,null,null,null,null,null,0]
[]
[]
["9 - If Yes: Service water heating equipment using solar thermal technology is designed and installed according to Sentence 6.2.2.3.(1)..",null,null,null,null,null,null,null,null,null,0]
[]
[]
["6.2.2.4. Combination Service Water Heating and Space-Heating Equipment"]
["10 - Is the building equipped with combination service water heating and space-heating equipment?",null,null,null,null,null,null,null,null,null,0]
[]
[]
["11 - If Yes: The input to the combination equipment meets the requirements of Sentence 6.2.2.4.(1).. ",null,null,null,null,null,null,null,null,null,0]
[]
[]
["12 - If Yes: The performance of the combination equipment meets the requirements of Sentence 6.2.2.4.(2). as modified by SB-10.",null,null,null,null,null,null,null,null,null,0]
[]
[]
["6.2.2.5. Space-Heating Equipment Used for Indirect Service Water Heating"]
["13 - Space-heating equipment used for indirect service water heating complies with the energy efficiency requirements Sentence 6.2.2.5.(1). as modified by SB-10.",null,null,null,null,null,null,null,null,null,0]
[]
[]
["Explanation:"]
[]
[]
[]
["6.2.3. Piping"]
["6.2.3.1. Insulation "]
["14 - All piping conveying hot service water in circulating systems, non-circulating systems without heat traps and non-circulating systems with electric heating elements along the pipes to maintain temperature are be insulated in accordance with Table 6.2.3.1. and Sentences 6.2.3.1.(2) to (4)..",null,null,null,null,null,null,null,null,null,0]
[]
[]
["Explanation:"]
[]
[]
["Permission 1: Where piping insulation has a thermal conductivity that is lower than the range given in Table 6.2.3.1., the thickness given in the Table may be decreased according to Sentence 6.2.3.1.(3).."]
[]
[]
["Explanation:"]
[]
[]
["15 - Where piping insulation has a thermal conductivity, that is greater than the range given in Table 6.2.3.1., the thickness given in the Table is increased, according to Sentence 6.2.3.1.(2)..",null,null,null,null,null,null,null,null,null,0]
[]
[]
["Explanation:"]
[]
[]
["Explanation:"]
[]
[]
["16 - The thermal conductivity of piping insulation at the mean rating temperature determined in conformance to the standard listed in Sentence 6.2.3.1.(4)..",null,null,null,null,null,null,null,null,null,0]
[]
[]
["17 - On non-circulating systems with heat traps, the inlet and outlet piping between the storage or heating vessel and the heat traps as well as the first 2.4 m of outlet piping downstream of the heat trap, are insulated in accordance with Table 6.2.3.1. and Sentences 5.2.5.3.(5) to (7).",null,null,null,null,null,null,null,null,null,0]
[]
[]
["Explanation:"]
[]
[]
["18 - The insulation thickness used to determine compliance with Table 6.2.3.1. is the thickness of the insulation after installation as described in Sentence 6.2.3.1.(6)..",null,null,null,null,null,null,null,null,null,0]
[]
[]
["19 - Insulation on piping conveying hot service water that is installed in areas where it may be subject to mechanical damage or weathering is protected.",null,null,null,null,null,null,null,null,null,0]
[]
[]
["Explanation:"]
[]
[]
[]
["6.2.4. Controls"]
["6.2.4.1. Temperature Controls"]
["18 - Do the service water heating systems have storage tanks?",null,null,null,null,null,null,null,null,null,0]
[]
[]
["19 - If Yes: The service water heating systems are provided with automatic temperature controls according to Sentence 6.2.4.1.(1)..",null,null,null,null,null,null,null,null,null,0]
[]
[]
["6.2.4.2. Shutdown"]
["20 - Each applicable system with a storage capacity greater than or equal 100L, is equipped with shut-off devices as required in Sentence 6.2.4.2.(1)..",null,null,null,null,null,null,null,null,null,0]
[]
[]
["Explanation:"]
[]
[]
["6.2.4.3. Maintaining Temperature of Hot Service Water"]
["21 - Is the building equipped with heating elements along the service water heating sytem pipes?",null,null,null,null,null,null,null,null,null,0]
[]
[]
["22 - If Yes: Service water heating systems equipped with heating elements, have automatic temperature controls as required in Sentence 6.2.4.3.(1)..",null,null,null,null,null,null,null,null,null,0]
[]
[]
[]
["6.2.5. Systems with More Than One End Use Design Temperature"]
["6.2.5.1. Remote or Booster Heaters"]
["23 - Where less than 50% of the total design flow of a service water heating system has a design discharge temperature higher than 60°C, remote booster heaters are installed according to 6.2.5.1.(1).. ",null,null,null,null,null,null,null,null,null,0]
[]
[]
["Explanation:"]
[]
[]
[]
["6.2.6. Hot Service Water"]
["6.2.6.1. Showers"]
["24 - Is the building equipped with shower heads used for reasons other than safety?",null,null,null,null,null,null,null,null,null,0]
[]
[]
["25 - If Yes: The individual shower heads and/or multiple shower heads meet the maximum water discharge and automatic shutoff requirements of Article 6.2.6.1..",null,null,null,null,null,null,null,null,null,0]
[]
[]
["Explanation:"]
[]
[]
["6.2.6.2. Lavatories"]
["26 - Lavatory faucets have an integral means of limiting the maximum hot water discharge to the rate in Sentence 6.2.6.2.(1)..",null,null,null,null,null,null,null,null,null,0]
[]
[]
["Explanation:"]
[]
[]
["27 - Each lavatory in a public access washroom in a building of assembly occupancy is equipped with a shut-off device according to Sentence 6.2.6.2.(2)..",null,null,null,null,null,null,null,null,null,0]
[]
[]
["Explanation:"]
[]
[]
[]
["6.2.7. Swimming Pools"]
["6.2.7.1. Controls"]
["28 - Is the building equipped with a swimming pool(s) and/or a hot tub(s) ?",null,null,null,null,null,null,null,null,null,0]
[]
[]
["29 - Swimming pool heaters and pumps are controlled and configured to comply with Sentence 6.2.7.1.(1)..",null,null,null,null,null,null,null,null,null,0]
[]
[]
["30 - Swimming pool pumps and swimming pool heaters are equipped according to Sentence 6.2.7.1.(2)..",null,null,null,null,null,null,null,null,null,0]
[]
[]
["Exemption 1:  Pool pumps required by public health standards."]
[]
[]
["6.2.7.2. Pool and Hot Tub Covers"]
["31 - Where applicable, swimming pools and/or hot tubs covers meet the coverage and nominal thermal tranmittance requirements of Article 6.2.7.2..",null,null,null,null,null,null,null,null,null,0]
[]
[]
[]
["6.2.8. Pressure Booster Systems"]
["6.2.8.1. Size of Water Storage Tank"]
["32 - Constant-speed pressure booster systems are provided with a hydro-pneumatic storage tank sized according to the requirements of Article 6.2.8.1.(1)..",null,null,null,null,null,null,null,null,null,0]
[]
[]
["Explanation:"]
[]
[]
["33 - Variable-speed pressure booster systems are provided with a hydro-pneumatic storage tank sized according to the requirements of Article 6.2.8.1.(2)..",null,null,null,null,null,null,null,null,null,0]
[]
[]
["Explanation:"]
[]
[]
["6.2.8.1. Size of Water Storage Tank"]
["34 - Pressure booster systems are provided with at least one pressure sensor that controls the system according to the requirements of Article 6.2.8.2.(1)..",null,null,null,null,null,null,null,null,null,0]
[]
[]
["Explanation:"]
[]
[]
["35 - Except for safety devices, pressure-reducing devices have not been installed on a pressure booster system.",null,null,null,null,null,null,null,null,null,0]
[]
[]
["Explanation:"]

{"sheet":"SWH - TOP","index":11,"n_rows":111,"n_cols":11,"rows_kept":111,"cut":false,"hidden":false,"merged":[[49,0,51,8],[46,9,51,9],[65,9,67,9],[39,9,44,9],[36,9,38,9],[53,9,55,9],[59,9,61,9],[62,9,64,9],[45,0,45,8],[46,0,48,8],[0,0,0,1],[1,0,1,1],[0,2,0,8],[1,2,1,8],[33,9,35,9],[30,9,32,9],[16,0,17,2],[16,3,17,8],[25,0,26,8],[19,0,21,8],[22,0,24,8],[19,9,21,9],[22,9,24,9],[18,0,18,8],[25,9,26,9],[68,9,70,9],[72,9,74,9],[76,9,78,9],[80,9,82,9],[2,0,3,8],[4,0,5,8],[6,0,13,8],[14,0,15,8],[28,0,28,8],[27,0,27,8],[29,0,29,8],[30,0,32,8],[33,0,35,8],[36,0,38,8],[39,0,41,8],[42,0,44,8],[76,0,78,8],[79,0,79,8],[80,0,82,8],[75,0,75,8],[52,0,52,8],[57,0,57,8],[58,0,58,8],[59,0,61,8],[62,0,64,8],[53,0,55,8],[65,0,67,8],[68,0,70,8],[71,0,71,8],[72,0,74,8],[83,0,83,8],[84,0,86,8],[110,9,112,9],[107,0,108,8],[84,9,86,9],[87,9,89,9],[87,0,89,8],[90,0,91,8],[92,0,93,8],[109,0,109,8],[110,0,112,8],[94,2,106,8]]}
["Project Name",null,{"$f":"'HVAC - Prescriptive'!C1:I1","v":"Enter project name on 'How to Use this Document' tab"}]
["Contact Person",null,{"$f":"'Compliance Documents Checklist'!C2:F2","v":"Enter contact person name on 'How to Use this Document' tab"}]
[]
[]
["Section 6.1. General"]
[]
["Please enter here any building specific explanation with reference to the item number."]
[]
[]
[]
[]
[]
[]
[]
[0]
[]
["Incomplete Items",null,null,{"$f":"COUNTIF(K31:K113,0)+A15","v":17}]
[]
[]
["1 - This Section is completed for all service water heating systems in the building.",null,null,null,null,null,null,null,null,null,0]
[]
[]
["2 - This Section is completed for all back-up service water heating systems in the building, as required by Sentence 6.1.1.3.(2)..",null,null,null,null,null,null,null,null,null,0]
[]
[]
["Section 6.3. Trade-off Path"]
[]
[]
["6.3.1. General"]
["6.3.1.1. Application"]
["3 - The building and its service water heating system(s) allows the use of the trade-off paths by meeting the requirements of Sentence 6.3.1.1.(1)..",null,null,null,null,null,null,null,null,null,0]
[]
[]
["4 - The service water heating (SWH) system used, is of a type listed in Table 6.3.1.1..",null,null,null,null,null,null,null,null,null,0]
[]
[]
["5 - The energy type is listed in Subclause 6.3.1.1.(1).(c).(ii).",null,null,null,null,null,null,null,null,null,0]
[]
[]
["6 - The heat pump energy is electricity, as required by Subclause 6.3.1.1.(1).(c).(iii)..",null,null,null,null,null,null,null,null,null,0]
[]
[null,null,null,null,null,null,null,null,null,null,1]
["Explanation:"]
[]
[]
["6.3.1.2. Application Limitation"]
["7 - The building back-up SWH systems comply with the prescriptive requirements.",null,null,null,null,null,null,null,null,null,0]
[]
[]
["Explanation:"]
[]
[]
["6.3.1.3. Compliance"]
["8 - The SWH trade-off index, SWH-TOI, as calculated in accordance with Subsection 6.3.2., for all SWH systems, is greater or equal to 0. The SWHTOI is",null,null,null,null,null,null,null,null,null,0]
[]
[]
[]
["6.3.2. Compliance of Service Water Heating Trade-off Index"]
["6.3.2.1. SWH Trade-off Index"]
["9 - Select all types of SWH systems in the building.",null,null,null,null,null,null,null,null,null,0]
[null,null,null,null,null,null,null,null,null,null,0]
[]
["10 - The service water heating trade-off index, SWH-TOI, for SWH-1 tank systems is calculated according to the equation in Sentence 6.3.2.1.(1)..",null,null,null,null,null,null,null,null,null,0]
[]
[]
["11 - The SWH-TOI for SWH-2 tankless system is calculated according to the equation in Sentence 6.3.2.1.(2)..",null,null,null,null,null,null,null,null,null,0]
[]
[]
["12 - The SWH-TOI for SWH-3 space-heating boiler system is calculated according to the equation in Sentence 6.3.2.1.(3)..",null,null,null,null,null,null,null,null,null,0]
[]
[]
["6.3.2.2. Determination of Peak Daily Flow Ratio"]
["13 - The peak daily flow ratio, PDR, is calculated according to the equation in Sentence 6.3.2.2.(1)..",null,null,null,null,null,null,null,null,null,0]
[]
[]
["6.3.2.3. Determination of Normalized Tank Area"]
["14 - The normalized tank area, Anorm, is calculated according to the equation in Sentence 6.3.2.3.(1)..",null,null,null,null,null,null,null,null,null,0]
[]
[]
["6.3.2.4. Determination of Normalized Tank Diameter"]
["15 - The normalized tank diameter, Dnorm, is calculated according to the equation in Sentence 6.3.2.4.(1)..",null,null,null,null,null,null,null,null,null,0]
[]
[]
["6.3.2.5. Determination of Trade-off Values of Components, ToVi"]
["16 - The trade-off value, ToVi's, of the SWH component in the proposed building ToVi is determined in accordance with Table 6.3.2.5..",null,null,null,null,null,null,null,null,null,0]
[]
[]
["17 - Is a SWH summary report attached for each system?",null,null,null,null,null,null,null,null,null,0]
[]
[]
["SWH Equipment Summary of the Proposed Buiding"]
[]
[]
[]
["System Location"]
["SWH System Type"]
["ToV1"]
["ToV2"]
["ToV3"]
["ToV4"]
["ToV5"]
["ToV6"]
["ToV7"]
["ToV8"]
["ToV9"]
["ToV10"]
["ηref"]
[]
[]
["6.3.2.6. Determination of Reference Heat Generator Efficiency, nref"]
["18 - The reference heat generator efficiency, is the minimum required performance efficiency stated in Table 6.2.2.1. as modified by SB-10 Chapter 3, Article 1.1.1.9. for the specified type of equipment.",null,null,null,null,null,null,null,null,null,0]

{"sheet":"EP & Motors - Prescriptive","index":12,"n_rows":96,"n_cols":11,"rows_kept":96,"cut":false,"hidden":false,"merged":[[81,0,81,2],[92,0,94,8],[83,3,83,4],[83,0,83,2],[83,5,83,6],[83,7,83,8],[87,0,87,8],[86,5,86,6],[86,3,86,4],[86,7,86,8],[86,0,86,2],[82,0,82,2],[82,3,82,4],[82,5,82,6],[82,7,82,8],[56,9,58,9],[60,0,60,8],[77,7,77,8],[65,0,67,8],[71,0,73,8],[61,0,61,8],[62,0,64,8],[68,0,70,8],[77,3,77,4],[52,9,54,9],[27,0,27,8],[43,0,45,8],[81,3,81,4],[81,5,81,6],[81,7,81,8],[78,7,78,8],[78,3,78,4],[79,0,79,2],[79,3,79,4],[79,5,79,6],[79,7,79,8],[80,0,80,2],[80,3,80,4],[80,5,80,6],[80,7,80,8],[0,0,0,1],[0,2,0,8],[1,0,1,1],[4,0,5,8],[23,9,24,9],[1,2,1,8],[6,0,14,8],[2,0,3,8],[19,0,19,8],[20,9,22,9],[17,9,18,9],[15,0,16,8],[25,0,25,8],[49,0,49,8],[17,0,18,2],[17,3,18,8],[76,5,76,6],[23,0,24,8],[20,0,22,8],[50,0,50,8],[51,0,51,8],[52,0,54,8],[55,0,55,8],[59,0,59,8],[56,0,58,8],[26,0,26,8],[28,0,30,8],[89,9,97,9],[77,5,77,6],[62,9,67,9],[68,9,73,9],[78,5,78,6],[84,0,85,8],[84,9,85,9],[78,0,78,2],[77,0,77,2],[88,0,88,8],[89,0,91,8],[74,0,75,8],[76,7,76,8],[76,3,76,4],[76,0,76,2],[95,0,97,8],[43,9,48,9],[28,9,42,9],[31,0,33,8],[37,0,39,8],[34,0,36,8],[40,0,42,8],[46,0,48,8]]}
["Project Name",null,{"$f":"'HVAC - Prescriptive'!C1:I1","v":"Enter project name on 'How to Use this Document' tab"}]
["Contact Person",null,{"$f":"'Compliance Documents Checklist'!C2:F2","v":"Enter contact person name on 'How to Use this Document' tab"}]
[]
[]
["Section 7.1. General"]
[]
["Please enter here any building specific explanation with reference to the item number."]
[]
[]
[]
[]
[]
[]
[]
[]
[]
[]
["Incomplete Items",null,null,{"$f":"COUNTIF(K21:K92,0)","v":8}]
[]
[]
["1 - This Section is complete for all electrical power systems and motors connected to the building's electrical service.",null,null,null,null,null,null,null,null,null,0]
[]
[]
["Section 7.2. Prescriptive Path"]
[]
[]
["7.2.1 Electrical Distribution System"]
["7.2.1.1. Facilitation of Monitoring - SB-10 replacement"]
["2 - Under SB-10 requirements, the building shall be designed and constructed to facilitate future installation of means to measure and monitor the electrical consumption of each of the following separately: (a) total electrical energy, (b) HVAC systems, (c) interior lighting, (d) exterior lighting, and (e) receptacle circuits.",null,null,null,null,null,null,null,null,null,0]
[]
[]
["Exemption 1: 25% of the annual service water heating requirement is provided by site-recovered energy."]
[]
[]
["Exemption 2: 25% of the annual service water heating requirement is provided by site-recovered energy."]
[]
[]
["Exemption 3: 25% of the annual service water heating requirement is provided by site-recovered energy."]
[]
[]
["Exemption 4: 25% of the annual service water heating requirement is provided by site-recovered energy."]
[]
[]
["3 - For buildings requiring facilitation of monitoring under Article 2 above from SB-10, the electrical distribution systems of buildings with tenants or dwelling units has been designed and constructed to facilitate future installation of means to measure and monitor the electrical consumption of each individual tenant or dwelling unit, excluding shared systems.",null,null,null,null,null,null,null,null,null,0]
[]
[]
["Explanation:"]
[]
[]
[]
["7.2.2. Voltage Drop"]
["7.2.2.1 Feeders"]
["4 - The feeder conductors are sized for a 2% maximum voltage drop, meeting the requirements of Sentence 7.2.2.1.(1).",null,null,null,null,null,null,null,null,null,0]
[]
[]
["7.2.2.2 Branch Circuit"]
["5 - The branch circuit conductors are sized for 3% maximum voltage drop, meeting the requirements of 7.2.2.2.(1).",null,null,null,null,null,null,null,null,null,0]
[]
[]
[]
["7.2.3 Transformers"]
["7.2.3.1 Transformer Selection"]
["6 - The transformers installed in the building meet the minimum efficiency and maximum loss requirements of Clauses 7.2.3.1.(1).a, 7.2.3.1.(1).b or/and 7.2.3.1.(1).c., as applicable.",null,null,null,null,null,null,null,null,null,0]
[]
[]
["Explanation:"]
[]
[]
["7 - Fill in the table below with specifications for all transformers.",null,null,null,null,null,null,null,null,null,0]
[]
[]
["Explanation:"]
[]
[]
["Tranformer List"]
[]
["Transformer Number/Label",null,null,"Dry or Liquid- Filled",null,"Performance",null,"Capacity"]
[]
[]
[]
[]
[]
[]
[]
[]
[]
[]
["7.2.4. Electrical Motors"]
["7.2.4.1. Efficiency"]
["8 - Applicable motors have nominal full load efficiencies not less than specified in Sentence 7.2.4.1.(1) or SB-10 7.2.4.1.(2) as applicable.",null,null,null,null,null,null,null,null,null,0]
[]
[]
["Explanation:"]
[]
[]
["Exemption 1: Elevator motors and motors that are components of rated systems need not comply."]

{"sheet":"Performance Compliance","index":13,"n_rows":237,"n_cols":11,"rows_kept":237,"cut":false,"hidden":false,"merged":[[233,0,235,8],[233,9,235,9],[228,0,230,8],[228,9,230,9],[231,0,231,8],[236,0,238,8],[112,2,112,3],[136,0,138,8],[140,0,144,8],[139,0,139,8],[115,2,115,3],[107,2,107,3],[108,2,108,3],[97,2,97,3],[98,2,98,3],[94,0,95,8],[96,0,96,1],[111,2,111,3],[130,0,132,8],[236,9,238,9],[133,0,135,8],[126,0,126,8],[127,0,129,8],[106,2,106,3],[99,2,99,3],[100,2,100,3],[123,0,123,3],[173,4,173,8],[173,2,173,3],[167,2,167,3],[172,2,172,3],[174,0,174,8],[181,0,181,8],[166,2,166,3],[162,2,162,3],[147,0,147,1],[155,2,155,3],[94,16245,95,16253],[94,16254,95,16262],[94,16263,95,16271],[94,16272,95,16280],[94,16281,95,16289],[94,16200,95,16208],[94,16209,95,16217],[94,16218,95,16226],[94,16227,95,16235],[94,16236,95,16244],[94,16380,95,16383],[94,16335,95,16343],[94,16344,95,16352],[94,16353,95,16361],[94,16362,95,16370],[94,16371,95,16379],[94,16290,95,16298],[94,16299,95,16307],[94,16308,95,16316],[94,16317,95,16325],[94,16326,95,16334],[94,16065,95,16073],[94,16074,95,16082],[94,16083,95,16091],[94,16092,95,16100],[94,16101,95,16109],[94,16020,95,16028],[94,16029,95,16037],[94,16038,95,16046],[94,16047,95,16055],[94,16056,95,16064],[94,16155,95,16163],[94,16164,95,16172],[94,16173,95,16181],[94,16182,95,16190],[94,16191,95,16199],[94,16110,95,16118],[94,16119,95,16127],[94,16128,95,16136],[94,16137,95,16145],[94,16146,95,16154],[94,15885,95,15893],[94,15894,95,15902],[94,15903,95,15911],[94,15912,95,15920],[94,15921,95,15929],[94,15840,95,15848],[94,15849,95,15857],[94,15858,95,15866],[94,15867,95,15875],[94,15876,95,15884],[94,15975,95,15983],[94,15984,95,15992],[94,15993,95,16001],[94,16002,95,16010],[94,16011,95,16019],[94,15930,95,15938],[94,15939,95,15947],[94,15948,95,15956],[94,15957,95,15965],[94,15966,95,15974],[94,15705,95,15713],[94,15714,95,15722],[94,15723,95,15731],[94,15732,95,15740],[94,15741,95,15749],[94,15660,95,15668],[94,15669,95,15677],[94,15678,95,15686],[94,15687,95,15695],[94,15696,95,15704],[94,15795,95,15803],[94,15804,95,15812],[94,15813,95,15821],[94,15822,95,15830],[94,15831,95,15839],[94,15750,95,15758],[94,15759,95,15767],[94,15768,95,15776],[94,15777,95,15785],[94,15786,95,15794],[94,15525,95,15533],[94,15534,95,15542],[94,15543,95,15551],[94,15552,95,15560],[94,15561,95,15569],[94,15480,95,15488],[94,15489,95,15497],[94,15498,95,15506],[94,15507,95,15515],[94,15516,95,15524],[94,15615,95,15623],[94,15624,95,15632],[94,15633,95,15641],[94,15642,95,15650],[94,15651,95,15659],[94,15570,95,15578],[94,15579,95,15587],[94,15588,95,15596],[94,15597,95,15605],[94,15606,95,15614],[94,15345,95,15353],[94,15354,95,15362],[94,15363,95,15371],[94,15372,95,15380],[94,15381,95,15389],[94,15300,95,15308],[94,15309,95,15317],[94,15318,95,15326],[94,15327,95,15335],[94,15336,95,15344],[94,15435,95,15443],[94,15444,95,15452],[94,15453,95,15461],[94,15462,95,15470],[94,15471,95,15479],[94,15390,95,15398],[94,15399,95,15407],[94,15408,95,15416],[94,15417,95,15425],[94,15426,95,15434],[94,15165,95,15173],[94,15174,95,15182],[94,15183,95,15191],[94,15192,95,15200],[94,15201,95,15209],[94,15120,95,15128],[94,15129,95,15137],[94,15138,95,15146],[94,15147,95,15155],[94,15156,95,15164],[94,15255,95,15263],[94,15264,95,15272],[94,15273,95,15281],[94,15282,95,15290],[94,15291,95,15299],[94,15210,95,15218],[94,15219,95,15227],[94,15228,95,15236],[94,15237,95,15245],[94,15246,95,15254],[94,14985,95,14993],[94,14994,95,15002],[94,15003,95,15011],[94,15012,95,15020],[94,15021,95,15029],[94,14940,95,14948],[94,14949,95,14957],[94,14958,95,14966],[94,14967,95,14975],[94,14976,95,14984],[94,15075,95,15083],[94,15084,95,15092],[94,15093,95,15101],[94,15102,95,15110],[94,15111,95,15119],[94,15030,95,15038],[94,15039,95,15047],[94,15048,95,15056],[94,15057,95,15065],[94,15066,95,15074],[94,14805,95,14813],[94,14814,95,14822],[94,14823,95,14831],[94,14832,95,14840],[94,14841,95,14849],[94,14760,95,14768],[94,14769,95,14777],[94,14778,95,14786],[94,14787,95,14795],[94,14796,95,14804],[94,14895,95,14903],[94,14904,95,14912],[94,14913,95,14921],[94,14922,95,14930],[94,14931,95,14939],[94,14850,95,14858],[94,14859,95,14867],[94,14868,95,14876],[94,14877,95,14885],[94,14886,95,14894],[94,14625,95,14633],[94,14634,95,14642],[94,14643,95,14651],[94,14652,95,14660],[94,14661,95,14669],[94,14580,95,14588],[94,14589,95,14597],[94,14598,95,14606],[94,14607,95,14615],[94,14616,95,14624],[94,14715,95,14723],[94,14724,95,14732],[94,14733,95,14741],[94,14742,95,14750],[94,14751,95,14759],[94,14670,95,14678],[94,14679,95,14687],[94,14688,95,14696],[94,14697,95,14705],[94,14706,95,14714],[94,14445,95,14453],[94,14454,95,14462],[94,14463,95,14471],[94,14472,95,14480],[94,14481,95,14489],[94,14400,95,14408],[94,14409,95,14417],[94,14418,95,14426],[94,14427,95,14435],[94,14436,95,14444],[94,14535,95,14543],[94,14544,95,14552],[94,14553,95,14561],[94,14562,95,14570],[94,14571,95,14579],[94,14490,95,14498],[94,14499,95,14507],[94,14508,95,14516],[94,14517,95,14525],[94,14526,95,14534],[94,14265,95,14273],[94,14274,95,14282],[94,14283,95,14291],[94,14292,95,14300],[94,14301,95,14309],[94,14220,95,14228],[94,14229,95,14237],[94,14238,95,14246],[94,14247,95,14255],[94,14256,95,14264],[94,14355,95,14363],[94,14364,95,14372],[94,14373,95,14381],[94,14382,95,14390],[94,14391,95,14399],[94,14310,95,14318],[94,14319,95,14327],[94,14328,95,14336],[94,14337,95,14345],[94,14346,95,14354],[94,14085,95,14093],[94,14094,95,14102],[94,14103,95,14111],[94,14112,95,14120],[94,14121,95,14129],[94,14040,95,14048],[94,14049,95,14057],[94,14058,95,14066],[94,14067,95,14075],[94,14076,95,14084],[94,14175,95,14183],[94,14184,95,14192],[94,14193,95,14201],[94,14202,95,14210],[94,14211,95,14219],[94,14130,95,14138],[94,14139,95,14147],[94,14148,95,14156],[94,14157,95,14165],[94,14166,95,14174],[94,13905,95,13913],[94,13914,95,13922],[94,13923,95,13931],[94,13932,95,13940],[94,13941,95,13949],[94,13860,95,13868],[94,13869,95,13877],[94,13878,95,13886],[94,13887,95,13895],[94,13896,95,13904],[94,13995,95,14003],[94,14004,95,14012],[94,14013,95,14021],[94,14022,95,14030],[94,14031,95,14039],[94,13950,95,13958],[94,13959,95,13967],[94,13968,95,13976],[94,13977,95,13985],[94,13986,95,13994],[94,13725,95,13733],[94,13734,95,13742],[94,13743,95,13751],[94,13752,95,13760],[94,13761,95,13769],[94,13680,95,13688],[94,13689,95,13697],[94,13698,95,13706],[94,13707,95,13715],[94,13716,95,13724],[94,13815,95,13823],[94,13824,95,13832],[94,13833,95,13841],[94,13842,95,13850],[94,13851,95,13859],[94,13770,95,13778],[94,13779,95,13787],[94,13788,95,13796],[94,13797,95,13805],[94,13806,95,13814],[94,13545,95,13553],[94,13554,95,13562],[94,13563,95,13571],[94,13572,95,13580],[94,13581,95,13589],[94,13500,95,13508],[94,13509,95,13517],[94,13518,95,13526],[94,13527,95,13535],[94,13536,95,13544],[94,13635,95,13643],[94,13644,95,13652],[94,13653,95,13661],[94,13662,95,13670],[94,13671,95,13679],[94,13590,95,13598],[94,13599,95,13607],[94,13608,95,13616],[94,13617,95,13625],[94,13626,95,13634],[94,13365,95,13373],[94,13374,95,13382],[94,13383,95,13391],[94,13392,95,13400],[94,13401,95,13409],[94,13320,95,13328],[94,13329,95,13337],[94,13338,95,13346],[94,13347,95,13355],[94,13356,95,13364],[94,13455,95,13463],[94,13464,95,13472],[94,13473,95,13481],[94,13482,95,13490],[94,13491,95,13499],[94,13410,95,13418],[94,13419,95,13427],[94,13428,95,13436],[94,13437,95,13445],[94,13446,95,13454],[94,13185,95,13193],[94,13194,95,13202],[94,13203,95,13211],[94,13212,95,13220],[94,13221,95,13229],[94,13140,95,13148],[94,13149,95,13157],[94,13158,95,13166],[94,13167,95,13175],[94,13176,95,13184],[94,13275,95,13283],[94,13284,95,13292],[94,13293,95,13301],[94,13302,95,13310],[94,13311,95,13319],[94,13230,95,13238],[94,13239,95,13247],[94,13248,95,13256],[94,13257,95,13265],[94,13266,95,13274],[94,13005,95,13013],[94,13014,95,13022],[94,13023,95,13031],[94,13032,95,13040],[94,13041,95,13049],[94,12960,95,12968],[94,12969,95,12977],[94,12978,95,12986],[94,12987,95,12995],[94,12996,95,13004],[94,13095,95,13103],[94,13104,95,13112],[94,13113,95,13121],[94,13122,95,13130],[94,13131,95,13139],[94,13050,95,13058],[94,13059,95,13067],[94,13068,95,13076],[94,13077,95,13085],[94,13086,95,13094],[94,12825,95,12833],[94,12834,95,12842],[94,12843,95,12851],[94,12852,95,12860],[94,12861,95,12869],[94,12780,95,12788],[94,12789,95,12797],[94,12798,95,12806],[94,12807,95,12815],[94,12816,95,12824],[94,12915,95,12923],[94,12924,95,12932],[94,12933,95,12941],[94,12942,95,12950],[94,12951,95,12959],[94,12870,95,12878],[94,12879,95,12887],[94,12888,95,12896],[94,12897,95,12905],[94,12906,95,12914],[94,12645,95,12653],[94,12654,95,12662],[94,12663,95,12671],[94,12672,95,12680],[94,12681,95,12689],[94,12600,95,12608],[94,12609,95,12617],[94,12618,95,12626],[94,12627,95,12635],[94,12636,95,12644],[94,12735,95,12743],[94,12744,95,12752],[94,12753,95,12761],[94,12762,95,12770],[94,12771,95,12779],[94,12690,95,12698],[94,12699,95,12707],[94,12708,95,12716],[94,12717,95,12725],[94,12726,95,12734],[94,12465,95,12473],[94,12474,95,12482],[94,12483,95,12491],[94,12492,95,12500],[94,12501,95,12509],[94,12420,95,12428],[94,12429,95,12437],[94,12438,95,12446],[94,12447,95,12455],[94,12456,95,12464],[94,12555,95,12563],[94,12564,95,12572],[94,12573,95,12581],[94,12582,95,12590],[94,12591,95,12599],[94,12510,95,12518],[94,12519,95,12527],[94,12528,95,12536],[94,12537,95,12545],[94,12546,95,12554],[94,12285,95,12293],[94,12294,95,12302],[94,12303,95,12311],[94,12312,95,12320],[94,12321,95,12329],[94,12240,95,12248],[94,12249,95,12257],[94,12258,95,12266],[94,12267,95,12275],[94,12276,95,12284],[94,12375,95,12383],[94,12384,95,12392],[94,12393,95,12401],[94,12402,95,12410],[94,12411,95,12419],[94,12330,95,12338],[94,12339,95,12347],[94,12348,95,12356],[94,12357,95,12365],[94,12366,95,12374],[94,12105,95,12113],[94,12114,95,12122],[94,12123,95,12131],[94,12132,95,12140],[94,12141,95,12149],[94,12060,95,12068],[94,12069,95,12077],[94,12078,95,12086],[94,12087,95,12095],[94,12096,95,12104],[94,12195,95,12203],[94,12204,95,12212],[94,12213,95,12221],[94,12222,95,12230],[94,12231,95,12239],[94,12150,95,12158],[94,12159,95,12167],[94,12168,95,12176],[94,12177,95,12185],[94,12186,95,12194],[94,11925,95,11933],[94,11934,95,11942],[94,11943,95,11951],[94,11952,95,11960],[94,11961,95,11969],[94,11880,95,11888],[94,11889,95,11897],[94,11898,95,11906],[94,11907,95,11915],[94,11916,95,11924],[94,12015,95,12023],[94,12024,95,12032],[94,12033,95,12041],[94,12042,95,12050],[94,12051,95,12059],[94,11970,95,11978],[94,11979,95,11987],[94,11988,95,11996],[94,11997,95,12005],[94,12006,95,12014],[94,11745,95,11753],[94,11754,95,11762],[94,11763,95,11771],[94,11772,95,11780],[94,11781,95,11789],[94,11700,95,11708],[94,11709,95,11717],[94,11718,95,11726],[94,11727,95,11735],[94,11736,95,11744],[94,11835,95,11843],[94,11844,95,11852],[94,11853,95,11861],[94,11862,95,11870],[94,11871,95,11879],[94,11790,95,11798],[94,11799,95,11807],[94,11808,95,11816],[94,11817,95,11825],[94,11826,95,11834],[94,11565,95,11573],[94,11574,95,11582],[94,11583,95,11591],[94,11592,95,11600],[94,11601,95,11609],[94,11520,95,11528],[94,11529,95,11537],[94,11538,95,11546],[94,11547,95,11555],[94,11556,95,11564],[94,11655,95,11663],[94,11664,95,11672],[94,11673,95,11681],[94,11682,95,11690],[94,11691,95,11699],[94,11610,95,11618],[94,11619,95,11627],[94,11628,95,11636],[94,11637,95,11645],[94,11646,95,11654],[94,11385,95,11393],[94,11394,95,11402],[94,11403,95,11411],[94,11412,95,11420],[94,11421,95,11429],[94,11340,95,11348],[94,11349,95,11357],[94,11358,95,11366],[94,11367,95,11375],[94,11376,95,11384],[94,11475,95,11483],[94,11484,95,11492],[94,11493,95,11501],[94,11502,95,11510],[94,11511,95,11519],[94,11430,95,11438],[94,11439,95,11447],[94,11448,95,11456],[94,11457,95,11465],[94,11466,95,11474],[94,11205,95,11213],[94,11214,95,11222],[94,11223,95,11231],[94,11232,95,11240],[94,11241,95,11249],[94,11160,95,11168],[94,11169,95,11177],[94,11178,95,11186],[94,11187,95,11195],[94,11196,95,11204],[94,11295,95,11303],[94,11304,95,11312],[94,11313,95,11321],[94,11322,95,11330],[94,11331,95,11339],[94,11250,95,11258],[94,11259,95,11267],[94,11268,95,11276],[94,11277,95,11285],[94,11286,95,11294],[94,11025,95,11033],[94,11034,95,11042],[94,11043,95,11051],[94,11052,95,11060],[94,11061,95,11069],[94,10980,95,10988],[94,10989,95,10997],[94,10998,95,11006],[94,11007,95,11015],[94,11016,95,11024],[94,11115,95,11123],[94,11124,95,11132],[94,11133,95,11141],[94,11142,95,11150],[94,11151,95,11159],[94,11070,95,11078],[94,11079,95,11087],[94,11088,95,11096],[94,11097,95,11105],[94,11106,95,11114],[94,10845,95,10853],[94,10854,95,10862],[94,10863,95,10871],[94,10872,95,10880],[94,10881,95,10889],[94,10800,95,10808],[94,10809,95,10817],[94,10818,95,10826],[94,10827,95,10835],[94,10836,95,10844],[94,10935,95,10943],[94,10944,95,10952],[94,10953,95,10961],[94,10962,95,10970],[94,10971,95,10979],[94,10890,95,10898],[94,10899,95,10907],[94,10908,95,10916],[94,10917,95,10925],[94,10926,95,10934],[94,10665,95,10673],[94,10674,95,10682],[94,10683,95,10691],[94,10692,95,10700],[94,10701,95,10709],[94,10620,95,10628],[94,10629,95,10637],[94,10638,95,10646],[94,10647,95,10655],[94,10656,95,10664],[94,10755,95,10763],[94,10764,95,10772],[94,10773,95,10781],[94,10782,95,10790],[94,10791,95,10799],[94,10710,95,10718],[94,10719,95,10727],[94,10728,95,10736],[94,10737,95,10745],[94,10746,95,10754],[94,10485,95,10493],[94,10494,95,10502],[94,10503,95,10511],[94,10512,95,10520],[94,10521,95,10529],[94,10440,95,10448],[94,10449,95,10457],[94,10458,95,10466],[94,10467,95,10475],[94,10476,95,10484],[94,10575,95,10583],[94,10584,95,10592],[94,10593,95,10601],[94,10602,95,10610],[94,10611,95,10619],[94,10530,95,10538],[94,10539,95,10547],[94,10548,95,10556],[94,10557,95,10565],[94,10566,95,10574],[94,10305,95,10313],[94,10314,95,10322],[94,10323,95,10331],[94,10332,95,10340],[94,10341,95,10349],[94,10260,95,10268],[94,10269,95,10277],[94,10278,95,10286],[94,10287,95,10295],[94,10296,95,10304],[94,10395,95,10403],[94,10404,95,10412],[94,10413,95,10421],[94,10422,95,10430],[94,10431,95,10439],[94,10350,95,10358],[94,10359,95,10367],[94,10368,95,10376],[94,10377,95,10385],[94,10386,95,10394],[94,10125,95,10133],[94,10134,95,10142],[94,10143,95,10151],[94,10152,95,10160],[94,10161,95,10169],[94,10080,95,10088],[94,10089,95,10097],[94,10098,95,10106],[94,10107,95,10115],[94,10116,95,10124],[94,10215,95,10223],[94,10224,95,10232],[94,10233,95,10241],[94,10242,95,10250],[94,10251,95,10259],[94,10170,95,10178],[94,10179,95,10187],[94,10188,95,10196],[94,10197,95,10205],[94,10206,95,10214],[94,9945,95,9953],[94,9954,95,9962],[94,9963,95,9971],[94,9972,95,9980],[94,9981,95,9989],[94,9900,95,9908],[94,9909,95,9917],[94,9918,95,9926],[94,9927,95,9935],[94,9936,95,9944],[94,10035,95,10043],[94,10044,95,10052],[94,10053,95,10061],[94,10062,95,10070],[94,10071,95,10079],[94,9990,95,9998],[94,9999,95,10007],[94,10008,95,10016],[94,10017,95,10025],[94,10026,95,10034],[94,9765,95,9773],[94,9774,95,9782],[94,9783,95,9791],[94,9792,95,9800],[94,9801,95,9809],[94,9720,95,9728],[94,9729,95,9737],[94,9738,95,9746],[94,9747,95,9755],[94,9756,95,9764],[94,9855,95,9863],[94,9864,95,9872],[94,9873,95,9881],[94,9882,95,9890],[94,9891,95,9899],[94,9810,95,9818],[94,9819,95,9827],[94,9828,95,9836],[94,9837,95,9845],[94,9846,95,9854],[94,9585,95,9593],[94,9594,95,9602],[94,9603,95,9611],[94,9612,95,9620],[94,9621,95,9629],[94,9540,95,9548],[94,9549,95,9557],[94,9558,95,9566],[94,9567,95,9575],[94,9576,95,9584],[94,9675,95,9683],[94,9684,95,9692],[94,9693,95,9701],[94,9702,95,9710],[94,9711,95,9719],[94,9630,95,9638],[94,9639,95,9647],[94,9648,95,9656],[94,9657,95,9665],[94,9666,95,9674],[94,9405,95,9413],[94,9414,95,9422],[94,9423,95,9431],[94,9432,95,9440],[94,9441,95,9449],[94,9360,95,9368],[94,9369,95,9377],[94,9378,95,9386],[94,9387,95,9395],[94,9396,95,9404],[94,9495,95,9503],[94,9504,95,9512],[94,9513,95,9521],[94,9522,95,9530],[94,9531,95,9539],[94,9450,95,9458],[94,9459,95,9467],[94,9468,95,9476],[94,9477,95,9485],[94,9486,95,9494],[94,9225,95,9233],[94,9234,95,9242],[94,9243,95,9251],[94,9252,95,9260],[94,9261,95,9269],[94,9180,95,9188],[94,9189,95,9197],[94,9198,95,9206],[94,9207,95,9215],[94,9216,95,9224],[94,9315,95,9323],[94,9324,95,9332],[94,9333,95,9341],[94,9342,95,9350],[94,9351,95,9359],[94,9270,95,9278],[94,9279,95,9287],[94,9288,95,9296],[94,9297,95,9305],[94,9306,95,9314],[94,9045,95,9053],[94,9054,95,9062],[94,9063,95,9071],[94,9072,95,9080],[94,9081,95,9089],[94,9000,95,9008],[94,9009,95,9017],[94,9018,95,9026],[94,9027,95,9035],[94,9036,95,9044],[94,9135,95,9143],[94,9144,95,9152],[94,9153,95,9161],[94,9162,95,9170],[94,9171,95,9179],[94,9090,95,9098],[94,9099,95,9107],[94,9108,95,9116],[94,9117,95,9125],[94,9126,95,9134],[94,8865,95,8873],[94,8874,95,8882],[94,8883,95,8891],[94,8892,95,8900],[94,8901,95,8909],[94,8820,95,8828],[94,8829,95,8837],[94,8838,95,8846],[94,8847,95,8855],[94,8856,95,8864],[94,8955,95,8963],[94,8964,95,8972],[94,8973,95,8981],[94,8982,95,8990],[94,8991,95,8999],[94,8910,95,8918],[94,8919,95,8927],[94,8928,95,8936],[94,8937,95,8945],[94,8946,95,8954],[94,8685,95,8693],[94,8694,95,8702],[94,8703,95,8711],[94,8712,95,8720],[94,8721,95,8729],[94,8640,95,8648],[94,8649,95,8657],[94,8658,95,8666],[94,8667,95,8675],[94,8676,95,8684],[94,8775,95,8783],[94,8784,95,8792],[94,8793,95,8801],[94,8802,95,8810],[94,8811,95,8819],[94,8730,95,8738],[94,8739,95,8747],[94,8748,95,8756],[94,8757,95,8765],[94,8766,95,8774],[94,8505,95,8513],[94,8514,95,8522],[94,8523,95,8531],[94,8532,95,8540],[94,8541,95,8549],[94,8460,95,8468],[94,8469,95,8477],[94,8478,95,8486],[94,8487,95,8495],[94,8496,95,8504],[94,8595,95,8603],[94,8604,95,8612],[94,8613,95,8621],[94,8622,95,8630],[94,8631,95,8639],[94,8550,95,8558],[94,8559,95,8567],[94,8568,95,8576],[94,8577,95,8585],[94,8586,95,8594],[94,8325,95,8333],[94,8334,95,8342],[94,8343,95,8351],[94,8352,95,8360],[94,8361,95,8369],[94,8280,95,8288],[94,8289,95,8297],[94,8298,95,8306],[94,8307,95,8315],[94,8316,95,8324],[94,8415,95,8423],[94,8424,95,8432],[94,8433,95,8441],[94,8442,95,8450],[94,8451,95,8459],[94,8370,95,8378],[94,8379,95,8387],[94,8388,95,8396],[94,8397,95,8405],[94,8406,95,8414],[94,8145,95,8153],[94,8154,95,8162],[94,8163,95,8171],[94,8172,95,8180],[94,8181,95,8189],[94,8100,95,8108],[94,8109,95,8117],[94,8118,95,8126],[94,8127,95,8135],[94,8136,95,8144],[94,8235,95,8243],[94,8244,95,8252],[94,8253,95,8261],[94,8262,95,8270],[94,8271,95,8279],[94,8190,95,8198],[94,8199,95,8207],[94,8208,95,8216],[94,8217,95,8225],[94,8226,95,8234],[94,7965,95,7973],[94,7974,95,7982],[94,7983,95,7991],[94,7992,95,8000],[94,8001,95,8009],[94,7920,95,7928],[94,7929,95,7937],[94,7938,95,7946],[94,7947,95,7955],[94,7956,95,7964],[94,8055,95,8063],[94,8064,95,8072],[94,8073,95,8081],[94,8082,95,8090],[94,8091,95,8099],[94,8010,95,8018],[94,8019,95,8027],[94,8028,95,8036],[94,8037,95,8045],[94,8046,95,8054],[94,7785,95,7793],[94,7794,95,7802],[94,7803,95,7811],[94,7812,95,7820],[94,7821,95,7829],[94,7740,95,7748],[94,7749,95,7757],[94,7758,95,7766],[94,7767,95,7775],[94,7776,95,7784],[94,7875,95,7883],[94,7884,95,7892],[94,7893,95,7901],[94,7902,95,7910],[94,7911,95,7919],[94,7830,95,7838],[94,7839,95,7847],[94,7848,95,7856],[94,7857,95,7865],[94,7866,95,7874],[94,7605,95,7613],[94,7614,95,7622]],"merged_total":2029,"flags":["merged_cut"]}
["Project Name",null,{"$f":"'How to Use this Document'!$C$16","v":"Enter project name on 'How to Use this Document' tab"}]
["Contact Person",null,{"$f":"'How to Use this Document'!$C$17","v":"Enter contact person name on 'How to Use this Document' tab"}]
[]
[]
["Section 8.1. General"]
[]
["Please enter here any building specific explanation with reference to the item number."]
[]
[]
[]
[]
[]
[]
[]
[]
["Incomplete Items",null,null,{"$f":"COUNTIF(K21:K241,0)","v":28}]
[]
[]
["8.1.1. General"]
["8.1.1.2. Application"]
["The Performance Compliance tab is to be completed for buildings which comply with Section 8.1.1.2. Please confirm compliance below.",null,null,null,null,null,null,null,null,null,0]
[]
[]
["1 - The occupancy types are known and there is sufficient building information, as required by Sentence 8.1.1.2.(1).",null,null,null,null,null,null,null,null,null,0]
[]
[]
["2 - If insufficient information is known, the prescriptive requirements of the NECB are used, as required by Sentence 8.1.1.2.(2).",null,null,null,null,null,null,null,null,null,0]
[]
[]
["Explanation:"]
[]
[]
["3 - Part 8 applies to a single building, as required by Sentence 8.1.1.4.(4).",null,null,null,null,null,null,null,null,null,0]
[]
[]
["Permission 1: Structures divided into multiple buildings are permitted to be treated as one building, according to the requirements of Sentence 8.1.1.2.(5)."]
[]
[]
["Section 8.4. Performance Path"]
[]
["8.4.1.1. General"]
["4 - The climate zone and prescriptive requirements are used for the building energy target, as required by Sentence 8.4.1.1.(1) and the additional SB-10 requirements as per Division 3: Chapter 3 of the OBC Supplementary Standard SB-10.",null,null,null,null,null,null,null,null,null,0]
[]
[]
[]
[]
["5 - The building is supplied with the following heating, cooling and service water heating energy types (SB-10 1.1.1.11.)",null,null,null,null,null,null,null,null,null,0]
[]
[]
[]
["6 - Is a space summary report attached?",null,null,null,null,null,null,null,null,null,0]
[]
[]
["Space Summary"]
[]
[]
[]
["Building Use/Space Type",null,null,null,null,null,"Conditioned Area (m2)","Unconditioned Area (m2)","Total Area (m2)"]
[]
[]
[]
[]
[]
[]
[]
[]
[]
[]
[]
[]
[]
[]
["total",null,null,null,null,null,{"$f":"SUM(G59:G72)","v":0},{"$f":"SUM(H59:H72)","v":0},{"$f":"SUM(I59:I72)","v":0}]
[]
[]
["7 a) - If software was used in compliance calculations, complete the following \"Advisory Messages\" Table. The software program used was                                                                                     and the version was                                 .           ",null,null,null,null,null,null,null,null,null,0]
[]
[]
["Advisory Messages"]
[]
["What software was used in the compliance calculation? Please include the edition and version of the software."]
[null,null,null,null,null,null,"Proposed Building Model","Reference Building Model"]
["Number of unmet annual heating load hours"]
["Number of unmet annual cooling load hours"]
["Warning/error messages displayed by the software (if applicable):"]
["7 b) - Warning or error messages are provided in the report."]
[]
[]
["Explanation:"]
[]
[]
["8 - Energy summary is provided. ",null,null,null,null,null,null,null,null,null,0]
[]
[]
["Energy Summary"]
[]
["Proposed Building (kWh/year)",null,"Reference Building (kWh/year)"]
["Electricity"]
[" Space Cool"]
[" Heat Rejection"]
[" Refrigeration"]
[" Space Heat"]
[" Heat Pump"]
[" Hot Water"]
[" Vent. Fans"]
[" Pumps & Aux."]
[" Ext. Usage"]
[" Misc. Equip."]
[" Task Lights"]
[" Area Lights"]
[" Total",{"$f":"SUM(B99:B110)","v":0},{"$f":"SUM(C99:D110)","v":0}]
["Proposed Building (m3/year)",null,"Reference Building(m3/year)"]
["Natural Gas"]
[" Space Heat"]
[" Hot Water"]
[" Total",{"$f":"SUM(B114:B115)","v":0},{"$f":"SUM(C114:D115)","v":0}]
["Proposed Building (L/year)",null,"Reference Building (L/year)"]
["Heating Oil"]
[" Space Heat"]
[" Hot Water"]
[" Total",{"$f":"SUM(B119:B120)","v":0},{"$f":"SUM(C119:D120)","v":0}]
["Proposed Building (ekWh/year)",null,"Reference Building (ekWh/year)"]
["Total Building Consumption",{"$f":"B111","v":0},null,{"$f":"SUM(D111+D116+D121)","v":0}]
["Total Annual CO2e Emissions and Peak Electric Demand  "]
["Total Annual CO2e Emissions",null,null,null,"Calculated based on factors provided in Table 1.1.2.2 of OBC Supplementary Standard SB-10"]
["Peak Electric Demand                         "]
[]
["9 - The Annual Energy Consumption of the Proposed Building is calculated according to Subsection 8.4.3. and OBC Supplementary Standard SB-10",null,null,null,null,null,null,null,null,null,0]
[]
[]
["10 - The Annual Energy Consumption of the Proposed Building is:                                     ",null,null,null,null,null,null,null,null,null,0]
[]
[]
["11 - The Building Energy Target of the Reference Building is calculated according to Subsection 8.4.4. and OBC Supplementary Standard SB-10",null,null,null,null,null,null,null,null,null,0]
[]
[]
["12 - The Building Energy Target of the Reference Building is:"]
[null,null,null,null,null,null,null,null,null,null,0]
[]
["8.4.1.2. Determination of Compliance"]
["13 - The Annual Energy Consumption, Total Annual CO2e Emissions, and Peak Electric Demand  of the proposed building does not exceed the corresponding targets, as required by NECB Clause 8.4.1.2.(2), OBC SB-10 Clause 1.1.2.2, and OBC SB-10 Clause 1.1.2.3, respectively.",null,null,null,null,null,null,null,null,null,0]
[]
[]
[]
[]
["Energy Summary"]
[]
["Proposed Building (kWh/year)",null,"Reference Building (kWh/year)"]
["Electricity"]
[" Space Cool"]
[" Heat Rejection"]
[" Refrigeration"]
[" Space Heat"]
[" Heat Pump"]
[" Hot Water"]
[" Vent. Fans"]
[" Pumps & Aux."]
[" Ext. Usage"]
[" Misc. Equip."]
[" Task Lights"]
[" Area Lights"]
[" Total",{"$f":"SUM(B150:B161)","v":0},{"$f":"SUM(C150:D161)","v":0}]
["Proposed Building (m3/year)",null,"Reference Building(m3/year)"]
["Natural Gas"]
[" Space Heat"]
[" Hot Water"]
[" Total",{"$f":"SUM(B165:B166)","v":0},{"$f":"SUM(C165:D166)","v":0}]
["Proposed Building (L/year)",null,"Reference Building (L/year)"]
["Heating Oil"]
[" Space Heat"]
[" Hot Water"]
[" Total",{"$f":"SUM(B170:B171)","v":0},{"$f":"SUM(C170:D171)","v":0}]
["Proposed Building (ekWh/year)",null,"Reference Building (ekWh/year)"]
["Total Building Consumption",{"$f":"SUM(B172,B167,B162)","v":0},{"$f":"SUM(C172,C167,C162)","v":0}]
[]
["14 - The number of unmet heating load hours does not exceed 100 hours, as required in 8.4.1.2.(3).",null,null,null,null,null,null,null,null,null,0]
[]
[]
["15 - The number of unmet cooling load hours does not differ by more than ± 10%, as required in 8.4.1.2.(4).",null,null,null,null,null,null,null,null,null,0]
[]
[]
["8.4.1.3. Limitations"]
["16 - The building envelope meets air leakage requirements of NECB Clause 3.4.1.2.",null,null,null,null,null,null,null,null,null,0]
[]
[]
["Explanation:"]
[]
[]
["17 - Insulation material is protected as required by NECB Clause 3.4.1.2.",null,null,null,null,null,null,null,null,null,0]
[]
[]
["18 - All HVAC appliances and equipment comply with applicable energy efficiency regulations or standards, as required by Sentence 5.4.1.2.(1).",null,null,null,null,null,null,null,null,null,0]
[]
[]
["19 - Back-up HVAC systems comply with prescriptive requirements, as required by 5.4.1.2.(2).",null,null,null,null,null,null,null,null,null,0]
[]
[]
["Explanation:"]
[]
[]
["20 -  All SWH appliances and equipment comply with applicable energy efficiency regulations or standards, as required by Sentence 6.4.1.2.(1).",null,null,null,null,null,null,null,null,null,0]
[]
[]
["21 - Back-up SWH systems comply with prescriptive requirements, as required by Sentence 6.4.1.2.(2).",null,null,null,null,null,null,null,null,null,0]
[]
[]
["Explanation:"]
[]
[]
["8.4.1.4. Addition"]
["22 - If an addition is present, the building complies with Article 8.4.1.4.",null,null,null,null,null,null,null,null,null,0]
[]
[]
["Explanation:"]
[]
[]
[]
["8.4.2. Compliance Calculations"]
["23 - The compliance calculations completed, meet the requirements of Subsection 8.4.2.",null,null,null,null,null,null,null,null,null,0]
[]
[]
[]
["8.4.3. Annual Energy Consumption of Proprosed Building"]
["24 - The calculations of the Annual Energy Consumption calculation of the proposed building completed, meet the requirement of Subsection 8.4.3.",null,null,null,null,null,null,null,null,null,0]
[]
[]
[]
["8.4.4. Building Energy Target of the Reference Building"]
["25 - The building Energy Target calculation of the reference building completed, meet the requirements of Subsection 8.4.4. as modified by OBC Supplementary Standard SB-10.",null,null,null,null,null,null,null,null,null,0]
[]
[]
[]
["8.4.1.2 Determination of Compliance"]
["26 - The annual energy consumption of the proposed building does not exceed the building energy target of the reference building as per 8.4.1.2.(2). (Please note that this is automatically calculated based on item 10 and 12).",null,null,null,null,null,null,null,null,null,0]
[]
[]
["9 - Complete the table below with the energy consumption of the Proposed and Reference buildings. If a particular field in the table does not apply to the building, leave it blank. ",null,null,null,null,null,null,null,null,null,0]

{"sheet":"Envelope Summary","index":14,"n_rows":56,"n_cols":7,"rows_kept":56,"cut":false,"hidden":true,"merged":[[17,0,17,4],[0,0,0,6],[7,0,7,6],[8,0,8,5],[9,0,9,5],[10,0,10,5],[11,0,11,5],[12,0,12,4],[13,0,13,4],[14,0,14,4],[15,0,15,4],[16,0,16,4],[3,0,3,3],[2,0,2,3],[18,0,18,4],[21,0,21,6],[22,2,22,3],[22,4,22,5],[23,2,23,3],[23,4,23,5],[24,2,24,3],[24,4,24,5],[25,2,25,3],[25,4,25,5],[26,2,26,3],[26,4,26,5],[27,2,27,3],[27,4,27,5],[28,2,28,3],[28,4,28,5],[29,2,29,3],[29,4,29,5],[30,2,30,3],[30,4,30,5],[31,2,31,3],[31,4,31,5],[32,2,32,3],[32,4,32,5],[33,2,33,3],[33,4,33,5],[34,2,34,3],[34,4,34,5],[35,2,35,3],[35,4,35,5],[41,0,42,0],[41,1,42,1],[41,2,41,3],[41,4,41,5],[41,6,42,6],[36,2,36,3],[36,4,36,5],[37,2,37,3],[37,4,37,5],[40,0,40,6]]}
["SUMMARY OF BUILDING ENVELOPE  BASED ON \nPART 3 OF NECB-2015 AND CHAPTER 3 OF DIVISION 3 OF SUPPLEMENTARY STANDARD SB-10 (2017) TO 2012 ONTARIO BUILDING CODE                                      "]
[]
[{"$f":"'How to Use this Document'!$C$16","v":"Enter project name on 'How to Use this Document' tab"}]
[{"$f":"'How to Use this Document'!$C$17","v":"Enter contact person name on 'How to Use this Document' tab"}]
[]
[]
["Please complete the Following Table"]
["GENERAL"]
["Requirements",null,null,null,null,null,"Compliance "]
["Envelope is designed in accordance with applicable sections of SB-10 (YES/NO)"]
["Electric space heating* is used (YES/NO)"]
["Applicable Climate Zone Based on HDD"]
[null,null,null,null,null,"Prescriptive  Criteria","Design"]
["Gross Wall Area"]
["Vertical Fenestration and Door Area "]
["Vertical Fenestration and Door Area to Gross Wall Area Ratio (FDWR)"]
["Gross Roof Area"]
["Total Skylight Area"]
["Total Skylight Area to Gross Roof Area Ratio"]
["*See Building Code for the definition of \"electric space heating.\""]
["Please complete the following table to include information on all walls, roofs, doors, and floors used in the design and add rows if necessary   "]
["OPAQUE BUILDING ENVELOPE COMPONENTS"]
["Opaque Element - Description(1)","Space Conditioning Category (2)\nH      Heated\nSH   Semi-heated","Criteria \nMax. U-Value(3)",null,"Design\nU-Value",null,"Area Weighted Average Used(4)?\nYES/NO"]
[]
[]
[]
[]
[]
[]
[]
[]
[]
[]
[]
[]
[]
[]
[]
[]
["Please complete the following table to include information on all fenestration products used in the design.   "]
["FENESTRATION ENVELOPE COMPONENTS"]
["Fenestration - Description(1)","Space Conditioning Category (2)\nH      Heated\nSH   Semi-heated","U-Value",null,"SHGC",null,"Area Weighted Average Used(4)?\nYES/NO"]
[null,null,"Criteria(3)","Design ","Criteria(3)","Design "]
[]
[]
[]
[]
[]
[]
[]
[]
[]
["(1)     Indicate if Element is a Wall, Roof, Floor, Door, Window or Skylight and a Tag or Description (eg Wall – W1)."]
["(2)     Enter Use: Heated (H) or Semiheated (SH)."]
["(3)       Enter the U-value required from Table 3.2.2.2. to 3.2.3.1. and Chapter 2 of Division 2 of SB-10  "]
["(4)    Elements of the same type, space category, and class of construction can be averaged using area weighting to show compliance."]

{"sheet":"Tables","index":15,"n_rows":17,"n_cols":4,"rows_kept":17,"cut":false,"hidden":true,"merged":[]}
[64]
[]
[]
["Table 6.2.2.1."]
["Service Water Heaters","Component","Input","Capacity, L"]
["Pool Heaters","Electric","≤ 12 kW","50 - 270"]
[null,"Heat pump water heaters","-","> 270 and ≤ 454"]
[null,"Gas-fired",">12 kW","> 454"]
[null,"Oil-fired instantaneous","≤ 24 A and ≤ 250 V","-"]
[null,"Oil-fired storage-type","< 22 kW","≤ 190"]
[null,"Gas-fired Pool Heater","22 - 117 kW","> 190"]
[null,"Oil-fired Pool Heater","> 117 kW","> 190"]
[null,null,"≤ 61.5 kW "]
[null,null,"Others"]
[null,null,"≤ 30.5 kW"]
[null,null,"> 30.5 kW"]
[null,null,"< 117.2 kW"]

{"sheet":"Sheet16","index":16,"n_rows":0,"n_cols":0,"rows_kept":0,"cut":false,"hidden":true,"merged":[[5,0,7,16383],[10,0,13,16383],[15,0,17,6],[19,0,21,6]]}

{"sheet":"Sheet1","index":17,"n_rows":0,"n_cols":0,"rows_kept":0,"cut":false,"hidden":true,"merged":[]}